Workbook

Sheet Introduction & Acknowledgments

Sheet Run-Circle-Run Strategy
A1: Variables Key
A2: R | B2: 100 | D2: Click to move Dog ● and You ● | K2: speed
A3: v | B3: 50 | K3: tangent | L3: =(B5>0)*SQRT(B3^2-L4^2) -> 0
A4: π < k < π +1 | B4: 4 | D4: 0 | K4: radial | L4: =(B5=0)*0+(B5>0)*(B5<=(1-PI()/B4)*B2/B3)*B3+(B5>=(1-PI()/B4)*B2/B3)*(B5<=(1-PI()/B4)*B2/B3+(B2*PI()/(B4*B3))*((B4-PI())/(PI()-(B4-1))))*0+(B5>=(1-PI()/B4)*B2/B3+(B2*PI()/(B4*B3))*((B4-PI())/(PI()-(B4-1))))*B3 -> 0
A5: t | B5: =D4/100 -> 0 | K5: total | L5: =SQRT(L3^2+L4^2) -> 0
A6: Distance | B6: =TEXT(B5*B3/B2,"0.000") & " R" -> 0.000 R
C8: x | D8: y | F8: Escape Route | G8: x | H8: y
B9: Dog | C9: =(B5>=0)*(B5<=(1-PI()/B4)*B2/B3)*0+(B5>=(1-PI()/B4)*B2/B3)*-B2*SIN(((B4*B3)/B2)*(B5-(1-PI()/B4)*B2/B3)) -> 0 | D9: =(B5>=0)*(B5<=(1-PI()/B4)*B2/B3)*(-B2)+(B5>=(1-PI()/B4)*B2/B3)*-B2*COS(((B4*B3)/B2)*(B5-(1-PI()/B4)*B2/B3)) -> -100 | F9: Annulus | G9: =IF($B$5>=$G$13,(1-PI()/B4)*B2*SIN(PI()/(PI()-(B4-1))+PI()),) -> 0 | H9: =IF($B$5>=$G$13,(1-PI()/B4)*B2*COS(PI()/(PI()-(B4-1))+PI()),) -> 0
B10: You | C10: =(B5>=0)*(B5<=(1-PI()/B4)*B2/B3)*0+(B5>=(1-PI()/B4)*B2/B3)*(B5<=(1-PI()/B4)*B2/B3+(B2*PI()/(B4*B3))*((B4-PI())/(PI()-(B4-1))))*(1-PI()/B4)*B2*SIN(B5*B3/((1-PI()/B4)*B2)-1+PI())+(B5>=(1-PI()/B4)*B2/B3+(B2*PI()/(B4*B3))*((B4-PI())/(PI()-(B4-1))))*((1-PI()/B4)*B2+(B5-(1-PI()/B4)*B2/B3-(B2*PI()/(B4*B3))*((B4-PI())/(PI()-(B4-1))))*B3)*SIN(PI()/(PI()-(B4-1))+PI()) -> 0 | D10: =(B5>=0)*(B5<=(1-PI()/B4)*B2/B3)*(-B5*B3) + (B5>=(1-PI()/B4)*B2/B3)*(B5<=(1-PI()/B4)*B2/B3+(B2*PI()/(B4*B3))*((B4-PI())/(PI()-(B4-1))))*(1-PI()/B4)*B2*COS(B5*B3/((1-PI()/B4)*B2)-1+PI())+(B5>=(1-PI()/B4)*B2/B3+(B2*PI()/(B4*B3))*((B4-PI())/(PI()-(B4-1))))*((1-PI()/B4)*B2+(B5-(1-PI()/B4)*B2/B3-(B2*PI()/(B4*B3))*((B4-PI())/(PI()-(B4-1))))*B3)*COS(PI()/(PI()-(B4-1))+PI()) -> 0 | F10: Boundary | G10: =IF($B$5>=$G$13,B2*SIN(PI()/(PI()-(B4-1))+PI()),) -> 0 | H10: =IF($B$5>=$G$13,B2*COS(PI()/(PI()-(B4-1))+PI()),) -> 0
B12: Centre | C12: 0 | D12: 0 | F12: Graph Title: | G12: ="R=" & TEXT(B2,"0") &", v=" & TEXT(B3,"0") &", k=" & TEXT(B4,"0") &" (t=" & TEXT(B5,"0.00") & ", Distance=" & TEXT(B6,"0.000") &")" -> R=100, v=50, k=4 (t=0.00, Distance=0.000 R)
F13: Time to opposition: | G13: =(1/B3)*((1-PI()/B4)*B2+(PI()/(PI()-(B4-1)))*(1-PI()/B4)*B2) -> 9.952177305 | H13: Time to escape: | J13: =(((PI()/B4)*((B4-PI())/(PI()-(B4-1)))+1)*B2)/B3 -> 11.52297363
A14: N | B14: Radians | C14: Big R Circle | E14: R/k Circle | G14: R(1-PI/k) Circle | K14: Line Between Dog & Human | M14: Escape Route | R14: Escape route
C15: x | D15: y | E15: x | F15: y | G15: x | H15: y | K15: x | L15: y | M15: x | N15: y | P15: Annulus | R15: t | S15: x | T15: y
A16: 0 | B16: 0 | C16: =$B$2*SIN(B16) -> 0 | D16: =$B$2*COS(B16) -> 100 | E16: =C16/$B$4 -> 0 | F16: =D16/$B$4 -> 25 | G16: =C16*(1-PI()/$B$4) -> 0 | H16: =D16*(1-PI()/$B$4) -> 21.46018366 | K16: =IF(($B$5<=(1-PI()/$B$4)*$B$2/$B$3+($B$2*PI()/($B$4*$B$3))*(($B$4-PI())/(PI()-($B$4-1)))),$C$9+(A16/1000)*($C$10-$C$9),) -> 0 | L16: =IF(($B$5<=(1-PI()/$B$4)*$B$2/$B$3+($B$2*PI()/($B$4*$B$3))*(($B$4-PI())/(PI()-($B$4-1)))),$D$9+(A16/1000)*($D$10-$D$9),) -> -100 | M16: =IF(AND($B$5>=$G$13,$B$5<=$J$13),$G$9+(A16/1000)*($G$10-$G$9),) -> 0 | N16: =IF(AND($B$5>=$G$13,$B$5<=$J$13),$H$9+(A16/1000)*($H$10-$H$9),) -> 0 | P16: =(E16+G16)/2 -> 0 | Q16: =(F16+H16)/2 -> 23.23009183 | R16: 0 | S16: =($B$5>=R16)*((R16>=0)*(R16<=(1-PI()/$B$4)*$B$2/$B$3)*0+(R16>=(1-PI()/$B$4)*$B$2/$B$3)*(R16<=(1-PI()/$B$4)*$B$2/$B$3+($B$2*PI()/($B$4*$B$3))*(($B$4-PI())/(PI()-($B$4-1))))*(1-PI()/$B$4)*$B$2*SIN(R16*$B$3/((1-PI()/$B$4)*$B$2)-1+PI())+(R16>=(1-PI()/$B$4)*$B$2/$B$3+($B$2*PI()/($B$4*$B$3))*(($B$4-PI())/(PI()-($B$4-1))))*((1-PI()/$B$4)*$B$2+(R16-(1-PI()/$B$4)*$B$2/$B$3-($B$2*PI()/($B$4*$B$3))*(($B$4-PI())/(PI()-($B$4-1))))*$B$3)*SIN(PI()/(PI()-($B$4-1))+PI())) -> 0 | T16: =($B$5>=R16)*((R16>=0)*(R16<=(1-PI()/$B$4)*$B$2/$B$3)*(-R16*$B$3) + (R16>=(1-PI()/$B$4)*$B$2/$B$3)*(R16<=(1-PI()/$B$4)*$B$2/$B$3+($B$2*PI()/($B$4*$B$3))*(($B$4-PI())/(PI()-($B$4-1))))*(1-PI()/$B$4)*$B$2*COS(R16*$B$3/((1-PI()/$B$4)*$B$2)-1+PI())+(R16>=(1-PI()/$B$4)*$B$2/$B$3+($B$2*PI()/($B$4*$B$3))*(($B$4-PI())/(PI()-($B$4-1))))*((1-PI()/$B$4)*$B$2+(R16-(1-PI()/$B$4)*$B$2/$B$3-($B$2*PI()/($B$4*$B$3))*(($B$4-PI())/(PI()-($B$4-1))))*$B$3)*COS(PI()/(PI()-($B$4-1))+PI())) -> 0
A17: =A16+1 -> 1 | B17: =2*PI()*(A17/1000) -> 0.006283185307 | C17: 0.6283143966 | D17: 99.99802609 | E17: 0.1570785991 | F17: 24.99950652 | G17: 0.1348374235 | H17: 21.45976005 | K17: =IF(($B$5<=(1-PI()/$B$4)*$B$2/$B$3+($B$2*PI()/($B$4*$B$3))*(($B$4-PI())/(PI()-($B$4-1)))),$C$9+(A17/1000)*($C$10-$C$9),) -> 0 | L17: =IF(($B$5<=(1-PI()/$B$4)*$B$2/$B$3+($B$2*PI()/($B$4*$B$3))*(($B$4-PI())/(PI()-($B$4-1)))),$D$9+(A17/1000)*($D$10-$D$9),) -> -99.9 | M17: =IF(AND($B$5>=$G$13,$B$5<=$J$13),$G$9+(A17/1000)*($G$10-$G$9),) -> 0 | N17: =IF(AND($B$5>=$G$13,$B$5<=$J$13),$H$9+(A17/1000)*($H$10-$H$9),) -> 0 | P17: =(E17+G17)/2 -> 0.1459580113 | Q17: 23.22963329 | R17: =R16+6*$B$2/($B$3*1000) -> 0.012 | S17: =($B$5>=R17)*((R17>=0)*(R17<=(1-PI()/$B$4)*$B$2/$B$3)*0+(R17>=(1-PI()/$B$4)*$B$2/$B$3)*(R17<=(1-PI()/$B$4)*$B$2/$B$3+($B$2*PI()/($B$4*$B$3))*(($B$4-PI())/(PI()-($B$4-1))))*(1-PI()/$B$4)*$B$2*SIN(R17*$B$3/((1-PI()/$B$4)*$B$2)-1+PI())+(R17>=(1-PI()/$B$4)*$B$2/$B$3+($B$2*PI()/($B$4*$B$3))*(($B$4-PI())/(PI()-($B$4-1))))*((1-PI()/$B$4)*$B$2+(R17-(1-PI()/$B$4)*$B$2/$B$3-($B$2*PI()/($B$4*$B$3))*(($B$4-PI())/(PI()-($B$4-1))))*$B$3)*SIN(PI()/(PI()-($B$4-1))+PI())) -> 0 | T17: =($B$5>=R17)*((R17>=0)*(R17<=(1-PI()/$B$4)*$B$2/$B$3)*(-R17*$B$3) + (R17>=(1-PI()/$B$4)*$B$2/$B$3)*(R17<=(1-PI()/$B$4)*$B$2/$B$3+($B$2*PI()/($B$4*$B$3))*(($B$4-PI())/(PI()-($B$4-1))))*(1-PI()/$B$4)*$B$2*COS(R17*$B$3/((1-PI()/$B$4)*$B$2)-1+PI())+(R17>=(1-PI()/$B$4)*$B$2/$B$3+($B$2*PI()/($B$4*$B$3))*(($B$4-PI())/(PI()-($B$4-1))))*((1-PI()/$B$4)*$B$2+(R17-(1-PI()/$B$4)*$B$2/$B$3-($B$2*PI()/($B$4*$B$3))*(($B$4-PI())/(PI()-($B$4-1))))*$B$3)*COS(PI()/(PI()-($B$4-1))+PI())) -> 0
A18: =A17+1 -> 2 | B18: =2*PI()*(A18/1000) -> 0.01256637061 | C18: 1.256603988 | D18: 99.99210442 | E18: 0.3141509971 | F18: 24.99802611 | G18: 0.2696695238 | H18: 21.45848925 | K18: 0 | L18: -99.8 | M18: 0 | N18: 0 | P18: 0.2919102604 | Q18: 23.22825768 | R18: =R17+6*$B$2/($B$3*1000) -> 0.024 | S18: 0 | T18: 0
A19: 3 | B19: 0.01884955592 | C19: 1.884843972 | D19: 99.98223524 | E19: 0.4712109929 | F19: 24.99555881 | G19: 0.404490978 | H19: 21.45637131 | K19: 0 | L19: -99.7 | M19: 0 | N19: 0 | P19: 0.4378509854 | Q19: 23.22596506 | R19: 0.036 | S19: 0 | T19: 0
A20: 4 | B20: 0.02513274123 | C20: 2.513009544 | D20: 99.96841893 | E20: 0.6282523861 | F20: 24.99210473 | G20: 0.5392964636 | H20: 21.4534063 | K20: 0 | L20: -99.6 | M20: 0 | N20: 0 | P20: 0.5837744248 | Q20: 23.22275552 | R20: 0.048 | S20: 0 | T20: 0
A21: 5 | B21: 0.03141592654 | C21: 3.141075908 | D21: 99.95065604 | E21: 0.785268977 | F21: 24.98766401 | G21: 0.6740806587 | H21: 21.44959436 | K21: 0 | L21: -99.5 | M21: 0 | N21: 0 | P21: 0.7296748178 | Q21: 23.21862918 | R21: 0.06 | S21: 0 | T21: 0
A22: 6 | B22: 0.03769911184 | C22: 3.769018267 | D22: 99.92894726 | E22: 0.9422545667 | F22: 24.98223682 | G22: 0.8088382423 | H22: 21.44493561 | K22: 0 | L22: -99.4 | M22: 0 | N22: 0 | P22: 0.8755464045 | Q22: 23.21358621 | R22: 0.072 | S22: 0 | T22: 0
A23: 7 | B23: 0.04398229715 | C23: 4.396811832 | D23: 99.90329347 | E23: 1.099202958 | F23: 24.97582337 | G23: 0.9435638943 | H23: 21.43943026 | K23: 0 | L23: -99.3 | M23: 0 | N23: 0 | P23: 1.021383426 | Q23: 23.20762681 | R23: 0.084 | S23: 0 | T23: 0
A24: 8 | B24: 0.05026548246 | C24: 5.024431818 | D24: 99.87369566 | E24: 1.256107954 | F24: 24.96842392 | G24: 1.078252296 | H24: 21.43307852 | K24: 0 | L24: -99.2 | M24: 0 | N24: 0 | P24: 1.167180125 | Q24: 23.20075122 | R24: 0.096 | S24: 0 | T24: 0
A25: 9 | B25: 0.05654866776 | C25: 5.651853448 | D25: 99.84015501 | E25: 1.412963362 | F25: 24.96003875 | G25: 1.21289813 | H25: 21.42588063 | K25: 0 | L25: -99.1 | M25: 0 | N25: 0 | P25: 1.312930746 | Q25: 23.19295969 | R25: 0.108 | S25: 0 | T25: 0
A26: 10 | B26: 0.06283185307 | C26: 6.279051953 | D26: 99.80267284 | E26: 1.569762988 | F26: 24.95066821 | G26: 1.347496081 | H26: 21.41783689 | K26: 0 | L26: -99 | M26: 0 | N26: 0 | P26: 1.458629535 | Q26: 23.18425255 | R26: 0.12 | S26: 0 | T26: 0
A27: 11 | B27: 0.06911503838 | C27: 6.906002571 | D27: 99.76125064 | E27: 1.726500643 | F27: 24.94031266 | G27: 1.482040835 | H27: 21.40894761 | K27: 0 | L27: -98.9 | M27: 0 | N27: 0 | P27: 1.604270739 | Q27: 23.17463013 | R27: 0.132 | S27: 0 | T27: 0
A28: 12 | B28: 0.07539822369 | C28: 7.532680553 | D28: 99.71589003 | E28: 1.883170138 | F28: 24.92897251 | G28: 1.616527081 | H28: 21.39921314 | K28: 0 | L28: -98.8 | M28: 0 | N28: 0 | P28: 1.74984861 | Q28: 23.16409282 | R28: 0.144 | S28: 0 | T28: 0
A29: 13 | B29: 0.08168140899 | C29: 8.159061157 | D29: 99.6665928 | E29: 2.039765289 | F29: 24.9166482 | G29: 1.750949509 | H29: 21.38863386 | K29: 0 | L29: -98.7 | M29: 0 | N29: 0 | P29: 1.895357399 | Q29: 23.15264103 | R29: 0.156 | S29: 0 | T29: 0
A30: 14 | B30: 0.0879645943 | C30: 8.785119655 | D30: 99.61336091 | E30: 2.196279914 | F30: 24.90334023 | G30: 1.885302813 | H30: 21.3772102 | K30: 0 | L30: -98.6 | M30: 0 | N30: 0 | P30: 2.040791363 | Q30: 23.14027522 | R30: 0.168 | S30: 0 | T30: 0
A31: 15 | B31: 0.09424777961 | C31: 9.410831332 | D31: 99.55619646 | E31: 2.352707833 | F31: 24.88904912 | G31: 2.019581688 | H31: 21.36494261 | K31: 0 | L31: -98.5 | M31: 0 | N31: 0 | P31: 2.18614476 | Q31: 23.12699586 | R31: 0.18 | S31: 0 | T31: 0
A32: 16 | B32: 0.1005309649 | C32: 10.03617149 | D32: 99.4951017 | E32: 2.509042871 | F32: 24.87377542 | G32: 2.153780833 | H32: 21.35183156 | K32: 0 | L32: -98.4 | M32: 0 | N32: 0 | P32: 2.331411852 | Q32: 23.11280349 | R32: 0.192 | S32: 0 | T32: 0
A33: 17 | B33: 0.1068141502 | C33: 10.66111543 | D33: 99.43007904 | E33: 2.665278857 | F33: 24.85751976 | G33: 2.287894951 | H33: 21.33787758 | K33: 0 | L33: -98.3 | M33: 0 | N33: 0 | P33: 2.476586904 | Q33: 23.09769867 | R33: 0.204 | S33: 0 | T33: 0
A34: 18 | B34: 0.1130973355 | C34: 11.28563849 | D34: 99.36113105 | E34: 2.821409622 | F34: 24.84028276 | G34: 2.421918747 | H34: 21.32308121 | K34: 0 | L34: -98.2 | M34: 0 | N34: 0 | P34: 2.621664184 | Q34: 23.08168199 | R34: 0.216 | S34: 0 | T34: 0
A35: 19 | B35: 0.1193805208 | C35: 11.90971601 | D35: 99.28826046 | E35: 2.977429002 | F35: 24.82206511 | G35: 2.555846929 | H35: 21.30744305 | K35: 0 | L35: -98.1 | M35: 0 | N35: 0 | P35: 2.766637966 | Q35: 23.06475408 | R35: 0.228 | S35: 0 | T35: 0
A36: 20 | B36: 0.1256637061 | C36: 12.53332336 | D36: 99.21147013 | E36: 3.133330839 | F36: 24.80286753 | G36: 2.689674211 | H36: 21.2909637 | K36: 0 | L36: -98 | M36: 0 | N36: 0 | P36: 2.911502525 | Q36: 23.04691562 | R36: 0.24 | S36: 0 | T36: 0
A37: 21 | B37: 0.1319468915 | C37: 13.15643591 | D37: 99.13076311 | E37: 3.289108977 | F37: 24.78269078 | G37: 2.823395309 | H37: 21.27364383 | K37: 0 | L37: -97.9 | M37: 0 | N37: 0 | P37: 3.056252143 | Q37: 23.0281673 | R37: 0.252 | S37: 0 | T37: 0
A38: 22 | B38: 0.1382300768 | C38: 13.77902907 | D38: 99.04614257 | E38: 3.444757267 | F38: 24.76153564 | G38: 2.957004945 | H38: 21.2554841 | K38: 0 | L38: -97.8 | M38: 0 | N38: 0 | P38: 3.200881106 | Q38: 23.00850987 | R38: 0.264 | S38: 0 | T38: 0
A39: 23 | B39: 0.1445132621 | C39: 14.40107826 | D39: 98.95761186 | E39: 3.600269564 | F39: 24.73940297 | G39: 3.090497843 | H39: 21.23648525 | K39: 0 | L39: -97.7 | M39: 0 | N39: 0 | P39: 3.345383703 | Q39: 22.98794411 | R39: 0.276 | S39: 0 | T39: 0
A40: 24 | B40: 0.1507964474 | C40: 15.02255891 | D40: 98.86517447 | E40: 3.755639728 | F40: 24.71629362 | G40: 3.223868733 | H40: 21.21664802 | K40: 0 | L40: -97.6 | M40: 0 | N40: 0 | P40: 3.489754231 | Q40: 22.96647082 | R40: 0.288 | S40: 0 | T40: 0
A41: 25 | B41: 0.1570796327 | C41: 15.6434465 | D41: 98.76883406 | E41: 3.910861626 | F41: 24.69220851 | G41: 3.357112351 | H41: 21.19597319 | K41: 0 | L41: -97.5 | M41: 0 | N41: 0 | P41: 3.633986988 | Q41: 22.94409085 | R41: 0.3 | S41: 0 | T41: 0
A42: 26 | B42: 0.163362818 | C42: 16.26371652 | D42: 98.66859442 | E42: 4.06592913 | F42: 24.66714861 | G42: 3.490223435 | H42: 21.17446158 | K42: 0 | L42: -97.4 | M42: 0 | N42: 0 | P42: 3.778076282 | Q42: 22.92080509 | R42: 0.312 | S42: 0 | T42: 0
A43: 27 | B43: 0.1696460033 | C43: 16.88334447 | D43: 98.56445951 | E43: 4.220836118 | F43: 24.64111488 | G43: 3.623196732 | H43: 21.15211404 | K43: 0 | L43: -97.3 | M43: 0 | N43: 0 | P43: 3.922016425 | Q43: 22.89661446 | R43: 0.324 | S43: 0 | T43: 0
A44: 28 | B44: 0.1759291886 | C44: 17.5023059 | D44: 98.45643345 | E44: 4.375576474 | F44: 24.61410836 | G44: 3.75602699 | H44: 21.12893144 | K44: 0 | L44: -97.2 | M44: 0 | N44: 0 | P44: 4.065801732 | Q44: 22.8715199 | R44: 0.336 | S44: 0 | T44: 0
A45: 29 | B45: 0.1822123739 | C45: 18.12057636 | D45: 98.3445205 | E45: 4.530144091 | F45: 24.58613012 | G45: 3.888708968 | H45: 21.10491472 | K45: 0 | L45: -97.1 | M45: 0 | N45: 0 | P45: 4.209426529 | Q45: 22.84552242 | R45: 0.348 | S45: 0 | T45: 0
A46: 30 | B46: 0.1884955592 | C46: 18.73813146 | D46: 98.22872507 | E46: 4.684532865 | F46: 24.55718127 | G46: 4.021237426 | H46: 21.08006481 | K46: 0 | L46: -97 | M46: 0 | N46: 0 | P46: 4.352885145 | Q46: 22.81862304 | R46: 0.36 | S46: 0 | T46: 0
A47: 31 | B47: 0.1947787445 | C47: 19.35494681 | D47: 98.10905174 | E47: 4.838736701 | F47: 24.52726294 | G47: 4.153607132 | H47: 21.05438269 | K47: 0 | L47: -96.9 | M47: 0 | N47: 0 | P47: 4.496171916 | Q47: 22.79082281 | R47: 0.372 | S47: 0 | T47: 0
A48: 32 | B48: 0.2010619298 | C48: 19.97099805 | D48: 97.98550524 | E48: 4.992749513 | F48: 24.49637631 | G48: 4.285812861 | H48: 21.02786938 | K48: 0 | L48: -96.8 | M48: 0 | N48: 0 | P48: 4.639281187 | Q48: 22.76212285 | R48: 0.384 | S48: 0 | T48: 0
A49: 33 | B49: 0.2073451151 | C49: 20.58626088 | D49: 97.85809043 | E49: 5.146565219 | F49: 24.46452261 | G49: 4.417849393 | H49: 21.00052593 | K49: 0 | L49: -96.7 | M49: 0 | N49: 0 | P49: 4.782207306 | Q49: 22.73252427 | R49: 0.396 | S49: 0 | T49: 0
A50: 34 | B50: 0.2136283004 | C50: 21.20071099 | D50: 97.72681236 | E50: 5.300177748 | F50: 24.43170309 | G50: 4.549711516 | H50: 20.97235342 | K50: 0 | L50: -96.6 | M50: 0 | N50: 0 | P50: 4.924944632 | Q50: 22.70202825 | R50: 0.408 | S50: 0 | T50: 0
A51: 35 | B51: 0.2199114858 | C51: 21.81432414 | D51: 97.59167619 | E51: 5.453581035 | F51: 24.39791905 | G51: 4.681394025 | H51: 20.94335295 | K51: 0 | L51: -96.5 | M51: 0 | N51: 0 | P51: 5.06748753 | Q51: 22.670636 | R51: 0.42 | S51: 0 | T51: 0
A52: 36 | B52: 0.2261946711 | C52: 22.42707609 | D52: 97.45268728 | E52: 5.606769024 | F52: 24.36317182 | G52: 4.81289172 | H52: 20.91352567 | K52: 0 | L52: -96.4 | M52: 0 | N52: 0 | P52: 5.209830372 | Q52: 22.63834875 | R52: 0.432 | S52: 0 | T52: 0
A53: 37 | B53: 0.2324778564 | C53: 23.03894267 | D53: 97.3098511 | E53: 5.759735667 | F53: 24.32746277 | G53: 4.94419941 | H53: 20.88287277 | K53: 0 | L53: -96.3 | M53: 0 | N53: 0 | P53: 5.351967538 | Q53: 22.60516777 | R53: 0.444 | S53: 0 | T53: 0
A54: 38 | B54: 0.2387610417 | C54: 23.6498997 | D54: 97.16317329 | E54: 5.912474926 | F54: 24.29079332 | G54: 5.075311912 | H54: 20.85139544 | K54: 0 | L54: -96.2 | M54: 0 | N54: 0 | P54: 5.493893419 | Q54: 22.57109438 | R54: 0.456 | S54: 0 | T54: 0
A55: 39 | B55: 0.245044227 | C55: 24.25992308 | D55: 97.01265965 | E55: 6.06498077 | F55: 24.25316491 | G55: 5.206224049 | H55: 20.81909493 | K55: 0 | L55: -96.1 | M55: 0 | N55: 0 | P55: 5.635602409 | Q55: 22.53612992 | R55: 0.468 | S55: 0 | T55: 0
A56: 40 | B56: 0.2513274123 | C56: 24.86898872 | D56: 96.85831611 | E56: 6.217247179 | F56: 24.21457903 | G56: 5.336930653 | H56: 20.78597253 | K56: 0 | L56: -96 | M56: 0 | N56: 0 | P56: 5.777088916 | Q56: 22.50027578 | R56: 0.48 | S56: 0 | T56: 0
A57: 41 | B57: 0.2576105976 | C57: 25.47707257 | D57: 96.70014878 | E57: 6.369268142 | F57: 24.17503719 | G57: 5.467426564 | H57: 20.75202953 | K57: 0 | L57: -95.9 | M57: 0 | N57: 0 | P57: 5.918347353 | Q57: 22.46353336 | R57: 0.492 | S57: 0 | T57: 0
A58: 42 | B58: 0.2638937829 | C58: 26.08415063 | D58: 96.53816388 | E58: 6.521037657 | F58: 24.13454097 | G58: 5.597706631 | H58: 20.71726727 | K58: 0 | L58: -95.8 | M58: 0 | N58: 0 | P58: 6.059372144 | Q58: 22.42590412 | R58: 0.504 | S58: 0 | T58: 0
A59: 43 | B59: 0.2701769682 | C59: 26.69019893 | D59: 96.37236783 | E59: 6.672549733 | F59: 24.09309196 | G59: 5.72776571 | H59: 20.68168713 | K59: 0 | L59: -95.7 | M59: 0 | N59: 0 | P59: 6.200157722 | Q59: 22.38738955 | R59: 0.516 | S59: 0 | T59: 0
A60: 44 | B60: 0.2764601535 | C60: 27.29519355 | D60: 96.20276716 | E60: 6.823798388 | F60: 24.05069179 | G60: 5.857598667 | H60: 20.64529052 | K60: 0 | L60: -95.6 | M60: 0 | N60: 0 | P60: 6.340698527 | Q60: 22.34799115 | R60: 0.528 | S60: 0 | T60: 0
A61: 45 | B61: 0.2827433388 | C61: 27.8991106 | D61: 96.02936857 | E61: 6.974777651 | F61: 24.00734214 | G61: 5.987200375 | H61: 20.60807886 | K61: 0 | L61: -95.5 | M61: 0 | N61: 0 | P61: 6.480989013 | Q61: 22.3077105 | R61: 0.54 | S61: 0 | T61: 0
A62: 46 | B62: 0.2890265241 | C62: 28.50192625 | D62: 95.8521789 | E62: 7.125481562 | F62: 23.96304473 | G62: 6.116565719 | H62: 20.57005363 | K62: 0 | L62: -95.4 | M62: 0 | N62: 0 | P62: 6.621023641 | Q62: 22.26654918 | R62: 0.552 | S62: 0 | T62: 0
A63: 47 | B63: 0.2953097094 | C63: 29.10361668 | D63: 95.67120516 | E63: 7.275904171 | F63: 23.91780129 | G63: 6.245689592 | H63: 20.53121634 | K63: 0 | L63: -95.3 | M63: 0 | N63: 0 | P63: 6.760796881 | Q63: 22.22450881 | R63: 0.564 | S63: 0 | T63: 0
A64: 48 | B64: 0.3015928947 | C64: 29.70415816 | D64: 95.48645447 | E64: 7.426039539 | F64: 23.87161362 | G64: 6.374566895 | H64: 20.4915685 | K64: 0 | L64: -95.2 | M64: 0 | N64: 0 | P64: 6.900303217 | Q64: 22.18159106 | R64: 0.576 | S64: 0 | T64: 0
A65: 49 | B65: 0.3078760801 | C65: 30.30352696 | D65: 95.29793415 | E65: 7.575881741 | F65: 23.82448354 | G65: 6.503192542 | H65: 20.45111169 | K65: 0 | L65: -95.1 | M65: 0 | N65: 0 | P65: 7.039537141 | Q65: 22.13779762 | R65: 0.588 | S65: 0 | T65: 0
A66: 50 | B66: 0.3141592654 | C66: 30.90169944 | D66: 95.10565163 | E66: 7.725424859 | F66: 23.77641291 | G66: 6.631561453 | H66: 20.40984751 | K66: 0 | L66: -95 | M66: 0 | N66: 0 | P66: 7.178493156 | Q66: 22.09313021 | R66: 0.6 | S66: 0 | T66: 0
A67: 51 | B67: 0.3204424507 | C67: 31.49865197 | D67: 94.9096145 | E67: 7.874662991 | F67: 23.72740362 | G67: 6.759668562 | H67: 20.36777758 | K67: 0 | L67: -94.9 | M67: 0 | N67: 0 | P67: 7.317165777 | Q67: 22.0475906 | R67: 0.612 | S67: 0 | T67: 0
A68: 52 | B68: 0.326725636 | C68: 32.09436098 | D68: 94.7098305 | E68: 8.023590245 | F68: 23.67745762 | G68: 6.887508811 | H68: 20.32490357 | K68: 0 | L68: -94.8 | M68: 0 | N68: 0 | P68: 7.455549528 | Q68: 22.0011806 | R68: 0.624 | S68: 0 | T68: 0
A69: 53 | B69: 0.3330088213 | C69: 32.68880297 | D69: 94.50630752 | E69: 8.172200741 | F69: 23.62657688 | G69: 7.015077153 | H69: 20.28122716 | K69: 0 | L69: -94.7 | M69: 0 | N69: 0 | P69: 7.593638947 | Q69: 21.95390202 | R69: 0.636 | S69: 0 | T69: 0
A70: 54 | B70: 0.3392920066 | C70: 33.28195445 | D70: 94.29905359 | E70: 8.320488613 | F70: 23.5747634 | G70: 7.142368551 | H70: 20.23675009 | K70: 0 | L70: -94.6 | M70: 0 | N70: 0 | P70: 7.731428582 | Q70: 21.90575674 | R70: 0.648 | S70: 0 | T70: 0
A71: 55 | B71: 0.3455751919 | C71: 33.87379202 | D71: 94.0880769 | E71: 8.468448006 | F71: 23.52201922 | G71: 7.269377981 | H71: 20.1914741 | K71: 0 | L71: -94.5 | M71: 0 | N71: 0 | P71: 7.868912994 | Q71: 21.85674666 | R71: 0.66 | S71: 0 | T71: 0
A72: 56 | B72: 0.3518583772 | C72: 34.46429232 | D72: 93.87338577 | E72: 8.616073079 | F72: 23.46834644 | G72: 7.396100429 | H72: 20.14540099 | K72: 0 | L72: -94.4 | M72: 0 | N72: 0 | P72: 8.006086754 | Q72: 21.80687372 | R72: 0.672 | S72: 0 | T72: 0
A73: 57 | B73: 0.3581415625 | C73: 35.05343202 | D73: 93.65498867 | E73: 8.763358005 | F73: 23.41374717 | G73: 7.522530891 | H73: 20.09853258 | K73: 0 | L73: -94.3 | M73: 0 | N73: 0 | P73: 8.142944448 | Q73: 21.75613987 | R73: 0.684 | S73: 0 | T73: 0
A74: 58 | B74: 0.3644247478 | C74: 35.64118787 | D74: 93.43289425 | E74: 8.910296968 | F74: 23.35822356 | G74: 7.648664376 | H74: 20.0508707 | K74: 0 | L74: -94.2 | M74: 0 | N74: 0 | P74: 8.279480672 | Q74: 21.70454713 | R74: 0.696 | S74: 0 | T74: 0
A75: 59 | B75: 0.3707079331 | C75: 36.22753667 | D75: 93.20711125 | E75: 9.056884168 | F75: 23.30177781 | G75: 7.774495905 | H75: 20.00241726 | K75: 0 | L75: -94.1 | M75: 0 | N75: 0 | P75: 8.415690036 | Q75: 21.65209753 | R75: 0.708 | S75: 0 | T75: 0
A76: 60 | B76: 0.3769911184 | C76: 36.81245527 | D76: 92.97764859 | E76: 9.203113817 | F76: 23.24441215 | G76: 7.90002051 | H76: 19.95317415 | K76: 0 | L76: -94 | M76: 0 | N76: 0 | P76: 8.551567164 | Q76: 21.59879315 | R76: 0.72 | S76: 0 | T76: 0
A77: 61 | B77: 0.3832743037 | C77: 37.39592057 | D77: 92.74451533 | E77: 9.348980143 | F77: 23.18612883 | G77: 8.025233237 | H77: 19.90314333 | K77: 0 | L77: -93.9 | M77: 0 | N77: 0 | P77: 8.68710669 | Q77: 21.54463608 | R77: 0.732 | S77: 0 | T77: 0
A78: 62 | B78: 0.389557489 | C78: 37.97790955 | D78: 92.50772068 | E78: 9.494477388 | F78: 23.12693017 | G78: 8.15012914 | H78: 19.85232676 | K78: 0 | L78: -93.8 | M78: 0 | N78: 0 | P78: 8.822303264 | Q78: 21.48962846 | R78: 0.744 | S78: 0 | T78: 0
A79: 63 | B79: 0.3958406744 | C79: 38.55839923 | D79: 92.26727399 | E79: 9.639599807 | F79: 23.0668185 | G79: 8.274703291 | H79: 19.80072646 | K79: 0 | L79: -93.7 | M79: 0 | N79: 0 | P79: 8.957151549 | Q79: 21.43377248 | R79: 0.756 | S79: 0 | T79: 0
A80: 64 | B80: 0.4021238597 | C80: =$B$2*SIN(B80) -> 39.13736668 | D80: =$B$2*COS(B80) -> 92.02318474 | E80: =C80/$B$4 -> 9.784341671 | F80: =D80/$B$4 -> 23.00579618 | G80: =C80*(1-PI()/$B$4) -> 8.39895077 | H80: =D80*(1-PI()/$B$4) -> 19.74834445 | K80: 0 | L80: -93.6 | M80: 0 | N80: 0 | P80: 9.091646221 | Q80: 21.37707032 | R80: 0.768 | S80: 0 | T80: 0
A81: 65 | B81: 0.408407045 | C81: 39.71478906 | D81: 91.77546257 | E81: 9.928697266 | F81: 22.94386564 | G81: 8.522866673 | H81: 19.69518282 | K81: =IF(($B$5<=(1-PI()/$B$4)*$B$2/$B$3+($B$2*PI()/($B$4*$B$3))*(($B$4-PI())/(PI()-($B$4-1)))),$C$9+(A81/1000)*($C$10-$C$9),) -> 0 | L81: =IF(($B$5<=(1-PI()/$B$4)*$B$2/$B$3+($B$2*PI()/($B$4*$B$3))*(($B$4-PI())/(PI()-($B$4-1)))),$D$9+(A81/1000)*($D$10-$D$9),) -> -93.5 | M81: =IF(AND($B$5>=$G$13,$B$5<=$J$13),$G$9+(A81/1000)*($G$10-$G$9),) -> 0 | N81: =IF(AND($B$5>=$G$13,$B$5<=$J$13),$H$9+(A81/1000)*($H$10-$H$9),) -> 0 | P81: =(E81+G81)/2 -> 9.22578197 | Q81: 21.31952423 | R81: 0.78 | S81: =($B$5>=R81)*((R81>=0)*(R81<=(1-PI()/$B$4)*$B$2/$B$3)*0+(R81>=(1-PI()/$B$4)*$B$2/$B$3)*(R81<=(1-PI()/$B$4)*$B$2/$B$3+($B$2*PI()/($B$4*$B$3))*(($B$4-PI())/(PI()-($B$4-1))))*(1-PI()/$B$4)*$B$2*SIN(R81*$B$3/((1-PI()/$B$4)*$B$2)-1+PI())+(R81>=(1-PI()/$B$4)*$B$2/$B$3+($B$2*PI()/($B$4*$B$3))*(($B$4-PI())/(PI()-($B$4-1))))*((1-PI()/$B$4)*$B$2+(R81-(1-PI()/$B$4)*$B$2/$B$3-($B$2*PI()/($B$4*$B$3))*(($B$4-PI())/(PI()-($B$4-1))))*$B$3)*SIN(PI()/(PI()-($B$4-1))+PI())) -> 0 | T81: =($B$5>=R81)*((R81>=0)*(R81<=(1-PI()/$B$4)*$B$2/$B$3)*(-R81*$B$3) + (R81>=(1-PI()/$B$4)*$B$2/$B$3)*(R81<=(1-PI()/$B$4)*$B$2/$B$3+($B$2*PI()/($B$4*$B$3))*(($B$4-PI())/(PI()-($B$4-1))))*(1-PI()/$B$4)*$B$2*COS(R81*$B$3/((1-PI()/$B$4)*$B$2)-1+PI())+(R81>=(1-PI()/$B$4)*$B$2/$B$3+($B$2*PI()/($B$4*$B$3))*(($B$4-PI())/(PI()-($B$4-1))))*((1-PI()/$B$4)*$B$2+(R81-(1-PI()/$B$4)*$B$2/$B$3-($B$2*PI()/($B$4*$B$3))*(($B$4-PI())/(PI()-($B$4-1))))*$B$3)*COS(PI()/(PI()-($B$4-1))+PI())) -> 0
A82: =A81+1 -> 66 | B82: =2*PI()*(A82/1000) -> 0.4146902303 | C82: 40.29064357 | D82: 91.52411726 | E82: 10.07266089 | F82: 22.88102932 | G82: 8.646446108 | H82: 19.64124366 | K82: 0 | L82: -93.4 | M82: 0 | N82: 0 | P82: 9.359553501 | Q82: 21.26113649 | R82: =R81+6*$B$2/($B$3*1000) -> 0.792 | S82: 0 | T82: 0
A83: 67 | B83: 0.4209734156 | C83: 40.86490747 | D83: 91.26915874 | E83: 10.21622687 | F83: 22.81728969 | G83: 8.769684196 | H83: 19.58652909 | K83: 0 | L83: -93.3 | M83: 0 | N83: 0 | P83: 9.492955532 | Q83: 21.20190939 | R83: 0.804 | S83: 0 | T83: 0
A84: 68 | B84: 0.4272566009 | C84: 41.4375581 | D84: 91.01059707 | E84: 10.35938952 | F84: 22.75264927 | G84: 8.892576072 | H84: 19.53104128 | K84: 0 | L84: -93.2 | M84: 0 | N84: 0 | P84: 9.625982799 | Q84: 21.14184527 | R84: 0.816 | S84: 0 | T84: 0
A85: 69 | B85: 0.4335397862 | C85: 42.00857284 | D85: 90.74844245 | E85: 10.50214321 | F85: 22.68711061 | G85: 9.015116885 | H85: 19.47478242 | K85: 0 | L85: -93.1 | M85: 0 | N85: 0 | P85: 9.758630048 | Q85: 21.08094652 | R85: 0.828 | S85: 0 | T85: 0
A86: 70 | B86: 0.4398229715 | C86: 42.57792916 | D86: 90.48270525 | E86: 10.64448229 | F86: 22.62067631 | G86: 9.137301796 | H86: 19.41775473 | K86: 0 | L86: -93 | M86: 0 | N86: 0 | P86: 9.890892042 | Q86: 21.01921552 | R86: 0.84 | S86: 0 | T86: 0
A87: 71 | B87: 0.4461061568 | C87: 43.14560457 | D87: 90.21339594 | E87: 10.78640114 | F87: 22.55334898 | G87: 9.259125982 | H87: 19.35996045 | K87: 0 | L87: -92.9 | M87: 0 | N87: 0 | P87: 10.02276356 | Q87: 20.95665472 | R87: 0.852 | S87: 0 | T87: 0
A88: 72 | B88: 0.4523893421 | C88: 43.71157667 | D88: 89.94052516 | E88: 10.92789417 | F88: 22.48513129 | G88: 9.380584633 | H88: 19.30140188 | K88: 0 | L88: -92.8 | M88: 0 | N88: 0 | P88: 10.1542394 | Q88: 20.89326659 | R88: 0.864 | S88: 0 | T88: 0
A89: 73 | B89: 0.4586725274 | C89: 44.2758231 | D89: 89.66410368 | E89: 11.06895578 | F89: 22.41602592 | G89: 9.501672955 | H89: 19.24208133 | K89: 0 | L89: -92.7 | M89: 0 | N89: 0 | P89: 10.28531437 | Q89: 20.82905362 | R89: 0.876 | S89: 0 | T89: 0
A90: 74 | B90: 0.4649557127 | C90: 44.83832161 | D90: 89.38414242 | E90: 11.2095804 | F90: 22.3460356 | G90: 9.622386167 | H90: 19.18200113 | K90: 0 | L90: -92.6 | M90: 0 | N90: 0 | P90: 10.41598328 | Q90: 20.76401836 | R90: 0.888 | S90: 0 | T90: 0
A91: 75 | B91: 0.471238898 | C91: 45.39904997 | D91: 89.10065242 | E91: 11.34976249 | F91: 22.2751631 | G91: 9.742719504 | H91: 19.12116365 | K91: 0 | L91: -92.5 | M91: 0 | N91: 0 | P91: 10.546241 | Q91: 20.69816338 | R91: 0.9 | S91: 0 | T91: 0
A92: 76 | B92: 0.4775220833 | C92: 45.95798606 | D92: 88.81364488 | E92: 11.48949652 | F92: 22.20341122 | G92: 9.862668215 | H92: 19.05957131 | K92: 0 | L92: -92.4 | M92: 0 | N92: 0 | P92: 10.67608237 | Q92: 20.63149126 | R92: 0.912 | S92: 0 | T92: 0
A93: 77 | B93: 0.4838052687 | C93: 46.51510781 | D93: 88.52313113 | E93: 11.62877695 | F93: 22.13078278 | G93: 9.982227565 | H93: 18.99722652 | K93: 0 | L93: -92.3 | M93: 0 | N93: 0 | P93: 10.80550226 | Q93: 20.56400465 | R93: 0.924 | S93: 0 | T93: 0
A94: 78 | B94: 0.490088454 | C94: 47.07039322 | D94: 88.22912264 | E94: 11.7675983 | F94: 22.05728066 | G94: 10.10139283 | H94: 18.93413176 | K94: 0 | L94: -92.2 | M94: 0 | N94: 0 | P94: 10.93449557 | Q94: 20.49570621 | R94: 0.936 | S94: 0 | T94: 0
A95: 79 | B95: 0.4963716393 | C95: 47.62382037 | D95: 87.93163102 | E95: 11.90595509 | F95: 21.98290775 | G95: 10.22015932 | H95: 18.87028951 | K95: 0 | L95: -92.1 | M95: 0 | N95: 0 | P95: 11.0630572 | Q95: 20.42659863 | R95: 0.948 | S95: 0 | T95: 0
A96: 80 | B96: 0.5026548246 | C96: 48.17536741 | D96: 87.630668 | E96: 12.04384185 | F96: 21.907667 | G96: 10.33852233 | H96: 18.8057023 | K96: 0 | L96: -92 | M96: 0 | N96: 0 | P96: 11.19118209 | Q96: 20.35668465 | R96: 0.96 | S96: 0 | T96: 0
A97: 81 | B97: 0.5089380099 | C97: 48.72501257 | D97: 87.32624548 | E97: 12.18125314 | F97: 21.83156137 | G97: 10.45647719 | H97: 18.74037266 | K97: 0 | L97: -91.9 | M97: 0 | N97: 0 | P97: 11.31886516 | Q97: 20.28596702 | R97: 0.972 | S97: 0 | T97: 0
A98: 82 | B98: 0.5152211952 | C98: 49.27273415 | D98: 87.01837547 | E98: 12.31818354 | F98: 21.75459387 | G98: 10.57401924 | H98: 18.67430319 | K98: 0 | L98: -91.8 | M98: 0 | N98: 0 | P98: 11.44610139 | Q98: 20.21444853 | R98: 0.984 | S98: 0 | T98: 0
A99: 83 | B99: 0.5215043805 | C99: 49.81851053 | D99: 86.70707012 | E99: 12.45462763 | F99: 21.67676753 | G99: 10.69114386 | H99: 18.60749649 | K99: 0 | L99: -91.7 | M99: 0 | N99: 0 | P99: 11.57288575 | Q99: 20.14213201 | R99: 0.996 | S99: 0 | T99: 0
A100: 84 | B100: 0.5277875658 | C100: 50.36232016 | D100: 86.39234172 | E100: 12.59058004 | F100: 21.59808543 | G100: 10.8078464 | H100: 18.5399552 | K100: 0 | L100: -91.6 | M100: 0 | N100: 0 | P100: 11.69921322 | Q100: 20.06902032 | R100: 1.008 | S100: 0 | T100: 0
A101: 85 | B101: 0.5340707511 | C101: 50.90414158 | D101: 86.0742027 | E101: 12.72603539 | F101: 21.51855068 | G101: 10.92412227 | H101: 18.47168198 | K101: 0 | L101: -91.5 | M101: 0 | N101: 0 | P101: 11.82507883 | Q101: 19.99511633 | R101: 1.02 | S101: 0 | T101: 0
A102: 86 | B102: 0.5403539364 | C102: 51.44395338 | D102: 85.75266562 | E102: 12.86098834 | F102: 21.4381664 | G102: 11.03996688 | H102: 18.40267954 | K102: 0 | L102: -91.4 | M102: 0 | N102: 0 | P102: 11.95047761 | Q102: 19.92042297 | R102: 1.032 | S102: 0 | T102: 0
A103: 87 | B103: 0.5466371217 | C103: 51.98173426 | D103: 85.42774317 | E103: 12.99543357 | F103: 21.35693579 | G103: 11.15537564 | H103: 18.33295058 | K103: 0 | L103: -91.3 | M103: 0 | N103: 0 | P103: 12.0754046 | Q103: 19.84494319 | R103: 1.044 | S103: 0 | T103: 0
A104: 88 | B104: 0.552920307 | C104: 52.517463 | D104: 85.09944818 | E104: 13.12936575 | F104: 21.27486204 | G104: 11.27034401 | H104: 18.26249787 | K104: 0 | L104: -91.2 | M104: 0 | N104: 0 | P104: 12.19985488 | Q104: 19.76867996 | R104: 1.056 | S104: 0 | T104: 0
A105: 89 | B105: 0.5592034923 | C105: 53.05111843 | D105: 84.76779361 | E105: 13.26277961 | F105: 21.1919484 | G105: 11.38486745 | H105: 18.19132419 | K105: 0 | L105: -91.1 | M105: 0 | N105: 0 | P105: 12.32382353 | Q105: 19.6916363 | R105: 1.068 | S105: 0 | T105: 0
A106: 90 | B106: 0.5654866776 | C106: 53.5826795 | D106: 84.43279255 | E106: 13.39566987 | F106: 21.10819814 | G106: 11.49894143 | H106: 18.11943235 | K106: 0 | L106: -91 | M106: 0 | N106: 0 | P106: 12.44730565 | Q106: 19.61381524 | R106: 1.08 | S106: 0 | T106: 0
A107: 91 | B107: 0.571769863 | C107: 54.11212521 | D107: 84.09445823 | E107: 13.5280313 | F107: 21.02361456 | G107: 11.61256145 | H107: 18.04682518 | K107: 0 | L107: -90.9 | M107: 0 | N107: 0 | P107: 12.57029638 | Q107: 19.53521987 | R107: 1.092 | S107: 0 | T107: 0
A108: 92 | B108: 0.5780530483 | C108: 54.63943467 | D108: 83.752804 | E108: 13.65985867 | F108: 20.938201 | G108: 11.72572303 | H108: 17.97350556 | K108: 0 | L108: -90.8 | M108: 0 | N108: 0 | P108: 12.69279085 | Q108: 19.45585328 | R108: 1.104 | S108: 0 | T108: 0
A109: 93 | B109: 0.5843362336 | C109: 55.16458706 | D109: 83.40784336 | E109: 13.79114677 | F109: 20.85196084 | G109: 11.8384217 | H109: 17.89947637 | K109: 0 | L109: -90.7 | M109: 0 | N109: 0 | P109: 12.81478423 | Q109: 19.37571861 | R109: 1.116 | S109: 0 | T109: 0
A110: 94 | B110: 0.5906194189 | C110: 55.68756165 | D110: 83.05958992 | E110: 13.92189041 | F110: 20.76489748 | G110: 11.95065301 | H110: 17.82474054 | K110: 0 | L110: -90.6 | M110: 0 | N110: 0 | P110: 12.93627171 | Q110: 19.29481901 | R110: 1.128 | S110: 0 | T110: 0
A111: 95 | B111: 0.5969026042 | C111: 56.20833779 | D111: 82.70805743 | E111: 14.05208445 | F111: 20.67701436 | G111: 12.06241252 | H111: 17.74930103 | K111: 0 | L111: -90.5 | M111: 0 | N111: 0 | P111: 13.05724848 | Q111: 19.21315769 | R111: 1.14 | S111: 0 | T111: 0
A112: 96 | B112: 0.6031857895 | C112: 56.72689491 | D112: 82.35325976 | E112: 14.18172373 | F112: 20.58831494 | G112: 12.17369583 | H112: 17.6731608 | K112: 0 | L112: -90.4 | M112: 0 | N112: 0 | P112: 13.17770978 | Q112: 19.13073787 | R112: 1.152 | S112: 0 | T112: 0
A113: 97 | B113: 0.6094689748 | C113: 57.24321256 | D113: 81.99521093 | E113: 14.31080314 | F113: 20.49880273 | G113: 12.28449855 | H113: 17.59632286 | K113: 0 | L113: -90.3 | M113: 0 | N113: 0 | P113: 13.29765084 | Q113: 19.0475628 | R113: 1.164 | S113: 0 | T113: 0
A114: 98 | B114: 0.6157521601 | C114: 57.75727034 | D114: 81.63392507 | E114: 14.43931759 | F114: 20.40848127 | G114: 12.39481629 | H114: 17.51879025 | K114: 0 | L114: -90.2 | M114: 0 | N114: 0 | P114: 13.41706694 | Q114: 18.96363576 | R114: 1.176 | S114: 0 | T114: 0
A115: 99 | B115: 0.6220353454 | C115: 58.26904797 | D115: 81.26941644 | E115: 14.56726199 | F115: 20.31735411 | G115: 12.50464471 | H115: 17.44056603 | K115: 0 | L115: -90.1 | M115: 0 | N115: 0 | P115: 13.53595335 | Q115: 18.87896007 | R115: 1.188 | S115: 0 | T115: 0
A116: 100 | B116: 0.6283185307 | C116: 58.77852523 | D116: 80.90169944 | E116: 14.69463131 | F116: 20.22542486 | G116: 12.61397947 | H116: 17.36165328 | K116: 0 | L116: -90 | M116: 0 | N116: 0 | P116: 13.65430539 | Q116: 18.79353907 | R116: 1.2 | S116: 0 | T116: 0
A117: 101 | B117: 0.634601716 | C117: 59.28568202 | D117: 80.53078857 | E117: 14.8214205 | F117: 20.13269714 | G117: 12.72281624 | H117: 17.28205513 | K117: 0 | L117: -89.9 | M117: 0 | N117: 0 | P117: 13.77211837 | Q117: 18.70737614 | R117: 1.212 | S117: 0 | T117: 0
A118: 102 | B118: 0.6408849013 | C118: 59.79049831 | D118: 80.15669849 | E118: 14.94762458 | F118: 20.03917462 | G118: 12.83115075 | H118: 17.20177471 | K118: 0 | L118: -89.8 | M118: 0 | N118: 0 | P118: 13.88938766 | Q118: 18.62047467 | R118: 1.224 | S118: 0 | T118: 0
A119: 103 | B119: 0.6471680866 | C119: 60.29295417 | D119: 79.77944395 | E119: 15.07323854 | F119: 19.94486099 | G119: 12.9389787 | H119: 17.1208152 | K119: 0 | L119: -89.7 | M119: 0 | N119: 0 | P119: 14.00610862 | Q119: 18.53283809 | R119: 1.236 | S119: 0 | T119: 0
A120: 104 | B120: 0.6534512719 | C120: 60.79302977 | D120: 79.39903986 | E120: 15.19825744 | F120: 19.84975997 | G120: 13.04629584 | H120: 17.03917978 | K120: 0 | L120: -89.6 | M120: 0 | N120: 0 | P120: 14.12227664 | Q120: 18.44446987 | R120: 1.248 | S120: 0 | T120: 0
A121: 105 | B121: 0.6597344573 | C121: 61.29070537 | D121: 79.01550124 | E121: 15.32267634 | F121: 19.75387531 | G121: 13.15309794 | H121: 16.95687169 | K121: 0 | L121: -89.5 | M121: 0 | N121: 0 | P121: 14.23788714 | Q121: 18.3553735 | R121: 1.26 | S121: 0 | T121: 0
A122: 106 | B122: 0.6660176426 | C122: 61.78596131 | D122: 78.62884321 | E122: 15.44649033 | F122: 19.6572108 | G122: 13.25938077 | H122: 16.87389416 | K122: 0 | L122: -89.4 | M122: 0 | N122: 0 | P122: 14.35293555 | Q122: 18.26555248 | R122: 1.272 | S122: 0 | T122: 0
A123: 107 | B123: 0.6723008279 | C123: 62.27877805 | D123: 78.23908106 | E123: 15.56969451 | F123: 19.55977026 | G123: 13.36514015 | H123: 16.79025049 | K123: 0 | L123: -89.3 | M123: 0 | N123: 0 | P123: 14.46741733 | Q123: 18.17501038 | R123: 1.284 | S123: 0 | T123: 0
A124: 108 | B124: 0.6785840132 | C124: 62.76913613 | D124: 77.84623016 | E124: 15.69228403 | F124: 19.46155754 | G124: 13.4703719 | H124: 16.70594396 | K124: 0 | L124: -89.2 | M124: 0 | N124: 0 | P124: 14.58132796 | Q124: 18.08375075 | R124: 1.296 | S124: 0 | T124: 0
A125: 109 | B125: 0.6848671985 | C125: 63.25701619 | D125: 77.45030602 | E125: 15.81425405 | F125: 19.3625765 | G125: 13.57507185 | H125: 16.62097792 | K125: 0 | L125: -89.1 | M125: 0 | N125: 0 | P125: 14.69466295 | Q125: 17.99177721 | R125: 1.308 | S125: 0 | T125: 0
A126: 110 | B126: 0.6911503838 | C126: 63.74239897 | D126: 77.05132428 | E126: 15.93559974 | F126: 19.26283107 | G126: 13.67923589 | H126: 16.5353557 | K126: 0 | L126: -89 | M126: 0 | N126: 0 | P126: 14.80741782 | Q126: 17.89909339 | R126: 1.32 | S126: 0 | T126: 0
A127: 111 | B127: 0.6974335691 | C127: 64.22526532 | D127: 76.64930068 | E127: 16.05631633 | F127: 19.16232517 | G127: 13.78285989 | H127: 16.4490807 | K127: 0 | L127: -88.9 | M127: 0 | N127: 0 | P127: 14.91958811 | Q127: 17.80570294 | R127: 1.332 | S127: 0 | T127: 0
A128: 112 | B128: 0.7037167544 | C128: 64.70559616 | D128: 76.2442511 | E128: 16.17639904 | F128: 19.06106278 | G128: 13.88593977 | H128: 16.36215632 | K128: 0 | L128: -88.8 | M128: 0 | N128: 0 | P128: 15.03116941 | Q128: 17.71160955 | R128: 1.344 | S128: 0 | T128: 0
A129: 113 | B129: 0.7099999397 | C129: 65.18337253 | D129: 75.83619153 | E129: 16.29584313 | F129: 18.95904788 | G129: 13.98847146 | H129: 16.27458598 | K129: 0 | L129: -88.7 | M129: 0 | N129: 0 | P129: 15.1421573 | Q129: 17.61681693 | R129: 1.356 | S129: 0 | T129: 0
A130: 114 | B130: 0.716283125 | C130: 65.65857558 | D130: 75.42513807 | E130: 16.41464389 | F130: 18.85628452 | G130: 14.09045091 | H130: 16.18637316 | K130: 0 | L130: -88.6 | M130: 0 | N130: 0 | P130: 15.2525474 | Q130: 17.52132884 | R130: 1.368 | S130: 0 | T130: 0
A131: 115 | B131: 0.7225663103 | C131: 66.13118653 | D131: 75.01110696 | E131: 16.53279663 | F131: 18.75277674 | G131: 14.19187409 | H131: 16.09752132 | K131: 0 | L131: -88.5 | M131: 0 | N131: 0 | P131: 15.36233536 | Q131: 17.42514903 | R131: 1.38 | S131: 0 | T131: 0
A132: 116 | B132: 0.7288494956 | C132: 66.60118674 | D132: 74.59411454 | E132: 16.65029669 | F132: 18.64852864 | G132: 14.292737 | H132: 16.00803398 | K132: 0 | L132: -88.4 | M132: 0 | N132: 0 | P132: 15.47151684 | Q132: 17.32828131 | R132: 1.392 | S132: 0 | T132: 0
A133: 117 | B133: 0.7351326809 | C133: 67.06855765 | D133: 74.17417727 | E133: 16.76713941 | F133: 18.54354432 | G133: 14.39303565 | H133: 15.91791467 | K133: 0 | L133: -88.3 | M133: 0 | N133: 0 | P133: 15.58008753 | Q133: 17.23072949 | R133: 1.404 | S133: 0 | T133: 0
A134: 118 | B134: 0.7414158662 | C134: 67.53328081 | D134: 73.75131174 | E134: 16.8833202 | F134: 18.43782793 | G134: 14.49276609 | H134: 15.82716695 | K134: 0 | L134: -88.2 | M134: 0 | N134: 0 | P134: 15.68804315 | Q134: 17.13249744 | R134: 1.416 | S134: 0 | T134: 0
A135: 119 | B135: 0.7476990516 | C135: 67.99533787 | D135: 73.32553462 | E135: 16.99883447 | F135: 18.33138366 | G135: 14.59192439 | H135: 15.7357944 | K135: 0 | L135: -88.1 | M135: 0 | N135: 0 | P135: 15.79537943 | Q135: 17.03358903 | R135: 1.428 | S135: 0 | T135: 0
A136: 120 | B136: 0.7539822369 | C136: 68.45471059 | D136: 72.89686274 | E136: 17.11367765 | F136: 18.22421569 | G136: 14.69050662 | H136: 15.64380063 | K136: 0 | L136: -88 | M136: 0 | N136: 0 | P136: 15.90209213 | Q136: 16.93400816 | R136: 1.44 | S136: 0 | T136: 0
A137: 121 | B137: 0.7602654222 | C137: 68.91138084 | D137: 72.46531302 | E137: 17.22784521 | F137: 18.11632825 | G137: 14.78850889 | H137: 15.55118926 | K137: 0 | L137: -87.9 | M137: 0 | N137: 0 | P137: 16.00817705 | Q137: 16.83375876 | R137: 1.452 | S137: 0 | T137: 0
A138: 122 | B138: 0.7665486075 | C138: 69.36533058 | D138: 72.03090249 | E138: 17.34133265 | F138: 18.00772562 | G138: 14.88592734 | H138: 15.45796397 | K138: 0 | L138: -87.8 | M138: 0 | N138: 0 | P138: 16.11362999 | Q138: 16.73284479 | R138: 1.464 | S138: 0 | T138: 0
A139: 123 | B139: 0.7728317928 | C139: 69.8165419 | D139: 71.5936483 | E139: 17.45413547 | F139: 17.89841208 | G139: 14.98275812 | H139: 15.36412841 | K139: 0 | L139: -87.7 | M139: 0 | N139: 0 | P139: 16.2184468 | Q139: 16.63127025 | R139: 1.476 | S139: 0 | T139: 0
A140: 124 | B140: 0.7791149781 | C140: 70.26499698 | D140: 71.15356772 | E140: 17.56624924 | F140: 17.78839193 | G140: 15.0789974 | H140: 15.26968631 | K140: 0 | L140: -87.6 | M140: 0 | N140: 0 | P140: 16.32262332 | Q140: 16.52903912 | R140: 1.488 | S140: 0 | T140: 0
A141: 125 | B141: 0.7853981634 | C141: 70.71067812 | D141: 70.71067812 | E141: 17.67766953 | F141: 17.67766953 | G141: 15.17464139 | H141: 15.17464139 | K141: 0 | L141: -87.5 | M141: 0 | N141: 0 | P141: 16.42615546 | Q141: 16.42615546 | R141: 1.5 | S141: 0 | T141: 0
A142: 126 | B142: 0.7916813487 | C142: 71.15356772 | D142: 70.26499698 | E142: 17.78839193 | F142: 17.56624924 | G142: 15.26968631 | H142: 15.0789974 | K142: 0 | L142: -87.4 | M142: 0 | N142: 0 | P142: 16.52903912 | Q142: 16.32262332 | R142: 1.512 | S142: 0 | T142: 0
A143: 127 | B143: 0.797964534 | C143: 71.5936483 | D143: 69.8165419 | E143: 17.89841208 | F143: 17.45413547 | G143: 15.36412841 | H143: 14.98275812 | K143: 0 | L143: -87.3 | M143: 0 | N143: 0 | P143: 16.63127025 | Q143: 16.2184468 | R143: 1.524 | S143: 0 | T143: 0
A144: 128 | B144: 0.8042477193 | C144: =$B$2*SIN(B144) -> 72.03090249 | D144: =$B$2*COS(B144) -> 69.36533058 | E144: =C144/$B$4 -> 18.00772562 | F144: =D144/$B$4 -> 17.34133265 | G144: =C144*(1-PI()/$B$4) -> 15.45796397 | H144: =D144*(1-PI()/$B$4) -> 14.88592734 | K144: 0 | L144: -87.2 | M144: 0 | N144: 0 | P144: 16.73284479 | Q144: 16.11362999 | R144: 1.536 | S144: 0 | T144: 0
A145: 129 | B145: 0.8105309046 | C145: 72.46531302 | D145: 68.91138084 | E145: 18.11632825 | F145: 17.22784521 | G145: 15.55118926 | H145: 14.78850889 | K145: =IF(($B$5<=(1-PI()/$B$4)*$B$2/$B$3+($B$2*PI()/($B$4*$B$3))*(($B$4-PI())/(PI()-($B$4-1)))),$C$9+(A145/1000)*($C$10-$C$9),) -> 0 | L145: =IF(($B$5<=(1-PI()/$B$4)*$B$2/$B$3+($B$2*PI()/($B$4*$B$3))*(($B$4-PI())/(PI()-($B$4-1)))),$D$9+(A145/1000)*($D$10-$D$9),) -> -87.1 | M145: =IF(AND($B$5>=$G$13,$B$5<=$J$13),$G$9+(A145/1000)*($G$10-$G$9),) -> 0 | N145: =IF(AND($B$5>=$G$13,$B$5<=$J$13),$H$9+(A145/1000)*($H$10-$H$9),) -> 0 | P145: =(E145+G145)/2 -> 16.83375876 | Q145: 16.00817705 | R145: 1.548 | S145: =($B$5>=R145)*((R145>=0)*(R145<=(1-PI()/$B$4)*$B$2/$B$3)*0+(R145>=(1-PI()/$B$4)*$B$2/$B$3)*(R145<=(1-PI()/$B$4)*$B$2/$B$3+($B$2*PI()/($B$4*$B$3))*(($B$4-PI())/(PI()-($B$4-1))))*(1-PI()/$B$4)*$B$2*SIN(R145*$B$3/((1-PI()/$B$4)*$B$2)-1+PI())+(R145>=(1-PI()/$B$4)*$B$2/$B$3+($B$2*PI()/($B$4*$B$3))*(($B$4-PI())/(PI()-($B$4-1))))*((1-PI()/$B$4)*$B$2+(R145-(1-PI()/$B$4)*$B$2/$B$3-($B$2*PI()/($B$4*$B$3))*(($B$4-PI())/(PI()-($B$4-1))))*$B$3)*SIN(PI()/(PI()-($B$4-1))+PI())) -> 0 | T145: =($B$5>=R145)*((R145>=0)*(R145<=(1-PI()/$B$4)*$B$2/$B$3)*(-R145*$B$3) + (R145>=(1-PI()/$B$4)*$B$2/$B$3)*(R145<=(1-PI()/$B$4)*$B$2/$B$3+($B$2*PI()/($B$4*$B$3))*(($B$4-PI())/(PI()-($B$4-1))))*(1-PI()/$B$4)*$B$2*COS(R145*$B$3/((1-PI()/$B$4)*$B$2)-1+PI())+(R145>=(1-PI()/$B$4)*$B$2/$B$3+($B$2*PI()/($B$4*$B$3))*(($B$4-PI())/(PI()-($B$4-1))))*((1-PI()/$B$4)*$B$2+(R145-(1-PI()/$B$4)*$B$2/$B$3-($B$2*PI()/($B$4*$B$3))*(($B$4-PI())/(PI()-($B$4-1))))*$B$3)*COS(PI()/(PI()-($B$4-1))+PI())) -> 0
A146: =A145+1 -> 130 | B146: =2*PI()*(A146/1000) -> 0.8168140899 | C146: 72.89686274 | D146: 68.45471059 | E146: 18.22421569 | F146: 17.11367765 | G146: 15.64380063 | H146: 14.69050662 | K146: 0 | L146: -87 | M146: 0 | N146: 0 | P146: 16.93400816 | Q146: 15.90209213 | R146: =R145+6*$B$2/($B$3*1000) -> 1.56 | S146: 0 | T146: 0
A147: 131 | B147: 0.8230972752 | C147: 73.32553462 | D147: 67.99533787 | E147: 18.33138366 | F147: 16.99883447 | G147: 15.7357944 | H147: 14.59192439 | K147: 0 | L147: -86.9 | M147: 0 | N147: 0 | P147: 17.03358903 | Q147: 15.79537943 | R147: 1.572 | S147: 0 | T147: 0
A148: 132 | B148: 0.8293804605 | C148: 73.75131174 | D148: 67.53328081 | E148: 18.43782793 | F148: 16.8833202 | G148: 15.82716695 | H148: 14.49276609 | K148: 0 | L148: -86.8 | M148: 0 | N148: 0 | P148: 17.13249744 | Q148: 15.68804315 | R148: 1.584 | S148: 0 | T148: 0
A149: 133 | B149: 0.8356636459 | C149: 74.17417727 | D149: 67.06855765 | E149: 18.54354432 | F149: 16.76713941 | G149: 15.91791467 | H149: 14.39303565 | K149: 0 | L149: -86.7 | M149: 0 | N149: 0 | P149: 17.23072949 | Q149: 15.58008753 | R149: 1.596 | S149: 0 | T149: 0
A150: 134 | B150: 0.8419468312 | C150: 74.59411454 | D150: 66.60118674 | E150: 18.64852864 | F150: 16.65029669 | G150: 16.00803398 | H150: 14.292737 | K150: 0 | L150: -86.6 | M150: 0 | N150: 0 | P150: 17.32828131 | Q150: 15.47151684 | R150: 1.608 | S150: 0 | T150: 0
A151: 135 | B151: 0.8482300165 | C151: 75.01110696 | D151: 66.13118653 | E151: 18.75277674 | F151: 16.53279663 | G151: 16.09752132 | H151: 14.19187409 | K151: 0 | L151: -86.5 | M151: 0 | N151: 0 | P151: 17.42514903 | Q151: 15.36233536 | R151: 1.62 | S151: 0 | T151: 0
A152: 136 | B152: 0.8545132018 | C152: 75.42513807 | D152: 65.65857558 | E152: 18.85628452 | F152: 16.41464389 | G152: 16.18637316 | H152: 14.09045091 | K152: 0 | L152: -86.4 | M152: 0 | N152: 0 | P152: 17.52132884 | Q152: 15.2525474 | R152: 1.632 | S152: 0 | T152: 0
A153: 137 | B153: 0.8607963871 | C153: 75.83619153 | D153: 65.18337253 | E153: 18.95904788 | F153: 16.29584313 | G153: 16.27458598 | H153: 13.98847146 | K153: 0 | L153: -86.3 | M153: 0 | N153: 0 | P153: 17.61681693 | Q153: 15.1421573 | R153: 1.644 | S153: 0 | T153: 0
A154: 138 | B154: 0.8670795724 | C154: 76.2442511 | D154: 64.70559616 | E154: 19.06106278 | F154: 16.17639904 | G154: 16.36215632 | H154: 13.88593977 | K154: 0 | L154: -86.2 | M154: 0 | N154: 0 | P154: 17.71160955 | Q154: 15.03116941 | R154: 1.656 | S154: 0 | T154: 0
A155: 139 | B155: 0.8733627577 | C155: 76.64930068 | D155: 64.22526532 | E155: 19.16232517 | F155: 16.05631633 | G155: 16.4490807 | H155: 13.78285989 | K155: 0 | L155: -86.1 | M155: 0 | N155: 0 | P155: 17.80570294 | Q155: 14.91958811 | R155: 1.668 | S155: 0 | T155: 0
A156: 140 | B156: 0.879645943 | C156: 77.05132428 | D156: 63.74239897 | E156: 19.26283107 | F156: 15.93559974 | G156: 16.5353557 | H156: 13.67923589 | K156: 0 | L156: -86 | M156: 0 | N156: 0 | P156: 17.89909339 | Q156: 14.80741782 | R156: 1.68 | S156: 0 | T156: 0
A157: 141 | B157: 0.8859291283 | C157: 77.45030602 | D157: 63.25701619 | E157: 19.3625765 | F157: 15.81425405 | G157: 16.62097792 | H157: 13.57507185 | K157: 0 | L157: -85.9 | M157: 0 | N157: 0 | P157: 17.99177721 | Q157: 14.69466295 | R157: 1.692 | S157: 0 | T157: 0
A158: 142 | B158: 0.8922123136 | C158: 77.84623016 | D158: 62.76913613 | E158: 19.46155754 | F158: 15.69228403 | G158: 16.70594396 | H158: 13.4703719 | K158: 0 | L158: -85.8 | M158: 0 | N158: 0 | P158: 18.08375075 | Q158: 14.58132796 | R158: 1.704 | S158: 0 | T158: 0
A159: 143 | B159: 0.8984954989 | C159: 78.23908106 | D159: 62.27877805 | E159: 19.55977026 | F159: 15.56969451 | G159: 16.79025049 | H159: 13.36514015 | K159: 0 | L159: -85.7 | M159: 0 | N159: 0 | P159: 18.17501038 | Q159: 14.46741733 | R159: 1.716 | S159: 0 | T159: 0
A160: 144 | B160: 0.9047786842 | C160: 78.62884321 | D160: 61.78596131 | E160: 19.6572108 | F160: 15.44649033 | G160: 16.87389416 | H160: 13.25938077 | K160: 0 | L160: -85.6 | M160: 0 | N160: 0 | P160: 18.26555248 | Q160: 14.35293555 | R160: 1.728 | S160: 0 | T160: 0
A161: 145 | B161: 0.9110618695 | C161: 79.01550124 | D161: 61.29070537 | E161: 19.75387531 | F161: 15.32267634 | G161: 16.95687169 | H161: 13.15309794 | K161: 0 | L161: -85.5 | M161: 0 | N161: 0 | P161: 18.3553735 | Q161: 14.23788714 | R161: 1.74 | S161: 0 | T161: 0
A162: 146 | B162: 0.9173450548 | C162: 79.39903986 | D162: 60.79302977 | E162: 19.84975997 | F162: 15.19825744 | G162: 17.03917978 | H162: 13.04629584 | K162: 0 | L162: -85.4 | M162: 0 | N162: 0 | P162: 18.44446987 | Q162: 14.12227664 | R162: 1.752 | S162: 0 | T162: 0
A163: 147 | B163: 0.9236282402 | C163: 79.77944395 | D163: 60.29295417 | E163: 19.94486099 | F163: 15.07323854 | G163: 17.1208152 | H163: 12.9389787 | K163: 0 | L163: -85.3 | M163: 0 | N163: 0 | P163: 18.53283809 | Q163: 14.00610862 | R163: 1.764 | S163: 0 | T163: 0
A164: 148 | B164: 0.9299114255 | C164: 80.15669849 | D164: 59.79049831 | E164: 20.03917462 | F164: 14.94762458 | G164: 17.20177471 | H164: 12.83115075 | K164: 0 | L164: -85.2 | M164: 0 | N164: 0 | P164: 18.62047467 | Q164: 13.88938766 | R164: 1.776 | S164: 0 | T164: 0
A165: 149 | B165: 0.9361946108 | C165: 80.53078857 | D165: 59.28568202 | E165: 20.13269714 | F165: 14.8214205 | G165: 17.28205513 | H165: 12.72281624 | K165: 0 | L165: -85.1 | M165: 0 | N165: 0 | P165: 18.70737614 | Q165: 13.77211837 | R165: 1.788 | S165: 0 | T165: 0
A166: 150 | B166: 0.9424777961 | C166: 80.90169944 | D166: 58.77852523 | E166: 20.22542486 | F166: 14.69463131 | G166: 17.36165328 | H166: 12.61397947 | K166: 0 | L166: -85 | M166: 0 | N166: 0 | P166: 18.79353907 | Q166: 13.65430539 | R166: 1.8 | S166: 0 | T166: 0
A167: 151 | B167: 0.9487609814 | C167: 81.26941644 | D167: 58.26904797 | E167: 20.31735411 | F167: 14.56726199 | G167: 17.44056603 | H167: 12.50464471 | K167: 0 | L167: -84.9 | M167: 0 | N167: 0 | P167: 18.87896007 | Q167: 13.53595335 | R167: 1.812 | S167: 0 | T167: 0
A168: 152 | B168: 0.9550441667 | C168: 81.63392507 | D168: 57.75727034 | E168: 20.40848127 | F168: 14.43931759 | G168: 17.51879025 | H168: 12.39481629 | K168: 0 | L168: -84.8 | M168: 0 | N168: 0 | P168: 18.96363576 | Q168: 13.41706694 | R168: 1.824 | S168: 0 | T168: 0
A169: 153 | B169: 0.961327352 | C169: 81.99521093 | D169: 57.24321256 | E169: 20.49880273 | F169: 14.31080314 | G169: 17.59632286 | H169: 12.28449855 | K169: 0 | L169: -84.7 | M169: 0 | N169: 0 | P169: 19.0475628 | Q169: 13.29765084 | R169: 1.836 | S169: 0 | T169: 0
A170: 154 | B170: 0.9676105373 | C170: 82.35325976 | D170: 56.72689491 | E170: 20.58831494 | F170: 14.18172373 | G170: 17.6731608 | H170: 12.17369583 | K170: 0 | L170: -84.6 | M170: 0 | N170: 0 | P170: 19.13073787 | Q170: 13.17770978 | R170: 1.848 | S170: 0 | T170: 0
A171: 155 | B171: 0.9738937226 | C171: 82.70805743 | D171: 56.20833779 | E171: 20.67701436 | F171: 14.05208445 | G171: 17.74930103 | H171: 12.06241252 | K171: 0 | L171: -84.5 | M171: 0 | N171: 0 | P171: 19.21315769 | Q171: 13.05724848 | R171: 1.86 | S171: 0 | T171: 0
A172: 156 | B172: 0.9801769079 | C172: 83.05958992 | D172: 55.68756165 | E172: 20.76489748 | F172: 13.92189041 | G172: 17.82474054 | H172: 11.95065301 | K172: 0 | L172: -84.4 | M172: 0 | N172: 0 | P172: 19.29481901 | Q172: 12.93627171 | R172: 1.872 | S172: 0 | T172: 0
A173: 157 | B173: 0.9864600932 | C173: 83.40784336 | D173: 55.16458706 | E173: 20.85196084 | F173: 13.79114677 | G173: 17.89947637 | H173: 11.8384217 | K173: 0 | L173: -84.3 | M173: 0 | N173: 0 | P173: 19.37571861 | Q173: 12.81478423 | R173: 1.884 | S173: 0 | T173: 0
A174: 158 | B174: 0.9927432785 | C174: 83.752804 | D174: 54.63943467 | E174: 20.938201 | F174: 13.65985867 | G174: 17.97350556 | H174: 11.72572303 | K174: 0 | L174: -84.2 | M174: 0 | N174: 0 | P174: 19.45585328 | Q174: 12.69279085 | R174: 1.896 | S174: 0 | T174: 0
A175: 159 | B175: 0.9990264638 | C175: 84.09445823 | D175: 54.11212521 | E175: 21.02361456 | F175: 13.5280313 | G175: 18.04682518 | H175: 11.61256145 | K175: 0 | L175: -84.1 | M175: 0 | N175: 0 | P175: 19.53521987 | Q175: 12.57029638 | R175: 1.908 | S175: 0 | T175: 0
A176: 160 | B176: 1.005309649 | C176: 84.43279255 | D176: 53.5826795 | E176: 21.10819814 | F176: 13.39566987 | G176: 18.11943235 | H176: 11.49894143 | K176: 0 | L176: -84 | M176: 0 | N176: 0 | P176: 19.61381524 | Q176: 12.44730565 | R176: 1.92 | S176: 0 | T176: 0
A177: 161 | B177: 1.011592834 | C177: 84.76779361 | D177: 53.05111843 | E177: 21.1919484 | F177: 13.26277961 | G177: 18.19132419 | H177: 11.38486745 | K177: 0 | L177: -83.9 | M177: 0 | N177: 0 | P177: 19.6916363 | Q177: 12.32382353 | R177: 1.932 | S177: 0 | T177: 0
A178: 162 | B178: 1.01787602 | C178: 85.09944818 | D178: 52.517463 | E178: 21.27486204 | F178: 13.12936575 | G178: 18.26249787 | H178: 11.27034401 | K178: 0 | L178: -83.8 | M178: 0 | N178: 0 | P178: 19.76867996 | Q178: 12.19985488 | R178: 1.944 | S178: 0 | T178: 0
A179: 163 | B179: 1.024159205 | C179: 85.42774317 | D179: 51.98173426 | E179: 21.35693579 | F179: 12.99543357 | G179: 18.33295058 | H179: 11.15537564 | K179: 0 | L179: -83.7 | M179: 0 | N179: 0 | P179: 19.84494319 | Q179: 12.0754046 | R179: 1.956 | S179: 0 | T179: 0
A180: 164 | B180: 1.03044239 | C180: 85.75266562 | D180: 51.44395338 | E180: 21.4381664 | F180: 12.86098834 | G180: 18.40267954 | H180: 11.03996688 | K180: 0 | L180: -83.6 | M180: 0 | N180: 0 | P180: 19.92042297 | Q180: 11.95047761 | R180: 1.968 | S180: 0 | T180: 0
A181: 165 | B181: 1.036725576 | C181: 86.0742027 | D181: 50.90414158 | E181: 21.51855068 | F181: 12.72603539 | G181: 18.47168198 | H181: 10.92412227 | K181: 0 | L181: -83.5 | M181: 0 | N181: 0 | P181: 19.99511633 | Q181: 11.82507883 | R181: 1.98 | S181: 0 | T181: 0
A182: 166 | B182: 1.043008761 | C182: 86.39234172 | D182: 50.36232016 | E182: 21.59808543 | F182: 12.59058004 | G182: 18.5399552 | H182: 10.8078464 | K182: 0 | L182: -83.4 | M182: 0 | N182: 0 | P182: 20.06902032 | Q182: 11.69921322 | R182: 1.992 | S182: 0 | T182: 0
A183: 167 | B183: 1.049291946 | C183: 86.70707012 | D183: 49.81851053 | E183: 21.67676753 | F183: 12.45462763 | G183: 18.60749649 | H183: 10.69114386 | K183: 0 | L183: -83.3 | M183: 0 | N183: 0 | P183: 20.14213201 | Q183: 11.57288575 | R183: 2.004 | S183: 0 | T183: 0
A184: 168 | B184: 1.055575132 | C184: 87.01837547 | D184: 49.27273415 | E184: 21.75459387 | F184: 12.31818354 | G184: 18.67430319 | H184: 10.57401924 | K184: 0 | L184: -83.2 | M184: 0 | N184: 0 | P184: 20.21444853 | Q184: 11.44610139 | R184: 2.016 | S184: 0 | T184: 0
A185: 169 | B185: 1.061858317 | C185: 87.32624548 | D185: 48.72501257 | E185: 21.83156137 | F185: 12.18125314 | G185: 18.74037266 | H185: 10.45647719 | K185: 0 | L185: -83.1 | M185: 0 | N185: 0 | P185: 20.28596702 | Q185: 11.31886516 | R185: 2.028 | S185: 0 | T185: 0
A186: 170 | B186: 1.068141502 | C186: 87.630668 | D186: 48.17536741 | E186: 21.907667 | F186: 12.04384185 | G186: 18.8057023 | H186: 10.33852233 | K186: 0 | L186: -83 | M186: 0 | N186: 0 | P186: 20.35668465 | Q186: 11.19118209 | R186: 2.04 | S186: 0 | T186: 0
A187: 171 | B187: 1.074424688 | C187: 87.93163102 | D187: 47.62382037 | E187: 21.98290775 | F187: 11.90595509 | G187: 18.87028951 | H187: 10.22015932 | K187: 0 | L187: -82.9 | M187: 0 | N187: 0 | P187: 20.42659863 | Q187: 11.0630572 | R187: 2.052 | S187: 0 | T187: 0
A188: 172 | B188: 1.080707873 | C188: 88.22912264 | D188: 47.07039322 | E188: 22.05728066 | F188: 11.7675983 | G188: 18.93413176 | H188: 10.10139283 | K188: 0 | L188: -82.8 | M188: 0 | N188: 0 | P188: 20.49570621 | Q188: 10.93449557 | R188: 2.064 | S188: 0 | T188: 0
A189: 173 | B189: 1.086991058 | C189: 88.52313113 | D189: 46.51510781 | E189: 22.13078278 | F189: 11.62877695 | G189: 18.99722652 | H189: 9.982227565 | K189: 0 | L189: -82.7 | M189: 0 | N189: 0 | P189: 20.56400465 | Q189: 10.80550226 | R189: 2.076 | S189: 0 | T189: 0
A190: 174 | B190: 1.093274243 | C190: 88.81364488 | D190: 45.95798606 | E190: 22.20341122 | F190: 11.48949652 | G190: 19.05957131 | H190: 9.862668215 | K190: 0 | L190: -82.6 | M190: 0 | N190: 0 | P190: 20.63149126 | Q190: 10.67608237 | R190: 2.088 | S190: 0 | T190: 0
A191: 175 | B191: 1.099557429 | C191: 89.10065242 | D191: 45.39904997 | E191: 22.2751631 | F191: 11.34976249 | G191: 19.12116365 | H191: 9.742719504 | K191: 0 | L191: -82.5 | M191: 0 | N191: 0 | P191: 20.69816338 | Q191: 10.546241 | R191: 2.1 | S191: 0 | T191: 0
A192: 176 | B192: 1.105840614 | C192: 89.38414242 | D192: 44.83832161 | E192: 22.3460356 | F192: 11.2095804 | G192: 19.18200113 | H192: 9.622386167 | K192: 0 | L192: -82.4 | M192: 0 | N192: 0 | P192: 20.76401836 | Q192: 10.41598328 | R192: 2.112 | S192: 0 | T192: 0
A193: 177 | B193: 1.112123799 | C193: 89.66410368 | D193: 44.2758231 | E193: 22.41602592 | F193: 11.06895578 | G193: 19.24208133 | H193: 9.501672955 | K193: 0 | L193: -82.3 | M193: 0 | N193: 0 | P193: 20.82905362 | Q193: 10.28531437 | R193: 2.124 | S193: 0 | T193: 0
A194: 178 | B194: 1.118406985 | C194: 89.94052516 | D194: 43.71157667 | E194: 22.48513129 | F194: 10.92789417 | G194: 19.30140188 | H194: 9.380584633 | K194: 0 | L194: -82.2 | M194: 0 | N194: 0 | P194: 20.89326659 | Q194: 10.1542394 | R194: 2.136 | S194: 0 | T194: 0
A195: 179 | B195: 1.12469017 | C195: 90.21339594 | D195: 43.14560457 | E195: 22.55334898 | F195: 10.78640114 | G195: 19.35996045 | H195: 9.259125982 | K195: 0 | L195: -82.1 | M195: 0 | N195: 0 | P195: 20.95665472 | Q195: 10.02276356 | R195: 2.148 | S195: 0 | T195: 0
A196: 180 | B196: 1.130973355 | C196: 90.48270525 | D196: 42.57792916 | E196: 22.62067631 | F196: 10.64448229 | G196: 19.41775473 | H196: 9.137301796 | K196: 0 | L196: -82 | M196: 0 | N196: 0 | P196: 21.01921552 | Q196: 9.890892042 | R196: 2.16 | S196: 0 | T196: 0
A197: 181 | B197: 1.137256541 | C197: 90.74844245 | D197: 42.00857284 | E197: 22.68711061 | F197: 10.50214321 | G197: 19.47478242 | H197: 9.015116885 | K197: 0 | L197: -81.9 | M197: 0 | N197: 0 | P197: 21.08094652 | Q197: 9.758630048 | R197: 2.172 | S197: 0 | T197: 0
A198: 182 | B198: 1.143539726 | C198: 91.01059707 | D198: 41.4375581 | E198: 22.75264927 | F198: 10.35938952 | G198: 19.53104128 | H198: 8.892576072 | K198: 0 | L198: -81.8 | M198: 0 | N198: 0 | P198: 21.14184527 | Q198: 9.625982799 | R198: 2.184 | S198: 0 | T198: 0
A199: 183 | B199: 1.149822911 | C199: 91.26915874 | D199: 40.86490747 | E199: 22.81728969 | F199: 10.21622687 | G199: 19.58652909 | H199: 8.769684196 | K199: 0 | L199: -81.7 | M199: 0 | N199: 0 | P199: 21.20190939 | Q199: 9.492955532 | R199: 2.196 | S199: 0 | T199: 0
A200: 184 | B200: 1.156106097 | C200: 91.52411726 | D200: 40.29064357 | E200: 22.88102932 | F200: 10.07266089 | G200: 19.64124366 | H200: 8.646446108 | K200: 0 | L200: -81.6 | M200: 0 | N200: 0 | P200: 21.26113649 | Q200: 9.359553501 | R200: 2.208 | S200: 0 | T200: 0
A201: 185 | B201: 1.162389282 | C201: 91.77546257 | D201: 39.71478906 | E201: 22.94386564 | F201: 9.928697266 | G201: 19.69518282 | H201: 8.522866673 | K201: 0 | L201: -81.5 | M201: 0 | N201: 0 | P201: 21.31952423 | Q201: 9.22578197 | R201: 2.22 | S201: 0 | T201: 0
A202: 186 | B202: 1.168672467 | C202: 92.02318474 | D202: 39.13736668 | E202: 23.00579618 | F202: 9.784341671 | G202: 19.74834445 | H202: 8.39895077 | K202: 0 | L202: -81.4 | M202: 0 | N202: 0 | P202: 21.37707032 | Q202: 9.091646221 | R202: 2.232 | S202: 0 | T202: 0
... 814 more rows

Sheet Spiral-Run Strategy
A1: Variables Key
A2: R | B2: 100 | D2: Move Dog ● and You ● | K2: speed
A3: v | B3: 20 | K3: tangent | L3: =(B5>0)*SQRT(B3^2-L4^2) -> 0
A4: π < k < π +1 | B4: 4 | D4: 0 | G4: 1 | K4: radial | L4: =(B5=0)*0+(B5>0)*(B5<=(B2/(B4*B3))*ASIN(B4-PI()))*B3*COS(((B4*B3)/B2)*B5)+(B5>(B2/(B4*B3))*ASIN(B4-PI()))*B3 -> 0
A5: t | B5: =D4/100 -> 0 | K5: total | L5: =SQRT(L3^2+L4^2) -> 0
A6: Ratio t/R | B6: =TEXT(B5*B3/B2,"0.000") & " R" -> 0.000 R
C8: x | D8: y | F8: Escape Route | G8: x | H8: y
B9: Dog | C9: =(G4=1)*(-B2*SIN(G4*((B4*B3)/B2)*B5))+(G4=-1)*(B5<=J13)*IF(AND(-B2*SIN(G4*((B4*B3)/B2)*B5)<B2*(B4-PI()),-B2*COS(G4*((B4*B3)/B2)*B5)>B2*COS(ASIN((B4-PI())))),B2*(B4-PI()),-B2*SIN(G4*((B4*B3)/B2)*B5))+(G4=-1)*(B5>J13)*B2*(B4-PI()) -> 0 | D9: =(G4=1)*(-B2*COS(G4*((B4*B3)/B2)*B5))+(G4=-1)*(B5<=J13)*IF(AND(-B2*SIN(G4*((B4*B3)/B2)*B5)<B2*(B4-PI()),-B2*COS(G4*((B4*B3)/B2)*B5)>B2*COS(ASIN((B4-PI())))),B2*COS(ASIN((B4-PI()))),-B2*COS(G4*((B4*B3)/B2)*B5))+(G4=-1)*(B5>J13)*B2*COS(ASIN((B4-PI()))) -> -100 | F9: Annulus | G9: =IF($B$5>=$G$13,((B4-PI())*(B2/B4))*(B4-PI()),) -> 0 | H9: =IF($B$5>=$G$13,((B4-PI())*(B2/B4))*COS(ASIN((B4-PI()))),) -> 0
B10: You | C10: =IF(AND(B5>=0,B5<=(B2/(B4*B3))*ASIN(B4-PI())),(B2/B4)*SIN(((B4*B3)/B2)*B5)*SIN(((B4*B3)/B2)*B5),((B4-PI())*(B2/B4)+B3*(B5-((B2/(B4*B3))*ASIN(B4-PI()))))*(B4-PI())) -> 0 | D10: =IF(AND(B5>=0,B5<=(B2/(B4*B3))*ASIN(B4-PI())),(B2/B4)*SIN(((B4*B3)/B2)*B5)*COS(((B4*B3)/B2)*B5),((B4-PI())*(B2/B4)+B3*(B5-((B2/(B4*B3))*ASIN(B4-PI()))))*COS(ASIN((B4-PI())))) -> 0 | F10: Boundary | G10: =IF($B$5>=$G$13,B2*(B4-PI()),) -> 0 | H10: =IF($B$5>=$G$13,B2*COS(ASIN((B4-PI()))),) -> 0
F11: green centr displayed | G11: =B2/(2*B4) -> 12.5 | H11: =0 -> 0
B12: Centre | C12: 0 | D12: 0 | F12: Graph Title: | G12: ="R=" & TEXT(B2,"0") &", v=" & TEXT(B3,"0") &", k=" & TEXT(B4,"0") &" (t=" & TEXT(B5,"0.00") & ", Distance=" & TEXT(B6,"0.000") &")" -> R=100, v=20, k=4 (t=0.00, Distance=0.000 R)
F13: Time to Annulus: | G13: =(B2/(B4*B3))*ASIN(B4-PI()) -> 1.290195978 | H13: Time to Escape: | J13: =(((PI()+ASIN(B4-PI()))/B4)*B2)/B3 -> 5.217186795
A14: N | B14: Radians | C14: Big R Circle | E14: R/k Circle | G14: R(1-PI/k) Circle | I14: R/(2k) Half Circle | K14: Line Between Dog & Human | M14: Escape Route | R14: Escape route
C15: x | D15: y | E15: x | F15: y | G15: x | H15: y | I15: x | J15: y | K15: x | L15: y | M15: x | N15: y | P15: Annulus | R15: t | S15: x | T15: y
A16: 0 | B16: 0 | C16: =$B$2*SIN(B16) -> 0 | D16: =$B$2*COS(B16) -> 100 | E16: =C16/$B$4 -> 0 | F16: =D16/$B$4 -> 25 | G16: =C16*(1-PI()/$B$4) -> 0 | H16: =D16*(1-PI()/$B$4) -> 21.46018366 | I16: =IF($B$5<$G$13,$B$2/(2*$B$4)*(1+SIN(-PI()/2+B16)),) -> 0 | J16: =IF($B$5<$G$13,$B$2/(2*$B$4)*COS(-PI()/2+B16),) -> 7.657177843e-16 | K16: =IF(AND($G$4=1,$B$5>=0,$B$5<=($B$2/($B$4*$B$3))*ASIN($B$4-PI())),$C$9+(A16/1000)*($C$10-$C$9),) -> 0 | L16: =IF(AND($G$4=1,$B$5>=0,$B$5<=($B$2/($B$4*$B$3))*ASIN($B$4-PI())),$D$9+(A16/1000)*($D$10-$D$9),) -> -100 | M16: =IF(AND($B$5>=$G$13,$B$5<=$J$13),$G$9+(A16/1000)*($G$10-$G$9),) -> 0 | N16: =IF(AND($B$5>=$G$13,$B$5<=$J$13),$H$9+(A16/1000)*($H$10-$H$9),) -> 0 | P16: =(E16+G16)/2 -> 0 | Q16: =(F16+H16)/2 -> 23.23009183 | R16: 0 | S16: =($B$5>=R16)*IF(AND(R16>=0,R16<=($B$2/($B$4*$B$3))*ASIN($B$4-PI())),($B$2/$B$4)*SIN((($B$4*$B$3)/$B$2)*R16)*SIN((($B$4*$B$3)/$B$2)*R16),(($B$4-PI())*($B$2/$B$4)+$B$3*(R16-(($B$2/($B$4*$B$3))*ASIN($B$4-PI()))))*($B$4-PI())) -> 0 | T16: =($B$5>=R16)*IF(AND(R16>=0,R16<=($B$2/($B$4*$B$3))*ASIN($B$4-PI())),($B$2/$B$4)*SIN((($B$4*$B$3)/$B$2)*R16)*COS((($B$4*$B$3)/$B$2)*R16),(($B$4-PI())*($B$2/$B$4)+$B$3*(R16-(($B$2/($B$4*$B$3))*ASIN($B$4-PI()))))*COS(ASIN(($B$4-PI())))) -> 0
A17: =A16+1 -> 1 | B17: =2*PI()*(A17/1000) -> 0.006283185307 | C17: 0.6283143966 | D17: 99.99802609 | E17: 0.1570785991 | F17: 24.99950652 | G17: 0.1348374235 | H17: 21.45976005 | I17: =IF($B$5<$G$13,$B$2/(2*$B$4)*(1+SIN(-PI()/2+B17)),) -> 0.0002467392983 | J17: =IF($B$5<$G$13,$B$2/(2*$B$4)*COS(-PI()/2+B17),) -> 0.07853929957 | K17: =IF(AND($G$4=1,$B$5>=0,$B$5<=($B$2/($B$4*$B$3))*ASIN($B$4-PI())),$C$9+(A17/1000)*($C$10-$C$9),) -> 0 | L17: =IF(AND($G$4=1,$B$5>=0,$B$5<=($B$2/($B$4*$B$3))*ASIN($B$4-PI())),$D$9+(A17/1000)*($D$10-$D$9),) -> -99.9 | M17: =IF(AND($B$5>=$G$13,$B$5<=$J$13),$G$9+(A17/1000)*($G$10-$G$9),) -> 0 | N17: =IF(AND($B$5>=$G$13,$B$5<=$J$13),$H$9+(A17/1000)*($H$10-$H$9),) -> 0 | P17: =(E17+G17)/2 -> 0.1459580113 | Q17: =(F17+H17)/2 -> 23.22963329 | R17: =R16+1.25*$B$2/($B$3*1000) -> 0.00625 | S17: =($B$5>=R17)*IF(AND(R17>=0,R17<=($B$2/($B$4*$B$3))*ASIN($B$4-PI())),($B$2/$B$4)*SIN((($B$4*$B$3)/$B$2)*R17)*SIN((($B$4*$B$3)/$B$2)*R17),(($B$4-PI())*($B$2/$B$4)+$B$3*(R17-(($B$2/($B$4*$B$3))*ASIN($B$4-PI()))))*($B$4-PI())) -> 0 | T17: =($B$5>=R17)*IF(AND(R17>=0,R17<=($B$2/($B$4*$B$3))*ASIN($B$4-PI())),($B$2/$B$4)*SIN((($B$4*$B$3)/$B$2)*R17)*COS((($B$4*$B$3)/$B$2)*R17),(($B$4-PI())*($B$2/$B$4)+$B$3*(R17-(($B$2/($B$4*$B$3))*ASIN($B$4-PI()))))*COS(ASIN(($B$4-PI())))) -> 0
A18: =A17+1 -> 2 | B18: =2*PI()*(A18/1000) -> 0.01256637061 | C18: 1.256603988 | D18: 99.99210442 | E18: 0.3141509971 | F18: 24.99802611 | G18: 0.2696695238 | H18: 21.45848925 | I18: 0.0009869474523 | J18: 0.1570754985 | K18: 0 | L18: -99.8 | M18: 0 | N18: 0 | P18: 0.2919102604 | Q18: 23.22825768 | R18: =R17+1.25*$B$2/($B$3*1000) -> 0.0125 | S18: 0 | T18: 0
A19: 3 | B19: 0.01884955592 | C19: 1.884843972 | D19: 99.98223524 | E19: 0.4712109929 | F19: 24.99555881 | G19: 0.404490978 | H19: 21.45637131 | I19: 0.00222059524 | J19: 0.2356054964 | K19: 0 | L19: -99.7 | M19: 0 | N19: 0 | P19: 0.4378509854 | Q19: 23.22596506 | R19: 0.01875 | S19: 0 | T19: 0
A20: 4 | B20: 0.02513274123 | C20: 2.513009544 | D20: 99.96841893 | E20: 0.6282523861 | F20: 24.99210473 | G20: 0.5392964636 | H20: 21.4534063 | I20: 0.003947633959 | J20: 0.314126193 | K20: 0 | L20: -99.6 | M20: 0 | N20: 0 | P20: 0.5837744248 | Q20: 23.22275552 | R20: 0.025 | S20: 0 | T20: 0
A21: 5 | B21: 0.03141592654 | C21: 3.141075908 | D21: 99.95065604 | E21: 0.785268977 | F21: 24.98766401 | G21: 0.6740806587 | H21: 21.44959436 | I21: 0.006167995428 | J21: 0.3926344885 | K21: 0 | L21: -99.5 | M21: 0 | N21: 0 | P21: 0.7296748178 | Q21: 23.21862918 | R21: 0.03125 | S21: 0 | T21: 0
A22: 6 | B22: 0.03769911184 | C22: 3.769018267 | D22: 99.92894726 | E22: 0.9422545667 | F22: 24.98223682 | G22: 0.8088382423 | H22: 21.44493561 | I22: 0.008881591993 | J22: 0.4711272834 | K22: 0 | L22: -99.4 | M22: 0 | N22: 0 | P22: 0.8755464045 | Q22: 23.21358621 | R22: 0.0375 | S22: 0 | T22: 0
A23: 7 | B23: 0.04398229715 | C23: 4.396811832 | D23: 99.90329347 | E23: 1.099202958 | F23: 24.97582337 | G23: 0.9435638943 | H23: 21.43943026 | I23: 0.01208831652 | J23: 0.549601479 | K23: 0 | L23: -99.3 | M23: 0 | N23: 0 | P23: 1.021383426 | Q23: 23.20762681 | R23: 0.04375 | S23: 0 | T23: 0
A24: 8 | B24: 0.05026548246 | C24: 5.024431818 | D24: 99.87369566 | E24: 1.256107954 | F24: 24.96842392 | G24: 1.078252296 | H24: 21.43307852 | I24: 0.01578804242 | J24: 0.6280539772 | K24: 0 | L24: -99.2 | M24: 0 | N24: 0 | P24: 1.167180125 | Q24: 23.20075122 | R24: 0.05 | S24: 0 | T24: 0
A25: 9 | B25: 0.05654866776 | C25: 5.651853448 | D25: 99.84015501 | E25: 1.412963362 | F25: 24.96003875 | G25: 1.21289813 | H25: 21.42588063 | I25: 0.01998062364 | J25: 0.706481681 | K25: 0 | L25: -99.1 | M25: 0 | N25: 0 | P25: 1.312930746 | Q25: 23.19295969 | R25: 0.05625 | S25: 0 | T25: 0
A26: 10 | B26: 0.06283185307 | C26: 6.279051953 | D26: 99.80267284 | E26: 1.569762988 | F26: 24.95066821 | G26: 1.347496081 | H26: 21.41783689 | I26: 0.02466589465 | J26: 0.7848814941 | K26: 0 | L26: -99 | M26: 0 | N26: 0 | P26: 1.458629535 | Q26: 23.18425255 | R26: 0.0625 | S26: 0 | T26: 0
A27: 11 | B27: 0.06911503838 | C27: 6.906002571 | D27: 99.76125064 | E27: 1.726500643 | F27: 24.94031266 | G27: 1.482040835 | H27: 21.40894761 | I27: 0.02984367048 | J27: 0.8632503214 | K27: 0 | L27: -98.9 | M27: 0 | N27: 0 | P27: 1.604270739 | Q27: 23.17463013 | R27: 0.06875 | S27: 0 | T27: 0
A28: 12 | B28: 0.07539822369 | C28: 7.532680553 | D28: 99.71589003 | E28: 1.883170138 | F28: 24.92897251 | G28: 1.616527081 | H28: 21.39921314 | I28: 0.03551374674 | J28: 0.9415850691 | K28: 0 | L28: -98.8 | M28: 0 | N28: 0 | P28: 1.74984861 | Q28: 23.16409282 | R28: 0.075 | S28: 0 | T28: 0
A29: 13 | B29: 0.08168140899 | C29: 8.159061157 | D29: 99.6665928 | E29: 2.039765289 | F29: 24.9166482 | G29: 1.750949509 | H29: 21.38863386 | I29: 0.04167589957 | J29: 1.019882645 | K29: 0 | L29: -98.7 | M29: 0 | N29: 0 | P29: 1.895357399 | Q29: 23.15264103 | R29: 0.08125 | S29: 0 | T29: 0
A30: 14 | B30: 0.0879645943 | C30: 8.785119655 | D30: 99.61336091 | E30: 2.196279914 | F30: 24.90334023 | G30: 1.885302813 | H30: 21.3772102 | I30: 0.04832988571 | J30: 1.098139957 | K30: 0 | L30: -98.6 | M30: 0 | N30: 0 | P30: 2.040791363 | Q30: 23.14027522 | R30: 0.0875 | S30: 0 | T30: 0
A31: 15 | B31: 0.09424777961 | C31: 9.410831332 | D31: 99.55619646 | E31: 2.352707833 | F31: 24.88904912 | G31: 2.019581688 | H31: 21.36494261 | I31: 0.05547544246 | J31: 1.176353916 | K31: 0 | L31: -98.5 | M31: 0 | N31: 0 | P31: 2.18614476 | Q31: 23.12699586 | R31: 0.09375 | S31: 0 | T31: 0
A32: 16 | B32: 0.1005309649 | C32: 10.03617149 | D32: 99.4951017 | E32: 2.509042871 | F32: 24.87377542 | G32: 2.153780833 | H32: 21.35183156 | I32: 0.06311228773 | J32: 1.254521436 | K32: 0 | L32: -98.4 | M32: 0 | N32: 0 | P32: 2.331411852 | Q32: 23.11280349 | R32: 0.1 | S32: 0 | T32: 0
A33: 17 | B33: 0.1068141502 | C33: 10.66111543 | D33: 99.43007904 | E33: 2.665278857 | F33: 24.85751976 | G33: 2.287894951 | H33: 21.33787758 | I33: 0.07124012004 | J33: 1.332639428 | K33: 0 | L33: -98.3 | M33: 0 | N33: 0 | P33: 2.476586904 | Q33: 23.09769867 | R33: 0.10625 | S33: 0 | T33: 0
A34: 18 | B34: 0.1130973355 | C34: 11.28563849 | D34: 99.36113105 | E34: 2.821409622 | F34: 24.84028276 | G34: 2.421918747 | H34: 21.32308121 | I34: 0.0798586185 | J34: 1.410704811 | K34: 0 | L34: -98.2 | M34: 0 | N34: 0 | P34: 2.621664184 | Q34: 23.08168199 | R34: 0.1125 | S34: 0 | T34: 0
A35: 19 | B35: 0.1193805208 | C35: 11.90971601 | D35: 99.28826046 | E35: 2.977429002 | F35: 24.82206511 | G35: 2.555846929 | H35: 21.30744305 | I35: 0.08896744288 | J35: 1.488714501 | K35: 0 | L35: -98.1 | M35: 0 | N35: 0 | P35: 2.766637966 | Q35: 23.06475408 | R35: 0.11875 | S35: 0 | T35: 0
A36: 20 | B36: 0.1256637061 | C36: 12.53332336 | D36: 99.21147013 | E36: 3.133330839 | F36: 24.80286753 | G36: 2.689674211 | H36: 21.2909637 | I36: 0.09856623357 | J36: 1.56666542 | K36: 0 | L36: -98 | M36: 0 | N36: 0 | P36: 2.911502525 | Q36: 23.04691562 | R36: 0.125 | S36: 0 | T36: 0
A37: 21 | B37: 0.1319468915 | C37: 13.15643591 | D37: 99.13076311 | E37: 3.289108977 | F37: 24.78269078 | G37: 2.823395309 | H37: 21.27364383 | I37: 0.1086546116 | J37: 1.644554489 | K37: 0 | L37: -97.9 | M37: 0 | N37: 0 | P37: 3.056252143 | Q37: 23.0281673 | R37: 0.13125 | S37: 0 | T37: 0
A38: 22 | B38: 0.1382300768 | C38: 13.77902907 | D38: 99.04614257 | E38: 3.444757267 | F38: 24.76153564 | G38: 2.957004945 | H38: 21.2554841 | I38: 0.1192321788 | J38: 1.722378634 | K38: 0 | L38: -97.8 | M38: 0 | N38: 0 | P38: 3.200881106 | Q38: 23.00850987 | R38: 0.1375 | S38: 0 | T38: 0
A39: 23 | B39: 0.1445132621 | C39: 14.40107826 | D39: 98.95761186 | E39: 3.600269564 | F39: 24.73940297 | G39: 3.090497843 | H39: 21.23648525 | I39: 0.1302985175 | J39: 1.800134782 | K39: 0 | L39: -97.7 | M39: 0 | N39: 0 | P39: 3.345383703 | Q39: 22.98794411 | R39: 0.14375 | S39: 0 | T39: 0
A40: 24 | B40: 0.1507964474 | C40: 15.02255891 | D40: 98.86517447 | E40: 3.755639728 | F40: 24.71629362 | G40: 3.223868733 | H40: 21.21664802 | I40: 0.1418531908 | J40: 1.877819864 | K40: 0 | L40: -97.6 | M40: 0 | N40: 0 | P40: 3.489754231 | Q40: 22.96647082 | R40: 0.15 | S40: 0 | T40: 0
A41: 25 | B41: 0.1570796327 | C41: 15.6434465 | D41: 98.76883406 | E41: 3.910861626 | F41: 24.69220851 | G41: 3.357112351 | H41: 21.19597319 | I41: 0.1538957426 | J41: 1.955430813 | K41: 0 | L41: -97.5 | M41: 0 | N41: 0 | P41: 3.633986988 | Q41: 22.94409085 | R41: 0.15625 | S41: 0 | T41: 0
A42: 26 | B42: 0.163362818 | C42: 16.26371652 | D42: 98.66859442 | E42: 4.06592913 | F42: 24.66714861 | G42: 3.490223435 | H42: 21.17446158 | I42: 0.1664256974 | J42: 2.032964565 | K42: 0 | L42: -97.4 | M42: 0 | N42: 0 | P42: 3.778076282 | Q42: 22.92080509 | R42: 0.1625 | S42: 0 | T42: 0
A43: 27 | B43: 0.1696460033 | C43: 16.88334447 | D43: 98.56445951 | E43: 4.220836118 | F43: 24.64111488 | G43: 3.623196732 | H43: 21.15211404 | I43: 0.1794425606 | J43: 2.110418059 | K43: 0 | L43: -97.3 | M43: 0 | N43: 0 | P43: 3.922016425 | Q43: 22.89661446 | R43: 0.16875 | S43: 0 | T43: 0
A44: 28 | B44: 0.1759291886 | C44: 17.5023059 | D44: 98.45643345 | E44: 4.375576474 | F44: 24.61410836 | G44: 3.75602699 | H44: 21.12893144 | I44: 0.1929458184 | J44: 2.187788237 | K44: 0 | L44: -97.2 | M44: 0 | N44: 0 | P44: 4.065801732 | Q44: 22.8715199 | R44: 0.175 | S44: 0 | T44: 0
A45: 29 | B45: 0.1822123739 | C45: 18.12057636 | D45: 98.3445205 | E45: 4.530144091 | F45: 24.58613012 | G45: 3.888708968 | H45: 21.10491472 | I45: 0.2069349376 | J45: 2.265072045 | K45: 0 | L45: -97.1 | M45: 0 | N45: 0 | P45: 4.209426529 | Q45: 22.84552242 | R45: 0.18125 | S45: 0 | T45: 0
A46: 30 | B46: 0.1884955592 | C46: 18.73813146 | D46: 98.22872507 | E46: 4.684532865 | F46: 24.55718127 | G46: 4.021237426 | H46: 21.08006481 | I46: 0.2214093659 | J46: 2.342266432 | K46: 0 | L46: -97 | M46: 0 | N46: 0 | P46: 4.352885145 | Q46: 22.81862304 | R46: 0.1875 | S46: 0 | T46: 0
A47: 31 | B47: 0.1947787445 | C47: 19.35494681 | D47: 98.10905174 | E47: 4.838736701 | F47: 24.52726294 | G47: 4.153607132 | H47: 21.05438269 | I47: 0.236368532 | J47: 2.419368351 | K47: 0 | L47: -96.9 | M47: 0 | N47: 0 | P47: 4.496171916 | Q47: 22.79082281 | R47: 0.19375 | S47: 0 | T47: 0
A48: 32 | B48: 0.2010619298 | C48: 19.97099805 | D48: 97.98550524 | E48: 4.992749513 | F48: 24.49637631 | G48: 4.285812861 | H48: 21.02786938 | I48: 0.2518118452 | J48: 2.496374756 | K48: 0 | L48: -96.8 | M48: 0 | N48: 0 | P48: 4.639281187 | Q48: 22.76212285 | R48: 0.2 | S48: 0 | T48: 0
A49: 33 | B49: 0.2073451151 | C49: 20.58626088 | D49: 97.85809043 | E49: 5.146565219 | F49: 24.46452261 | G49: 4.417849393 | H49: 21.00052593 | I49: 0.2677386959 | J49: 2.57328261 | K49: 0 | L49: -96.7 | M49: 0 | N49: 0 | P49: 4.782207306 | Q49: 22.73252427 | R49: 0.20625 | S49: 0 | T49: 0
A50: 34 | B50: 0.2136283004 | C50: 21.20071099 | D50: 97.72681236 | E50: 5.300177748 | F50: 24.43170309 | G50: 4.549711516 | H50: 20.97235342 | I50: 0.2841484554 | J50: 2.650088874 | K50: 0 | L50: -96.6 | M50: 0 | N50: 0 | P50: 4.924944632 | Q50: 22.70202825 | R50: 0.2125 | S50: 0 | T50: 0
A51: 35 | B51: 0.2199114858 | C51: 21.81432414 | D51: 97.59167619 | E51: 5.453581035 | F51: 24.39791905 | G51: 4.681394025 | H51: 20.94335295 | I51: 0.3010404758 | J51: 2.726790517 | K51: 0 | L51: -96.5 | M51: 0 | N51: 0 | P51: 5.06748753 | Q51: 22.670636 | R51: 0.21875 | S51: 0 | T51: 0
A52: 36 | B52: 0.2261946711 | C52: 22.42707609 | D52: 97.45268728 | E52: 5.606769024 | F52: 24.36317182 | G52: 4.81289172 | H52: 20.91352567 | I52: 0.3184140902 | J52: 2.803384512 | K52: 0 | L52: -96.4 | M52: 0 | N52: 0 | P52: 5.209830372 | Q52: 22.63834875 | R52: 0.225 | S52: 0 | T52: 0
A53: 37 | B53: 0.2324778564 | C53: 23.03894267 | D53: 97.3098511 | E53: 5.759735667 | F53: 24.32746277 | G53: 4.94419941 | H53: 20.88287277 | I53: 0.3362686127 | J53: 2.879867833 | K53: 0 | L53: -96.3 | M53: 0 | N53: 0 | P53: 5.351967538 | Q53: 22.60516777 | R53: 0.23125 | S53: 0 | T53: 0
A54: 38 | B54: 0.2387610417 | C54: 23.6498997 | D54: 97.16317329 | E54: 5.912474926 | F54: 24.29079332 | G54: 5.075311912 | H54: 20.85139544 | I54: 0.3546033386 | J54: 2.956237463 | K54: 0 | L54: -96.2 | M54: 0 | N54: 0 | P54: 5.493893419 | Q54: 22.57109438 | R54: 0.2375 | S54: 0 | T54: 0
A55: 39 | B55: 0.245044227 | C55: 24.25992308 | D55: 97.01265965 | E55: 6.06498077 | F55: 24.25316491 | G55: 5.206224049 | H55: 20.81909493 | I55: 0.3734175439 | J55: 3.032490385 | K55: 0 | L55: -96.1 | M55: 0 | N55: 0 | P55: 5.635602409 | Q55: 22.53612992 | R55: 0.24375 | S55: 0 | T55: 0
A56: 40 | B56: 0.2513274123 | C56: 24.86898872 | D56: 96.85831611 | E56: 6.217247179 | F56: 24.21457903 | G56: 5.336930653 | H56: 20.78597253 | I56: 0.3927104859 | J56: 3.10862359 | K56: 0 | L56: -96 | M56: 0 | N56: 0 | P56: 5.777088916 | Q56: 22.50027578 | R56: 0.25 | S56: 0 | T56: 0
A57: 41 | B57: 0.2576105976 | C57: 25.47707257 | D57: 96.70014878 | E57: 6.369268142 | F57: 24.17503719 | G57: 5.467426564 | H57: 20.75202953 | I57: 0.412481403 | J57: 3.184634071 | K57: 0 | L57: -95.9 | M57: 0 | N57: 0 | P57: 5.918347353 | Q57: 22.46353336 | R57: 0.25625 | S57: 0 | T57: 0
A58: 42 | B58: 0.2638937829 | C58: 26.08415063 | D58: 96.53816388 | E58: 6.521037657 | F58: 24.13454097 | G58: 5.597706631 | H58: 20.71726727 | I58: 0.4327295146 | J58: 3.260518829 | K58: 0 | L58: -95.8 | M58: 0 | N58: 0 | P58: 6.059372144 | Q58: 22.42590412 | R58: 0.2625 | S58: 0 | T58: 0
A59: 43 | B59: 0.2701769682 | C59: 26.69019893 | D59: 96.37236783 | E59: 6.672549733 | F59: 24.09309196 | G59: 5.72776571 | H59: 20.68168713 | I59: 0.4534540214 | J59: 3.336274867 | K59: 0 | L59: -95.7 | M59: 0 | N59: 0 | P59: 6.200157722 | Q59: 22.38738955 | R59: 0.26875 | S59: 0 | T59: 0
A60: 44 | B60: 0.2764601535 | C60: 27.29519355 | D60: 96.20276716 | E60: 6.823798388 | F60: 24.05069179 | G60: 5.857598667 | H60: 20.64529052 | I60: 0.4746541052 | J60: 3.411899194 | K60: 0 | L60: -95.6 | M60: 0 | N60: 0 | P60: 6.340698527 | Q60: 22.34799115 | R60: 0.275 | S60: 0 | T60: 0
A61: 45 | B61: 0.2827433388 | C61: 27.8991106 | D61: 96.02936857 | E61: 6.974777651 | F61: 24.00734214 | G61: 5.987200375 | H61: 20.60807886 | I61: 0.496328929 | J61: 3.487388825 | K61: 0 | L61: -95.5 | M61: 0 | N61: 0 | P61: 6.480989013 | Q61: 22.3077105 | R61: 0.28125 | S61: 0 | T61: 0
A62: 46 | B62: 0.2890265241 | C62: 28.50192625 | D62: 95.8521789 | E62: 7.125481562 | F62: 23.96304473 | G62: 6.116565719 | H62: 20.57005363 | I62: 0.5184776373 | J62: 3.562740781 | K62: 0 | L62: -95.4 | M62: 0 | N62: 0 | P62: 6.621023641 | Q62: 22.26654918 | R62: 0.2875 | S62: 0 | T62: 0
A63: 47 | B63: 0.2953097094 | C63: 29.10361668 | D63: 95.67120516 | E63: 7.275904171 | F63: 23.91780129 | G63: 6.245689592 | H63: 20.53121634 | I63: 0.5410993555 | J63: 3.637952085 | K63: 0 | L63: -95.3 | M63: 0 | N63: 0 | P63: 6.760796881 | Q63: 22.22450881 | R63: 0.29375 | S63: 0 | T63: 0
A64: 48 | B64: 0.3015928947 | C64: 29.70415816 | D64: 95.48645447 | E64: 7.426039539 | F64: 23.87161362 | G64: 6.374566895 | H64: 20.4915685 | I64: 0.5641931907 | J64: 3.71301977 | K64: 0 | L64: -95.2 | M64: 0 | N64: 0 | P64: 6.900303217 | Q64: 22.18159106 | R64: 0.3 | S64: 0 | T64: 0
A65: 49 | B65: 0.3078760801 | C65: 30.30352696 | D65: 95.29793415 | E65: 7.575881741 | F65: 23.82448354 | G65: 6.503192542 | H65: 20.45111169 | I65: 0.587758231 | J65: 3.78794087 | K65: 0 | L65: -95.1 | M65: 0 | N65: 0 | P65: 7.039537141 | Q65: 22.13779762 | R65: 0.30625 | S65: 0 | T65: 0
A66: 50 | B66: 0.3141592654 | C66: 30.90169944 | D66: 95.10565163 | E66: 7.725424859 | F66: 23.77641291 | G66: 6.631561453 | H66: 20.40984751 | I66: 0.6117935463 | J66: 3.86271243 | K66: 0 | L66: -95 | M66: 0 | N66: 0 | P66: 7.178493156 | Q66: 22.09313021 | R66: 0.3125 | S66: 0 | T66: 0
A67: 51 | B67: 0.3204424507 | C67: 31.49865197 | D67: 94.9096145 | E67: 7.874662991 | F67: 23.72740362 | G67: 6.759668562 | H67: 20.36777758 | I67: 0.6362981876 | J67: 3.937331496 | K67: 0 | L67: -94.9 | M67: 0 | N67: 0 | P67: 7.317165777 | Q67: 22.0475906 | R67: 0.31875 | S67: 0 | T67: 0
A68: 52 | B68: 0.326725636 | C68: 32.09436098 | D68: 94.7098305 | E68: 8.023590245 | F68: 23.67745762 | G68: 6.887508811 | H68: 20.32490357 | I68: 0.6612711876 | J68: 4.011795123 | K68: 0 | L68: -94.8 | M68: 0 | N68: 0 | P68: 7.455549528 | Q68: 22.0011806 | R68: 0.325 | S68: 0 | T68: 0
A69: 53 | B69: 0.3330088213 | C69: 32.68880297 | D69: 94.50630752 | E69: 8.172200741 | F69: 23.62657688 | G69: 7.015077153 | H69: 20.28122716 | I69: 0.6867115603 | J69: 4.086100371 | K69: 0 | L69: -94.7 | M69: 0 | N69: 0 | P69: 7.593638947 | Q69: 21.95390202 | R69: 0.33125 | S69: 0 | T69: 0
A70: 54 | B70: 0.3392920066 | C70: 33.28195445 | D70: 94.29905359 | E70: 8.320488613 | F70: 23.5747634 | G70: 7.142368551 | H70: 20.23675009 | I70: 0.7126183013 | J70: 4.160244307 | K70: 0 | L70: -94.6 | M70: 0 | N70: 0 | P70: 7.731428582 | Q70: 21.90575674 | R70: 0.3375 | S70: 0 | T70: 0
A71: 55 | B71: 0.3455751919 | C71: 33.87379202 | D71: 94.0880769 | E71: 8.468448006 | F71: 23.52201922 | G71: 7.269377981 | H71: 20.1914741 | I71: 0.7389903881 | J71: 4.234224003 | K71: 0 | L71: -94.5 | M71: 0 | N71: 0 | P71: 7.868912994 | Q71: 21.85674666 | R71: 0.34375 | S71: 0 | T71: 0
A72: 56 | B72: 0.3518583772 | C72: 34.46429232 | D72: 93.87338577 | E72: 8.616073079 | F72: 23.46834644 | G72: 7.396100429 | H72: 20.14540099 | I72: 0.7658267793 | J72: 4.30803654 | K72: 0 | L72: -94.4 | M72: 0 | N72: 0 | P72: 8.006086754 | Q72: 21.80687372 | R72: 0.35 | S72: 0 | T72: 0
A73: 57 | B73: 0.3581415625 | C73: 35.05343202 | D73: 93.65498867 | E73: 8.763358005 | F73: 23.41374717 | G73: 7.522530891 | H73: 20.09853258 | I73: 0.7931264156 | J73: 4.381679002 | K73: 0 | L73: -94.3 | M73: 0 | N73: 0 | P73: 8.142944448 | Q73: 21.75613987 | R73: 0.35625 | S73: 0 | T73: 0
A74: 58 | B74: 0.3644247478 | C74: 35.64118787 | D74: 93.43289425 | E74: 8.910296968 | F74: 23.35822356 | G74: 7.648664376 | H74: 20.0508707 | I74: 0.8208882193 | J74: 4.455148484 | K74: 0 | L74: -94.2 | M74: 0 | N74: 0 | P74: 8.279480672 | Q74: 21.70454713 | R74: 0.3625 | S74: 0 | T74: 0
A75: 59 | B75: 0.3707079331 | C75: 36.22753667 | D75: 93.20711125 | E75: 9.056884168 | F75: 23.30177781 | G75: 7.774495905 | H75: 20.00241726 | I75: 0.8491110943 | J75: 4.528442084 | K75: 0 | L75: -94.1 | M75: 0 | N75: 0 | P75: 8.415690036 | Q75: 21.65209753 | R75: 0.36875 | S75: 0 | T75: 0
A76: 60 | B76: 0.3769911184 | C76: 36.81245527 | D76: 92.97764859 | E76: 9.203113817 | F76: 23.24441215 | G76: 7.90002051 | H76: 19.95317415 | I76: 0.8777939264 | J76: 4.601556909 | K76: 0 | L76: -94 | M76: 0 | N76: 0 | P76: 8.551567164 | Q76: 21.59879315 | R76: 0.375 | S76: 0 | T76: 0
A77: 61 | B77: 0.3832743037 | C77: 37.39592057 | D77: 92.74451533 | E77: 9.348980143 | F77: 23.18612883 | G77: 8.025233237 | H77: 19.90314333 | I77: 0.9069355833 | J77: 4.674490072 | K77: 0 | L77: -93.9 | M77: 0 | N77: 0 | P77: 8.68710669 | Q77: 21.54463608 | R77: 0.38125 | S77: 0 | T77: 0
A78: 62 | B78: 0.389557489 | C78: 37.97790955 | D78: 92.50772068 | E78: 9.494477388 | F78: 23.12693017 | G78: 8.15012914 | H78: 19.85232676 | I78: 0.9365349146 | J78: 4.747238694 | K78: 0 | L78: -93.8 | M78: 0 | N78: 0 | P78: 8.822303264 | Q78: 21.48962846 | R78: 0.3875 | S78: 0 | T78: 0
A79: 63 | B79: 0.3958406744 | C79: 38.55839923 | D79: 92.26727399 | E79: 9.639599807 | F79: 23.0668185 | G79: 8.274703291 | H79: 19.80072646 | I79: 0.9665907516 | J79: 4.819799903 | K79: 0 | L79: -93.7 | M79: 0 | N79: 0 | P79: 8.957151549 | Q79: 21.43377248 | R79: 0.39375 | S79: 0 | T79: 0
A80: 64 | B80: 0.4021238597 | C80: =$B$2*SIN(B80) -> 39.13736668 | D80: =$B$2*COS(B80) -> 92.02318474 | E80: =C80/$B$4 -> 9.784341671 | F80: =D80/$B$4 -> 23.00579618 | G80: =C80*(1-PI()/$B$4) -> 8.39895077 | H80: =D80*(1-PI()/$B$4) -> 19.74834445 | I80: 0.9971019079 | J80: 4.892170835 | K80: 0 | L80: -93.6 | M80: 0 | N80: 0 | P80: 9.091646221 | Q80: 21.37707032 | R80: 0.4 | S80: 0 | T80: 0
A81: 65 | B81: 0.408407045 | C81: 39.71478906 | D81: 91.77546257 | E81: 9.928697266 | F81: 22.94386564 | G81: 8.522866673 | H81: 19.69518282 | I81: =IF($B$5<$G$13,$B$2/(2*$B$4)*(1+SIN(-PI()/2+B81)),) -> 1.028067179 | J81: =IF($B$5<$G$13,$B$2/(2*$B$4)*COS(-PI()/2+B81),) -> 4.964348633 | K81: =IF(AND($G$4=1,$B$5>=0,$B$5<=($B$2/($B$4*$B$3))*ASIN($B$4-PI())),$C$9+(A81/1000)*($C$10-$C$9),) -> 0 | L81: =IF(AND($G$4=1,$B$5>=0,$B$5<=($B$2/($B$4*$B$3))*ASIN($B$4-PI())),$D$9+(A81/1000)*($D$10-$D$9),) -> -93.5 | M81: =IF(AND($B$5>=$G$13,$B$5<=$J$13),$G$9+(A81/1000)*($G$10-$G$9),) -> 0 | N81: =IF(AND($B$5>=$G$13,$B$5<=$J$13),$H$9+(A81/1000)*($H$10-$H$9),) -> 0 | P81: =(E81+G81)/2 -> 9.22578197 | Q81: =(F81+H81)/2 -> 21.31952423 | R81: 0.40625 | S81: =($B$5>=R81)*IF(AND(R81>=0,R81<=($B$2/($B$4*$B$3))*ASIN($B$4-PI())),($B$2/$B$4)*SIN((($B$4*$B$3)/$B$2)*R81)*SIN((($B$4*$B$3)/$B$2)*R81),(($B$4-PI())*($B$2/$B$4)+$B$3*(R81-(($B$2/($B$4*$B$3))*ASIN($B$4-PI()))))*($B$4-PI())) -> 0 | T81: =($B$5>=R81)*IF(AND(R81>=0,R81<=($B$2/($B$4*$B$3))*ASIN($B$4-PI())),($B$2/$B$4)*SIN((($B$4*$B$3)/$B$2)*R81)*COS((($B$4*$B$3)/$B$2)*R81),(($B$4-PI())*($B$2/$B$4)+$B$3*(R81-(($B$2/($B$4*$B$3))*ASIN($B$4-PI()))))*COS(ASIN(($B$4-PI())))) -> 0
A82: =A81+1 -> 66 | B82: =2*PI()*(A82/1000) -> 0.4146902303 | C82: 40.29064357 | D82: 91.52411726 | E82: 10.07266089 | F82: 22.88102932 | G82: 8.646446108 | H82: 19.64124366 | I82: 1.059485342 | J82: 5.036330446 | K82: 0 | L82: -93.4 | M82: 0 | N82: 0 | P82: 9.359553501 | Q82: 21.26113649 | R82: =R81+1.25*$B$2/($B$3*1000) -> 0.4125 | S82: 0 | T82: 0
A83: 67 | B83: 0.4209734156 | C83: 40.86490747 | D83: 91.26915874 | E83: 10.21622687 | F83: 22.81728969 | G83: 8.769684196 | H83: 19.58652909 | I83: 1.091355157 | J83: 5.108113434 | K83: 0 | L83: -93.3 | M83: 0 | N83: 0 | P83: 9.492955532 | Q83: 21.20190939 | R83: 0.41875 | S83: 0 | T83: 0
A84: 68 | B84: 0.4272566009 | C84: 41.4375581 | D84: 91.01059707 | E84: 10.35938952 | F84: 22.75264927 | G84: 8.892576072 | H84: 19.53104128 | I84: 1.123675366 | J84: 5.179694762 | K84: 0 | L84: -93.2 | M84: 0 | N84: 0 | P84: 9.625982799 | Q84: 21.14184527 | R84: 0.425 | S84: 0 | T84: 0
A85: 69 | B85: 0.4335397862 | C85: 42.00857284 | D85: 90.74844245 | E85: 10.50214321 | F85: 22.68711061 | G85: 9.015116885 | H85: 19.47478242 | I85: 1.156444693 | J85: 5.251071605 | K85: 0 | L85: -93.1 | M85: 0 | N85: 0 | P85: 9.758630048 | Q85: 21.08094652 | R85: 0.43125 | S85: 0 | T85: 0
A86: 70 | B86: 0.4398229715 | C86: 42.57792916 | D86: 90.48270525 | E86: 10.64448229 | F86: 22.62067631 | G86: 9.137301796 | H86: 19.41775473 | I86: 1.189661844 | J86: 5.322241145 | K86: 0 | L86: -93 | M86: 0 | N86: 0 | P86: 9.890892042 | Q86: 21.01921552 | R86: 0.4375 | S86: 0 | T86: 0
A87: 71 | B87: 0.4461061568 | C87: 43.14560457 | D87: 90.21339594 | E87: 10.78640114 | F87: 22.55334898 | G87: 9.259125982 | H87: 19.35996045 | I87: 1.223325508 | J87: 5.393200571 | K87: 0 | L87: -92.9 | M87: 0 | N87: 0 | P87: 10.02276356 | Q87: 20.95665472 | R87: 0.44375 | S87: 0 | T87: 0
A88: 72 | B88: 0.4523893421 | C88: 43.71157667 | D88: 89.94052516 | E88: 10.92789417 | F88: 22.48513129 | G88: 9.380584633 | H88: 19.30140188 | I88: 1.257434355 | J88: 5.463947083 | K88: 0 | L88: -92.8 | M88: 0 | N88: 0 | P88: 10.1542394 | Q88: 20.89326659 | R88: 0.45 | S88: 0 | T88: 0
A89: 73 | B89: 0.4586725274 | C89: 44.2758231 | D89: 89.66410368 | E89: 11.06895578 | F89: 22.41602592 | G89: 9.501672955 | H89: 19.24208133 | I89: 1.29198704 | J89: 5.534477888 | K89: 0 | L89: -92.7 | M89: 0 | N89: 0 | P89: 10.28531437 | Q89: 20.82905362 | R89: 0.45625 | S89: 0 | T89: 0
A90: 74 | B90: 0.4649557127 | C90: 44.83832161 | D90: 89.38414242 | E90: 11.2095804 | F90: 22.3460356 | G90: 9.622386167 | H90: 19.18200113 | I90: 1.326982198 | J90: 5.604790201 | K90: 0 | L90: -92.6 | M90: 0 | N90: 0 | P90: 10.41598328 | Q90: 20.76401836 | R90: 0.4625 | S90: 0 | T90: 0
A91: 75 | B91: 0.471238898 | C91: 45.39904997 | D91: 89.10065242 | E91: 11.34976249 | F91: 22.2751631 | G91: 9.742719504 | H91: 19.12116365 | I91: 1.362418448 | J91: 5.674881247 | K91: 0 | L91: -92.5 | M91: 0 | N91: 0 | P91: 10.546241 | Q91: 20.69816338 | R91: 0.46875 | S91: 0 | T91: 0
A92: 76 | B92: 0.4775220833 | C92: 45.95798606 | D92: 88.81364488 | E92: 11.48949652 | F92: 22.20341122 | G92: 9.862668215 | H92: 19.05957131 | I92: 1.39829439 | J92: 5.744748258 | K92: 0 | L92: -92.4 | M92: 0 | N92: 0 | P92: 10.67608237 | Q92: 20.63149126 | R92: 0.475 | S92: 0 | T92: 0
A93: 77 | B93: 0.4838052687 | C93: 46.51510781 | D93: 88.52313113 | E93: 11.62877695 | F93: 22.13078278 | G93: 9.982227565 | H93: 18.99722652 | I93: 1.434608608 | J93: 5.814388476 | K93: 0 | L93: -92.3 | M93: 0 | N93: 0 | P93: 10.80550226 | Q93: 20.56400465 | R93: 0.48125 | S93: 0 | T93: 0
A94: 78 | B94: 0.490088454 | C94: 47.07039322 | D94: 88.22912264 | E94: 11.7675983 | F94: 22.05728066 | G94: 10.10139283 | H94: 18.93413176 | I94: 1.47135967 | J94: 5.883799152 | K94: 0 | L94: -92.2 | M94: 0 | N94: 0 | P94: 10.93449557 | Q94: 20.49570621 | R94: 0.4875 | S94: 0 | T94: 0
A95: 79 | B95: 0.4963716393 | C95: 47.62382037 | D95: 87.93163102 | E95: 11.90595509 | F95: 21.98290775 | G95: 10.22015932 | H95: 18.87028951 | I95: 1.508546123 | J95: 5.952977546 | K95: 0 | L95: -92.1 | M95: 0 | N95: 0 | P95: 11.0630572 | Q95: 20.42659863 | R95: 0.49375 | S95: 0 | T95: 0
A96: 80 | B96: 0.5026548246 | C96: 48.17536741 | D96: 87.630668 | E96: 12.04384185 | F96: 21.907667 | G96: 10.33852233 | H96: 18.8057023 | I96: 1.546166499 | J96: 6.021920926 | K96: 0 | L96: -92 | M96: 0 | N96: 0 | P96: 11.19118209 | Q96: 20.35668465 | R96: 0.5 | S96: 0 | T96: 0
A97: 81 | B97: 0.5089380099 | C97: 48.72501257 | D97: 87.32624548 | E97: 12.18125314 | F97: 21.83156137 | G97: 10.45647719 | H97: 18.74037266 | I97: 1.584219315 | J97: 6.090626572 | K97: 0 | L97: -91.9 | M97: 0 | N97: 0 | P97: 11.31886516 | Q97: 20.28596702 | R97: 0.50625 | S97: 0 | T97: 0
A98: 82 | B98: 0.5152211952 | C98: 49.27273415 | D98: 87.01837547 | E98: 12.31818354 | F98: 21.75459387 | G98: 10.57401924 | H98: 18.67430319 | I98: 1.622703067 | J98: 6.159091769 | K98: 0 | L98: -91.8 | M98: 0 | N98: 0 | P98: 11.44610139 | Q98: 20.21444853 | R98: 0.5125 | S98: 0 | T98: 0
A99: 83 | B99: 0.5215043805 | C99: 49.81851053 | D99: 86.70707012 | E99: 12.45462763 | F99: 21.67676753 | G99: 10.69114386 | H99: 18.60749649 | I99: 1.661616235 | J99: 6.227313817 | K99: 0 | L99: -91.7 | M99: 0 | N99: 0 | P99: 11.57288575 | Q99: 20.14213201 | R99: 0.51875 | S99: 0 | T99: 0
A100: 84 | B100: 0.5277875658 | C100: 50.36232016 | D100: 86.39234172 | E100: 12.59058004 | F100: 21.59808543 | G100: 10.8078464 | H100: 18.5399552 | I100: 1.700957285 | J100: 6.29529002 | K100: 0 | L100: -91.6 | M100: 0 | N100: 0 | P100: 11.69921322 | Q100: 20.06902032 | R100: 0.525 | S100: 0 | T100: 0
A101: 85 | B101: 0.5340707511 | C101: 50.90414158 | D101: 86.0742027 | E101: 12.72603539 | F101: 21.51855068 | G101: 10.92412227 | H101: 18.47168198 | I101: 1.740724662 | J101: 6.363017697 | K101: 0 | L101: -91.5 | M101: 0 | N101: 0 | P101: 11.82507883 | Q101: 19.99511633 | R101: 0.53125 | S101: 0 | T101: 0
A102: 86 | B102: 0.5403539364 | C102: 51.44395338 | D102: 85.75266562 | E102: 12.86098834 | F102: 21.4381664 | G102: 11.03996688 | H102: 18.40267954 | I102: 1.780916798 | J102: 6.430494172 | K102: 0 | L102: -91.4 | M102: 0 | N102: 0 | P102: 11.95047761 | Q102: 19.92042297 | R102: 0.5375 | S102: 0 | T102: 0
A103: 87 | B103: 0.5466371217 | C103: 51.98173426 | D103: 85.42774317 | E103: 12.99543357 | F103: 21.35693579 | G103: 11.15537564 | H103: 18.33295058 | I103: 1.821532104 | J103: 6.497716783 | K103: 0 | L103: -91.3 | M103: 0 | N103: 0 | P103: 12.0754046 | Q103: 19.84494319 | R103: 0.54375 | S103: 0 | T103: 0
A104: 88 | B104: 0.552920307 | C104: 52.517463 | D104: 85.09944818 | E104: 13.12936575 | F104: 21.27486204 | G104: 11.27034401 | H104: 18.26249787 | I104: 1.862568978 | J104: 6.564682875 | K104: 0 | L104: -91.2 | M104: 0 | N104: 0 | P104: 12.19985488 | Q104: 19.76867996 | R104: 0.55 | S104: 0 | T104: 0
A105: 89 | B105: 0.5592034923 | C105: 53.05111843 | D105: 84.76779361 | E105: 13.26277961 | F105: 21.1919484 | G105: 11.38486745 | H105: 18.19132419 | I105: 1.904025799 | J105: 6.631389804 | K105: 0 | L105: -91.1 | M105: 0 | N105: 0 | P105: 12.32382353 | Q105: 19.6916363 | R105: 0.55625 | S105: 0 | T105: 0
A106: 90 | B106: 0.5654866776 | C106: 53.5826795 | D106: 84.43279255 | E106: 13.39566987 | F106: 21.10819814 | G106: 11.49894143 | H106: 18.11943235 | I106: 1.945900931 | J106: 6.697834937 | K106: 0 | L106: -91 | M106: 0 | N106: 0 | P106: 12.44730565 | Q106: 19.61381524 | R106: 0.5625 | S106: 0 | T106: 0
A107: 91 | B107: 0.571769863 | C107: 54.11212521 | D107: 84.09445823 | E107: 13.5280313 | F107: 21.02361456 | G107: 11.61256145 | H107: 18.04682518 | I107: 1.988192721 | J107: 6.764015652 | K107: 0 | L107: -90.9 | M107: 0 | N107: 0 | P107: 12.57029638 | Q107: 19.53521987 | R107: 0.56875 | S107: 0 | T107: 0
A108: 92 | B108: 0.5780530483 | C108: 54.63943467 | D108: 83.752804 | E108: 13.65985867 | F108: 20.938201 | G108: 11.72572303 | H108: 17.97350556 | I108: 2.030899499 | J108: 6.829929334 | K108: 0 | L108: -90.8 | M108: 0 | N108: 0 | P108: 12.69279085 | Q108: 19.45585328 | R108: 0.575 | S108: 0 | T108: 0
A109: 93 | B109: 0.5843362336 | C109: 55.16458706 | D109: 83.40784336 | E109: 13.79114677 | F109: 20.85196084 | G109: 11.8384217 | H109: 17.89947637 | I109: 2.07401958 | J109: 6.895573383 | K109: 0 | L109: -90.7 | M109: 0 | N109: 0 | P109: 12.81478423 | Q109: 19.37571861 | R109: 0.58125 | S109: 0 | T109: 0
A110: 94 | B110: 0.5906194189 | C110: 55.68756165 | D110: 83.05958992 | E110: 13.92189041 | F110: 20.76489748 | G110: 11.95065301 | H110: 17.82474054 | I110: 2.11755126 | J110: 6.960945206 | K110: 0 | L110: -90.6 | M110: 0 | N110: 0 | P110: 12.93627171 | Q110: 19.29481901 | R110: 0.5875 | S110: 0 | T110: 0
A111: 95 | B111: 0.5969026042 | C111: 56.20833779 | D111: 82.70805743 | E111: 14.05208445 | F111: 20.67701436 | G111: 12.06241252 | H111: 17.74930103 | I111: 2.161492822 | J111: 7.026042223 | K111: 0 | L111: -90.5 | M111: 0 | N111: 0 | P111: 13.05724848 | Q111: 19.21315769 | R111: 0.59375 | S111: 0 | T111: 0
A112: 96 | B112: 0.6031857895 | C112: 56.72689491 | D112: 82.35325976 | E112: 14.18172373 | F112: 20.58831494 | G112: 12.17369583 | H112: 17.6731608 | I112: 2.20584253 | J112: 7.090861864 | K112: 0 | L112: -90.4 | M112: 0 | N112: 0 | P112: 13.17770978 | Q112: 19.13073787 | R112: 0.6 | S112: 0 | T112: 0
A113: 97 | B113: 0.6094689748 | C113: 57.24321256 | D113: 81.99521093 | E113: 14.31080314 | F113: 20.49880273 | G113: 12.28449855 | H113: 17.59632286 | I113: 2.250598633 | J113: 7.15540157 | K113: 0 | L113: -90.3 | M113: 0 | N113: 0 | P113: 13.29765084 | Q113: 19.0475628 | R113: 0.60625 | S113: 0 | T113: 0
A114: 98 | B114: 0.6157521601 | C114: 57.75727034 | D114: 81.63392507 | E114: 14.43931759 | F114: 20.40848127 | G114: 12.39481629 | H114: 17.51879025 | I114: 2.295759366 | J114: 7.219658793 | K114: 0 | L114: -90.2 | M114: 0 | N114: 0 | P114: 13.41706694 | Q114: 18.96363576 | R114: 0.6125 | S114: 0 | T114: 0
A115: 99 | B115: 0.6220353454 | C115: 58.26904797 | D115: 81.26941644 | E115: 14.56726199 | F115: 20.31735411 | G115: 12.50464471 | H115: 17.44056603 | I115: 2.341322945 | J115: 7.283630996 | K115: 0 | L115: -90.1 | M115: 0 | N115: 0 | P115: 13.53595335 | Q115: 18.87896007 | R115: 0.61875 | S115: 0 | T115: 0
A116: 100 | B116: 0.6283185307 | C116: 58.77852523 | D116: 80.90169944 | E116: 14.69463131 | F116: 20.22542486 | G116: 12.61397947 | H116: 17.36165328 | I116: 2.38728757 | J116: 7.347315654 | K116: 0 | L116: -90 | M116: 0 | N116: 0 | P116: 13.65430539 | Q116: 18.79353907 | R116: 0.625 | S116: 0 | T116: 0
A117: 101 | B117: 0.634601716 | C117: 59.28568202 | D117: 80.53078857 | E117: 14.8214205 | F117: 20.13269714 | G117: 12.72281624 | H117: 17.28205513 | I117: 2.433651429 | J117: 7.410710252 | K117: 0 | L117: -89.9 | M117: 0 | N117: 0 | P117: 13.77211837 | Q117: 18.70737614 | R117: 0.63125 | S117: 0 | T117: 0
A118: 102 | B118: 0.6408849013 | C118: 59.79049831 | D118: 80.15669849 | E118: 14.94762458 | F118: 20.03917462 | G118: 12.83115075 | H118: 17.20177471 | I118: 2.480412689 | J118: 7.473812288 | K118: 0 | L118: -89.8 | M118: 0 | N118: 0 | P118: 13.88938766 | Q118: 18.62047467 | R118: 0.6375 | S118: 0 | T118: 0
A119: 103 | B119: 0.6471680866 | C119: 60.29295417 | D119: 79.77944395 | E119: 15.07323854 | F119: 19.94486099 | G119: 12.9389787 | H119: 17.1208152 | I119: 2.527569506 | J119: 7.536619271 | K119: 0 | L119: -89.7 | M119: 0 | N119: 0 | P119: 14.00610862 | Q119: 18.53283809 | R119: 0.64375 | S119: 0 | T119: 0
A120: 104 | B120: 0.6534512719 | C120: 60.79302977 | D120: 79.39903986 | E120: 15.19825744 | F120: 19.84975997 | G120: 13.04629584 | H120: 17.03917978 | I120: 2.575120017 | J120: 7.599128721 | K120: 0 | L120: -89.6 | M120: 0 | N120: 0 | P120: 14.12227664 | Q120: 18.44446987 | R120: 0.65 | S120: 0 | T120: 0
A121: 105 | B121: 0.6597344573 | C121: 61.29070537 | D121: 79.01550124 | E121: 15.32267634 | F121: 19.75387531 | G121: 13.15309794 | H121: 16.95687169 | I121: 2.623062345 | J121: 7.661338171 | K121: 0 | L121: -89.5 | M121: 0 | N121: 0 | P121: 14.23788714 | Q121: 18.3553735 | R121: 0.65625 | S121: 0 | T121: 0
A122: 106 | B122: 0.6660176426 | C122: 61.78596131 | D122: 78.62884321 | E122: 15.44649033 | F122: 19.6572108 | G122: 13.25938077 | H122: 16.87389416 | I122: 2.671394598 | J122: 7.723245164 | K122: 0 | L122: -89.4 | M122: 0 | N122: 0 | P122: 14.35293555 | Q122: 18.26555248 | R122: 0.6625 | S122: 0 | T122: 0
A123: 107 | B123: 0.6723008279 | C123: 62.27877805 | D123: 78.23908106 | E123: 15.56969451 | F123: 19.55977026 | G123: 13.36514015 | H123: 16.79025049 | I123: 2.720114868 | J123: 7.784847256 | K123: 0 | L123: -89.3 | M123: 0 | N123: 0 | P123: 14.46741733 | Q123: 18.17501038 | R123: 0.66875 | S123: 0 | T123: 0
A124: 108 | B124: 0.6785840132 | C124: 62.76913613 | D124: 77.84623016 | E124: 15.69228403 | F124: 19.46155754 | G124: 13.4703719 | H124: 16.70594396 | I124: 2.76922123 | J124: 7.846142016 | K124: 0 | L124: -89.2 | M124: 0 | N124: 0 | P124: 14.58132796 | Q124: 18.08375075 | R124: 0.675 | S124: 0 | T124: 0
A125: 109 | B125: 0.6848671985 | C125: 63.25701619 | D125: 77.45030602 | E125: 15.81425405 | F125: 19.3625765 | G125: 13.57507185 | H125: 16.62097792 | I125: 2.818711748 | J125: 7.907127024 | K125: 0 | L125: -89.1 | M125: 0 | N125: 0 | P125: 14.69466295 | Q125: 17.99177721 | R125: 0.68125 | S125: 0 | T125: 0
A126: 110 | B126: 0.6911503838 | C126: 63.74239897 | D126: 77.05132428 | E126: 15.93559974 | F126: 19.26283107 | G126: 13.67923589 | H126: 16.5353557 | I126: 2.868584465 | J126: 7.967799872 | K126: 0 | L126: -89 | M126: 0 | N126: 0 | P126: 14.80741782 | Q126: 17.89909339 | R126: 0.6875 | S126: 0 | T126: 0
A127: 111 | B127: 0.6974335691 | C127: 64.22526532 | D127: 76.64930068 | E127: 16.05631633 | F127: 19.16232517 | G127: 13.78285989 | H127: 16.4490807 | I127: 2.918837415 | J127: 8.028158165 | K127: 0 | L127: -88.9 | M127: 0 | N127: 0 | P127: 14.91958811 | Q127: 17.80570294 | R127: 0.69375 | S127: 0 | T127: 0
A128: 112 | B128: 0.7037167544 | C128: 64.70559616 | D128: 76.2442511 | E128: 16.17639904 | F128: 19.06106278 | G128: 13.88593977 | H128: 16.36215632 | I128: 2.969468612 | J128: 8.08819952 | K128: 0 | L128: -88.8 | M128: 0 | N128: 0 | P128: 15.03116941 | Q128: 17.71160955 | R128: 0.7 | S128: 0 | T128: 0
A129: 113 | B129: 0.7099999397 | C129: 65.18337253 | D129: 75.83619153 | E129: 16.29584313 | F129: 18.95904788 | G129: 13.98847146 | H129: 16.27458598 | I129: 3.020476059 | J129: 8.147921566 | K129: 0 | L129: -88.7 | M129: 0 | N129: 0 | P129: 15.1421573 | Q129: 17.61681693 | R129: 0.70625 | S129: 0 | T129: 0
A130: 114 | B130: 0.716283125 | C130: 65.65857558 | D130: 75.42513807 | E130: 16.41464389 | F130: 18.85628452 | G130: 14.09045091 | H130: 16.18637316 | I130: 3.071857741 | J130: 8.207321947 | K130: 0 | L130: -88.6 | M130: 0 | N130: 0 | P130: 15.2525474 | Q130: 17.52132884 | R130: 0.7125 | S130: 0 | T130: 0
A131: 115 | B131: 0.7225663103 | C131: 66.13118653 | D131: 75.01110696 | E131: 16.53279663 | F131: 18.75277674 | G131: 14.19187409 | H131: 16.09752132 | I131: 3.12361163 | J131: 8.266398317 | K131: 0 | L131: -88.5 | M131: 0 | N131: 0 | P131: 15.36233536 | Q131: 17.42514903 | R131: 0.71875 | S131: 0 | T131: 0
A132: 116 | B132: 0.7288494956 | C132: 66.60118674 | D132: 74.59411454 | E132: 16.65029669 | F132: 18.64852864 | G132: 14.292737 | H132: 16.00803398 | I132: 3.175735682 | J132: 8.325148343 | K132: 0 | L132: -88.4 | M132: 0 | N132: 0 | P132: 15.47151684 | Q132: 17.32828131 | R132: 0.725 | S132: 0 | T132: 0
A133: 117 | B133: 0.7351326809 | C133: 67.06855765 | D133: 74.17417727 | E133: 16.76713941 | F133: 18.54354432 | G133: 14.39303565 | H133: 15.91791467 | I133: 3.228227841 | J133: 8.383569707 | K133: 0 | L133: -88.3 | M133: 0 | N133: 0 | P133: 15.58008753 | Q133: 17.23072949 | R133: 0.73125 | S133: 0 | T133: 0
A134: 118 | B134: 0.7414158662 | C134: 67.53328081 | D134: 73.75131174 | E134: 16.8833202 | F134: 18.43782793 | G134: 14.49276609 | H134: 15.82716695 | I134: 3.281086033 | J134: 8.441660102 | K134: 0 | L134: -88.2 | M134: 0 | N134: 0 | P134: 15.68804315 | Q134: 17.13249744 | R134: 0.7375 | S134: 0 | T134: 0
A135: 119 | B135: 0.7476990516 | C135: 67.99533787 | D135: 73.32553462 | E135: 16.99883447 | F135: 18.33138366 | G135: 14.59192439 | H135: 15.7357944 | I135: 3.334308172 | J135: 8.499417234 | K135: 0 | L135: -88.1 | M135: 0 | N135: 0 | P135: 15.79537943 | Q135: 17.03358903 | R135: 0.74375 | S135: 0 | T135: 0
A136: 120 | B136: 0.7539822369 | C136: 68.45471059 | D136: 72.89686274 | E136: 17.11367765 | F136: 18.22421569 | G136: 14.69050662 | H136: 15.64380063 | I136: 3.387892157 | J136: 8.556838824 | K136: 0 | L136: -88 | M136: 0 | N136: 0 | P136: 15.90209213 | Q136: 16.93400816 | R136: 0.75 | S136: 0 | T136: 0
A137: 121 | B137: 0.7602654222 | C137: 68.91138084 | D137: 72.46531302 | E137: 17.22784521 | F137: 18.11632825 | G137: 14.78850889 | H137: 15.55118926 | I137: 3.441835873 | J137: 8.613922605 | K137: 0 | L137: -87.9 | M137: 0 | N137: 0 | P137: 16.00817705 | Q137: 16.83375876 | R137: 0.75625 | S137: 0 | T137: 0
A138: 122 | B138: 0.7665486075 | C138: 69.36533058 | D138: 72.03090249 | E138: 17.34133265 | F138: 18.00772562 | G138: 14.88592734 | H138: 15.45796397 | I138: 3.496137189 | J138: 8.670666323 | K138: 0 | L138: -87.8 | M138: 0 | N138: 0 | P138: 16.11362999 | Q138: 16.73284479 | R138: 0.7625 | S138: 0 | T138: 0
A139: 123 | B139: 0.7728317928 | C139: 69.8165419 | D139: 71.5936483 | E139: 17.45413547 | F139: 17.89841208 | G139: 14.98275812 | H139: 15.36412841 | I139: 3.550793962 | J139: 8.727067737 | K139: 0 | L139: -87.7 | M139: 0 | N139: 0 | P139: 16.2184468 | Q139: 16.63127025 | R139: 0.76875 | S139: 0 | T139: 0
A140: 124 | B140: 0.7791149781 | C140: 70.26499698 | D140: 71.15356772 | E140: 17.56624924 | F140: 17.78839193 | G140: 15.0789974 | H140: 15.26968631 | I140: 3.605804035 | J140: 8.783124622 | K140: 0 | L140: -87.6 | M140: 0 | N140: 0 | P140: 16.32262332 | Q140: 16.52903912 | R140: 0.775 | S140: 0 | T140: 0
A141: 125 | B141: 0.7853981634 | C141: 70.71067812 | D141: 70.71067812 | E141: 17.67766953 | F141: 17.67766953 | G141: 15.17464139 | H141: 15.17464139 | I141: 3.661165235 | J141: 8.838834765 | K141: 0 | L141: -87.5 | M141: 0 | N141: 0 | P141: 16.42615546 | Q141: 16.42615546 | R141: 0.78125 | S141: 0 | T141: 0
A142: 126 | B142: 0.7916813487 | C142: 71.15356772 | D142: 70.26499698 | E142: 17.78839193 | F142: 17.56624924 | G142: 15.26968631 | H142: 15.0789974 | I142: 3.716875378 | J142: 8.894195965 | K142: 0 | L142: -87.4 | M142: 0 | N142: 0 | P142: 16.52903912 | Q142: 16.32262332 | R142: 0.7875 | S142: 0 | T142: 0
A143: 127 | B143: 0.797964534 | C143: 71.5936483 | D143: 69.8165419 | E143: 17.89841208 | F143: 17.45413547 | G143: 15.36412841 | H143: 14.98275812 | I143: 3.772932263 | J143: 8.949206038 | K143: 0 | L143: -87.3 | M143: 0 | N143: 0 | P143: 16.63127025 | Q143: 16.2184468 | R143: 0.79375 | S143: 0 | T143: 0
A144: 128 | B144: 0.8042477193 | C144: =$B$2*SIN(B144) -> 72.03090249 | D144: =$B$2*COS(B144) -> 69.36533058 | E144: =C144/$B$4 -> 18.00772562 | F144: =D144/$B$4 -> 17.34133265 | G144: =C144*(1-PI()/$B$4) -> 15.45796397 | H144: =D144*(1-PI()/$B$4) -> 14.88592734 | I144: 3.829333677 | J144: 9.003862811 | K144: 0 | L144: -87.2 | M144: 0 | N144: 0 | P144: 16.73284479 | Q144: 16.11362999 | R144: 0.8 | S144: 0 | T144: 0
A145: 129 | B145: 0.8105309046 | C145: 72.46531302 | D145: 68.91138084 | E145: 18.11632825 | F145: 17.22784521 | G145: 15.55118926 | H145: 14.78850889 | I145: =IF($B$5<$G$13,$B$2/(2*$B$4)*(1+SIN(-PI()/2+B145)),) -> 3.886077395 | J145: =IF($B$5<$G$13,$B$2/(2*$B$4)*COS(-PI()/2+B145),) -> 9.058164127 | K145: =IF(AND($G$4=1,$B$5>=0,$B$5<=($B$2/($B$4*$B$3))*ASIN($B$4-PI())),$C$9+(A145/1000)*($C$10-$C$9),) -> 0 | L145: =IF(AND($G$4=1,$B$5>=0,$B$5<=($B$2/($B$4*$B$3))*ASIN($B$4-PI())),$D$9+(A145/1000)*($D$10-$D$9),) -> -87.1 | M145: =IF(AND($B$5>=$G$13,$B$5<=$J$13),$G$9+(A145/1000)*($G$10-$G$9),) -> 0 | N145: =IF(AND($B$5>=$G$13,$B$5<=$J$13),$H$9+(A145/1000)*($H$10-$H$9),) -> 0 | P145: =(E145+G145)/2 -> 16.83375876 | Q145: =(F145+H145)/2 -> 16.00817705 | R145: 0.80625 | S145: =($B$5>=R145)*IF(AND(R145>=0,R145<=($B$2/($B$4*$B$3))*ASIN($B$4-PI())),($B$2/$B$4)*SIN((($B$4*$B$3)/$B$2)*R145)*SIN((($B$4*$B$3)/$B$2)*R145),(($B$4-PI())*($B$2/$B$4)+$B$3*(R145-(($B$2/($B$4*$B$3))*ASIN($B$4-PI()))))*($B$4-PI())) -> 0 | T145: =($B$5>=R145)*IF(AND(R145>=0,R145<=($B$2/($B$4*$B$3))*ASIN($B$4-PI())),($B$2/$B$4)*SIN((($B$4*$B$3)/$B$2)*R145)*COS((($B$4*$B$3)/$B$2)*R145),(($B$4-PI())*($B$2/$B$4)+$B$3*(R145-(($B$2/($B$4*$B$3))*ASIN($B$4-PI()))))*COS(ASIN(($B$4-PI())))) -> 0
A146: =A145+1 -> 130 | B146: =2*PI()*(A146/1000) -> 0.8168140899 | C146: 72.89686274 | D146: 68.45471059 | E146: 18.22421569 | F146: 17.11367765 | G146: 15.64380063 | H146: 14.69050662 | I146: 3.943161176 | J146: 9.112107843 | K146: 0 | L146: -87 | M146: 0 | N146: 0 | P146: 16.93400816 | Q146: 15.90209213 | R146: =R145+1.25*$B$2/($B$3*1000) -> 0.8125 | S146: 0 | T146: 0
A147: 131 | B147: 0.8230972752 | C147: 73.32553462 | D147: 67.99533787 | E147: 18.33138366 | F147: 16.99883447 | G147: 15.7357944 | H147: 14.59192439 | I147: 4.000582766 | J147: 9.165691828 | K147: 0 | L147: -86.9 | M147: 0 | N147: 0 | P147: 17.03358903 | Q147: 15.79537943 | R147: 0.81875 | S147: 0 | T147: 0
A148: 132 | B148: 0.8293804605 | C148: 73.75131174 | D148: 67.53328081 | E148: 18.43782793 | F148: 16.8833202 | G148: 15.82716695 | H148: 14.49276609 | I148: 4.058339898 | J148: 9.218913967 | K148: 0 | L148: -86.8 | M148: 0 | N148: 0 | P148: 17.13249744 | Q148: 15.68804315 | R148: 0.825 | S148: 0 | T148: 0
A149: 133 | B149: 0.8356636459 | C149: 74.17417727 | D149: 67.06855765 | E149: 18.54354432 | F149: 16.76713941 | G149: 15.91791467 | H149: 14.39303565 | I149: 4.116430293 | J149: 9.271772159 | K149: 0 | L149: -86.7 | M149: 0 | N149: 0 | P149: 17.23072949 | Q149: 15.58008753 | R149: 0.83125 | S149: 0 | T149: 0
A150: 134 | B150: 0.8419468312 | C150: 74.59411454 | D150: 66.60118674 | E150: 18.64852864 | F150: 16.65029669 | G150: 16.00803398 | H150: 14.292737 | I150: 4.174851657 | J150: 9.324264318 | K150: 0 | L150: -86.6 | M150: 0 | N150: 0 | P150: 17.32828131 | Q150: 15.47151684 | R150: 0.8375 | S150: 0 | T150: 0
A151: 135 | B151: 0.8482300165 | C151: 75.01110696 | D151: 66.13118653 | E151: 18.75277674 | F151: 16.53279663 | G151: 16.09752132 | H151: 14.19187409 | I151: 4.233601683 | J151: 9.37638837 | K151: 0 | L151: -86.5 | M151: 0 | N151: 0 | P151: 17.42514903 | Q151: 15.36233536 | R151: 0.84375 | S151: 0 | T151: 0
A152: 136 | B152: 0.8545132018 | C152: 75.42513807 | D152: 65.65857558 | E152: 18.85628452 | F152: 16.41464389 | G152: 16.18637316 | H152: 14.09045091 | I152: 4.292678053 | J152: 9.428142259 | K152: 0 | L152: -86.4 | M152: 0 | N152: 0 | P152: 17.52132884 | Q152: 15.2525474 | R152: 0.85 | S152: 0 | T152: 0
A153: 137 | B153: 0.8607963871 | C153: 75.83619153 | D153: 65.18337253 | E153: 18.95904788 | F153: 16.29584313 | G153: 16.27458598 | H153: 13.98847146 | I153: 4.352078434 | J153: 9.479523941 | K153: 0 | L153: -86.3 | M153: 0 | N153: 0 | P153: 17.61681693 | Q153: 15.1421573 | R153: 0.85625 | S153: 0 | T153: 0
A154: 138 | B154: 0.8670795724 | C154: 76.2442511 | D154: 64.70559616 | E154: 19.06106278 | F154: 16.17639904 | G154: 16.36215632 | H154: 13.88593977 | I154: 4.41180048 | J154: 9.530531388 | K154: 0 | L154: -86.2 | M154: 0 | N154: 0 | P154: 17.71160955 | Q154: 15.03116941 | R154: 0.8625 | S154: 0 | T154: 0
A155: 139 | B155: 0.8733627577 | C155: 76.64930068 | D155: 64.22526532 | E155: 19.16232517 | F155: 16.05631633 | G155: 16.4490807 | H155: 13.78285989 | I155: 4.471841835 | J155: 9.581162585 | K155: 0 | L155: -86.1 | M155: 0 | N155: 0 | P155: 17.80570294 | Q155: 14.91958811 | R155: 0.86875 | S155: 0 | T155: 0
A156: 140 | B156: 0.879645943 | C156: 77.05132428 | D156: 63.74239897 | E156: 19.26283107 | F156: 15.93559974 | G156: 16.5353557 | H156: 13.67923589 | I156: 4.532200128 | J156: 9.631415535 | K156: 0 | L156: -86 | M156: 0 | N156: 0 | P156: 17.89909339 | Q156: 14.80741782 | R156: 0.875 | S156: 0 | T156: 0
A157: 141 | B157: 0.8859291283 | C157: 77.45030602 | D157: 63.25701619 | E157: 19.3625765 | F157: 15.81425405 | G157: 16.62097792 | H157: 13.57507185 | I157: 4.592872976 | J157: 9.681288252 | K157: 0 | L157: -85.9 | M157: 0 | N157: 0 | P157: 17.99177721 | Q157: 14.69466295 | R157: 0.88125 | S157: 0 | T157: 0
A158: 142 | B158: 0.8922123136 | C158: 77.84623016 | D158: 62.76913613 | E158: 19.46155754 | F158: 15.69228403 | G158: 16.70594396 | H158: 13.4703719 | I158: 4.653857984 | J158: 9.73077877 | K158: 0 | L158: -85.8 | M158: 0 | N158: 0 | P158: 18.08375075 | Q158: 14.58132796 | R158: 0.8875 | S158: 0 | T158: 0
A159: 143 | B159: 0.8984954989 | C159: 78.23908106 | D159: 62.27877805 | E159: 19.55977026 | F159: 15.56969451 | G159: 16.79025049 | H159: 13.36514015 | I159: 4.715152744 | J159: 9.779885132 | K159: 0 | L159: -85.7 | M159: 0 | N159: 0 | P159: 18.17501038 | Q159: 14.46741733 | R159: 0.89375 | S159: 0 | T159: 0
A160: 144 | B160: 0.9047786842 | C160: 78.62884321 | D160: 61.78596131 | E160: 19.6572108 | F160: 15.44649033 | G160: 16.87389416 | H160: 13.25938077 | I160: 4.776754836 | J160: 9.828605402 | K160: 0 | L160: -85.6 | M160: 0 | N160: 0 | P160: 18.26555248 | Q160: 14.35293555 | R160: 0.9 | S160: 0 | T160: 0
A161: 145 | B161: 0.9110618695 | C161: 79.01550124 | D161: 61.29070537 | E161: 19.75387531 | F161: 15.32267634 | G161: 16.95687169 | H161: 13.15309794 | I161: 4.838661829 | J161: 9.876937655 | K161: 0 | L161: -85.5 | M161: 0 | N161: 0 | P161: 18.3553735 | Q161: 14.23788714 | R161: 0.90625 | S161: 0 | T161: 0
A162: 146 | B162: 0.9173450548 | C162: 79.39903986 | D162: 60.79302977 | E162: 19.84975997 | F162: 15.19825744 | G162: 17.03917978 | H162: 13.04629584 | I162: 4.900871279 | J162: 9.924879983 | K162: 0 | L162: -85.4 | M162: 0 | N162: 0 | P162: 18.44446987 | Q162: 14.12227664 | R162: 0.9125 | S162: 0 | T162: 0
A163: 147 | B163: 0.9236282402 | C163: 79.77944395 | D163: 60.29295417 | E163: 19.94486099 | F163: 15.07323854 | G163: 17.1208152 | H163: 12.9389787 | I163: 4.963380729 | J163: 9.972430494 | K163: 0 | L163: -85.3 | M163: 0 | N163: 0 | P163: 18.53283809 | Q163: 14.00610862 | R163: 0.91875 | S163: 0 | T163: 0
A164: 148 | B164: 0.9299114255 | C164: 80.15669849 | D164: 59.79049831 | E164: 20.03917462 | F164: 14.94762458 | G164: 17.20177471 | H164: 12.83115075 | I164: 5.026187712 | J164: 10.01958731 | K164: 0 | L164: -85.2 | M164: 0 | N164: 0 | P164: 18.62047467 | Q164: 13.88938766 | R164: 0.925 | S164: 0 | T164: 0
A165: 149 | B165: 0.9361946108 | C165: 80.53078857 | D165: 59.28568202 | E165: 20.13269714 | F165: 14.8214205 | G165: 17.28205513 | H165: 12.72281624 | I165: 5.089289748 | J165: 10.06634857 | K165: 0 | L165: -85.1 | M165: 0 | N165: 0 | P165: 18.70737614 | Q165: 13.77211837 | R165: 0.93125 | S165: 0 | T165: 0
A166: 150 | B166: 0.9424777961 | C166: 80.90169944 | D166: 58.77852523 | E166: 20.22542486 | F166: 14.69463131 | G166: 17.36165328 | H166: 12.61397947 | I166: 5.152684346 | J166: 10.11271243 | K166: 0 | L166: -85 | M166: 0 | N166: 0 | P166: 18.79353907 | Q166: 13.65430539 | R166: 0.9375 | S166: 0 | T166: 0
A167: 151 | B167: 0.9487609814 | C167: 81.26941644 | D167: 58.26904797 | E167: 20.31735411 | F167: 14.56726199 | G167: 17.44056603 | H167: 12.50464471 | I167: 5.216369004 | J167: 10.15867706 | K167: 0 | L167: -84.9 | M167: 0 | N167: 0 | P167: 18.87896007 | Q167: 13.53595335 | R167: 0.94375 | S167: 0 | T167: 0
A168: 152 | B168: 0.9550441667 | C168: 81.63392507 | D168: 57.75727034 | E168: 20.40848127 | F168: 14.43931759 | G168: 17.51879025 | H168: 12.39481629 | I168: 5.280341207 | J168: 10.20424063 | K168: 0 | L168: -84.8 | M168: 0 | N168: 0 | P168: 18.96363576 | Q168: 13.41706694 | R168: 0.95 | S168: 0 | T168: 0
A169: 153 | B169: 0.961327352 | C169: 81.99521093 | D169: 57.24321256 | E169: 20.49880273 | F169: 14.31080314 | G169: 17.59632286 | H169: 12.28449855 | I169: 5.34459843 | J169: 10.24940137 | K169: 0 | L169: -84.7 | M169: 0 | N169: 0 | P169: 19.0475628 | Q169: 13.29765084 | R169: 0.95625 | S169: 0 | T169: 0
A170: 154 | B170: 0.9676105373 | C170: 82.35325976 | D170: 56.72689491 | E170: 20.58831494 | F170: 14.18172373 | G170: 17.6731608 | H170: 12.17369583 | I170: 5.409138136 | J170: 10.29415747 | K170: 0 | L170: -84.6 | M170: 0 | N170: 0 | P170: 19.13073787 | Q170: 13.17770978 | R170: 0.9625 | S170: 0 | T170: 0
A171: 155 | B171: 0.9738937226 | C171: 82.70805743 | D171: 56.20833779 | E171: 20.67701436 | F171: 14.05208445 | G171: 17.74930103 | H171: 12.06241252 | I171: 5.473957777 | J171: 10.33850718 | K171: 0 | L171: -84.5 | M171: 0 | N171: 0 | P171: 19.21315769 | Q171: 13.05724848 | R171: 0.96875 | S171: 0 | T171: 0
A172: 156 | B172: 0.9801769079 | C172: 83.05958992 | D172: 55.68756165 | E172: 20.76489748 | F172: 13.92189041 | G172: 17.82474054 | H172: 11.95065301 | I172: 5.539054794 | J172: 10.38244874 | K172: 0 | L172: -84.4 | M172: 0 | N172: 0 | P172: 19.29481901 | Q172: 12.93627171 | R172: 0.975 | S172: 0 | T172: 0
A173: 157 | B173: 0.9864600932 | C173: 83.40784336 | D173: 55.16458706 | E173: 20.85196084 | F173: 13.79114677 | G173: 17.89947637 | H173: 11.8384217 | I173: 5.604426617 | J173: 10.42598042 | K173: 0 | L173: -84.3 | M173: 0 | N173: 0 | P173: 19.37571861 | Q173: 12.81478423 | R173: 0.98125 | S173: 0 | T173: 0
A174: 158 | B174: 0.9927432785 | C174: 83.752804 | D174: 54.63943467 | E174: 20.938201 | F174: 13.65985867 | G174: 17.97350556 | H174: 11.72572303 | I174: 5.670070666 | J174: 10.4691005 | K174: 0 | L174: -84.2 | M174: 0 | N174: 0 | P174: 19.45585328 | Q174: 12.69279085 | R174: 0.9875 | S174: 0 | T174: 0
A175: 159 | B175: 0.9990264638 | C175: 84.09445823 | D175: 54.11212521 | E175: 21.02361456 | F175: 13.5280313 | G175: 18.04682518 | H175: 11.61256145 | I175: 5.735984348 | J175: 10.51180728 | K175: 0 | L175: -84.1 | M175: 0 | N175: 0 | P175: 19.53521987 | Q175: 12.57029638 | R175: 0.99375 | S175: 0 | T175: 0
A176: 160 | B176: 1.005309649 | C176: 84.43279255 | D176: 53.5826795 | E176: 21.10819814 | F176: 13.39566987 | G176: 18.11943235 | H176: 11.49894143 | I176: 5.802165063 | J176: 10.55409907 | K176: 0 | L176: -84 | M176: 0 | N176: 0 | P176: 19.61381524 | Q176: 12.44730565 | R176: 1 | S176: 0 | T176: 0
A177: 161 | B177: 1.011592834 | C177: 84.76779361 | D177: 53.05111843 | E177: 21.1919484 | F177: 13.26277961 | G177: 18.19132419 | H177: 11.38486745 | I177: 5.868610196 | J177: 10.5959742 | K177: 0 | L177: -83.9 | M177: 0 | N177: 0 | P177: 19.6916363 | Q177: 12.32382353 | R177: 1.00625 | S177: 0 | T177: 0
A178: 162 | B178: 1.01787602 | C178: 85.09944818 | D178: 52.517463 | E178: 21.27486204 | F178: 13.12936575 | G178: 18.26249787 | H178: 11.27034401 | I178: 5.935317125 | J178: 10.63743102 | K178: 0 | L178: -83.8 | M178: 0 | N178: 0 | P178: 19.76867996 | Q178: 12.19985488 | R178: 1.0125 | S178: 0 | T178: 0
A179: 163 | B179: 1.024159205 | C179: 85.42774317 | D179: 51.98173426 | E179: 21.35693579 | F179: 12.99543357 | G179: 18.33295058 | H179: 11.15537564 | I179: 6.002283217 | J179: 10.6784679 | K179: 0 | L179: -83.7 | M179: 0 | N179: 0 | P179: 19.84494319 | Q179: 12.0754046 | R179: 1.01875 | S179: 0 | T179: 0
A180: 164 | B180: 1.03044239 | C180: 85.75266562 | D180: 51.44395338 | E180: 21.4381664 | F180: 12.86098834 | G180: 18.40267954 | H180: 11.03996688 | I180: 6.069505828 | J180: 10.7190832 | K180: 0 | L180: -83.6 | M180: 0 | N180: 0 | P180: 19.92042297 | Q180: 11.95047761 | R180: 1.025 | S180: 0 | T180: 0
A181: 165 | B181: 1.036725576 | C181: 86.0742027 | D181: 50.90414158 | E181: 21.51855068 | F181: 12.72603539 | G181: 18.47168198 | H181: 10.92412227 | I181: 6.136982303 | J181: 10.75927534 | K181: 0 | L181: -83.5 | M181: 0 | N181: 0 | P181: 19.99511633 | Q181: 11.82507883 | R181: 1.03125 | S181: 0 | T181: 0
A182: 166 | B182: 1.043008761 | C182: 86.39234172 | D182: 50.36232016 | E182: 21.59808543 | F182: 12.59058004 | G182: 18.5399552 | H182: 10.8078464 | I182: 6.20470998 | J182: 10.79904271 | K182: 0 | L182: -83.4 | M182: 0 | N182: 0 | P182: 20.06902032 | Q182: 11.69921322 | R182: 1.0375 | S182: 0 | T182: 0
A183: 167 | B183: 1.049291946 | C183: 86.70707012 | D183: 49.81851053 | E183: 21.67676753 | F183: 12.45462763 | G183: 18.60749649 | H183: 10.69114386 | I183: 6.272686183 | J183: 10.83838376 | K183: 0 | L183: -83.3 | M183: 0 | N183: 0 | P183: 20.14213201 | Q183: 11.57288575 | R183: 1.04375 | S183: 0 | T183: 0
A184: 168 | B184: 1.055575132 | C184: 87.01837547 | D184: 49.27273415 | E184: 21.75459387 | F184: 12.31818354 | G184: 18.67430319 | H184: 10.57401924 | I184: 6.340908231 | J184: 10.87729693 | K184: 0 | L184: -83.2 | M184: 0 | N184: 0 | P184: 20.21444853 | Q184: 11.44610139 | R184: 1.05 | S184: 0 | T184: 0
A185: 169 | B185: 1.061858317 | C185: 87.32624548 | D185: 48.72501257 | E185: 21.83156137 | F185: 12.18125314 | G185: 18.74037266 | H185: 10.45647719 | I185: 6.409373428 | J185: 10.91578069 | K185: 0 | L185: -83.1 | M185: 0 | N185: 0 | P185: 20.28596702 | Q185: 11.31886516 | R185: 1.05625 | S185: 0 | T185: 0
A186: 170 | B186: 1.068141502 | C186: 87.630668 | D186: 48.17536741 | E186: 21.907667 | F186: 12.04384185 | G186: 18.8057023 | H186: 10.33852233 | I186: 6.478079074 | J186: 10.9538335 | K186: 0 | L186: -83 | M186: 0 | N186: 0 | P186: 20.35668465 | Q186: 11.19118209 | R186: 1.0625 | S186: 0 | T186: 0
A187: 171 | B187: 1.074424688 | C187: 87.93163102 | D187: 47.62382037 | E187: 21.98290775 | F187: 11.90595509 | G187: 18.87028951 | H187: 10.22015932 | I187: 6.547022454 | J187: 10.99145388 | K187: 0 | L187: -82.9 | M187: 0 | N187: 0 | P187: 20.42659863 | Q187: 11.0630572 | R187: 1.06875 | S187: 0 | T187: 0
A188: 172 | B188: 1.080707873 | C188: 88.22912264 | D188: 47.07039322 | E188: 22.05728066 | F188: 11.7675983 | G188: 18.93413176 | H188: 10.10139283 | I188: 6.616200848 | J188: 11.02864033 | K188: 0 | L188: -82.8 | M188: 0 | N188: 0 | P188: 20.49570621 | Q188: 10.93449557 | R188: 1.075 | S188: 0 | T188: 0
A189: 173 | B189: 1.086991058 | C189: 88.52313113 | D189: 46.51510781 | E189: 22.13078278 | F189: 11.62877695 | G189: 18.99722652 | H189: 9.982227565 | I189: 6.685611524 | J189: 11.06539139 | K189: 0 | L189: -82.7 | M189: 0 | N189: 0 | P189: 20.56400465 | Q189: 10.80550226 | R189: 1.08125 | S189: 0 | T189: 0
A190: 174 | B190: 1.093274243 | C190: 88.81364488 | D190: 45.95798606 | E190: 22.20341122 | F190: 11.48949652 | G190: 19.05957131 | H190: 9.862668215 | I190: 6.755251742 | J190: 11.10170561 | K190: 0 | L190: -82.6 | M190: 0 | N190: 0 | P190: 20.63149126 | Q190: 10.67608237 | R190: 1.0875 | S190: 0 | T190: 0
A191: 175 | B191: 1.099557429 | C191: 89.10065242 | D191: 45.39904997 | E191: 22.2751631 | F191: 11.34976249 | G191: 19.12116365 | H191: 9.742719504 | I191: 6.825118753 | J191: 11.13758155 | K191: 0 | L191: -82.5 | M191: 0 | N191: 0 | P191: 20.69816338 | Q191: 10.546241 | R191: 1.09375 | S191: 0 | T191: 0
A192: 176 | B192: 1.105840614 | C192: 89.38414242 | D192: 44.83832161 | E192: 22.3460356 | F192: 11.2095804 | G192: 19.18200113 | H192: 9.622386167 | I192: 6.895209799 | J192: 11.1730178 | K192: 0 | L192: -82.4 | M192: 0 | N192: 0 | P192: 20.76401836 | Q192: 10.41598328 | R192: 1.1 | S192: 0 | T192: 0
A193: 177 | B193: 1.112123799 | C193: 89.66410368 | D193: 44.2758231 | E193: 22.41602592 | F193: 11.06895578 | G193: 19.24208133 | H193: 9.501672955 | I193: 6.965522112 | J193: 11.20801296 | K193: 0 | L193: -82.3 | M193: 0 | N193: 0 | P193: 20.82905362 | Q193: 10.28531437 | R193: 1.10625 | S193: 0 | T193: 0
A194: 178 | B194: 1.118406985 | C194: 89.94052516 | D194: 43.71157667 | E194: 22.48513129 | F194: 10.92789417 | G194: 19.30140188 | H194: 9.380584633 | I194: 7.036052917 | J194: 11.24256564 | K194: 0 | L194: -82.2 | M194: 0 | N194: 0 | P194: 20.89326659 | Q194: 10.1542394 | R194: 1.1125 | S194: 0 | T194: 0
A195: 179 | B195: 1.12469017 | C195: 90.21339594 | D195: 43.14560457 | E195: 22.55334898 | F195: 10.78640114 | G195: 19.35996045 | H195: 9.259125982 | I195: 7.106799429 | J195: 11.27667449 | K195: 0 | L195: -82.1 | M195: 0 | N195: 0 | P195: 20.95665472 | Q195: 10.02276356 | R195: 1.11875 | S195: 0 | T195: 0
A196: 180 | B196: 1.130973355 | C196: 90.48270525 | D196: 42.57792916 | E196: 22.62067631 | F196: 10.64448229 | G196: 19.41775473 | H196: 9.137301796 | I196: 7.177758855 | J196: 11.31033816 | K196: 0 | L196: -82 | M196: 0 | N196: 0 | P196: 21.01921552 | Q196: 9.890892042 | R196: 1.125 | S196: 0 | T196: 0
A197: 181 | B197: 1.137256541 | C197: 90.74844245 | D197: 42.00857284 | E197: 22.68711061 | F197: 10.50214321 | G197: 19.47478242 | H197: 9.015116885 | I197: 7.248928395 | J197: 11.34355531 | K197: 0 | L197: -81.9 | M197: 0 | N197: 0 | P197: 21.08094652 | Q197: 9.758630048 | R197: 1.13125 | S197: 0 | T197: 0
A198: 182 | B198: 1.143539726 | C198: 91.01059707 | D198: 41.4375581 | E198: 22.75264927 | F198: 10.35938952 | G198: 19.53104128 | H198: 8.892576072 | I198: 7.320305238 | J198: 11.37632463 | K198: 0 | L198: -81.8 | M198: 0 | N198: 0 | P198: 21.14184527 | Q198: 9.625982799 | R198: 1.1375 | S198: 0 | T198: 0
A199: 183 | B199: 1.149822911 | C199: 91.26915874 | D199: 40.86490747 | E199: 22.81728969 | F199: 10.21622687 | G199: 19.58652909 | H199: 8.769684196 | I199: 7.391886566 | J199: 11.40864484 | K199: 0 | L199: -81.7 | M199: 0 | N199: 0 | P199: 21.20190939 | Q199: 9.492955532 | R199: 1.14375 | S199: 0 | T199: 0
A200: 184 | B200: 1.156106097 | C200: 91.52411726 | D200: 40.29064357 | E200: 22.88102932 | F200: 10.07266089 | G200: 19.64124366 | H200: 8.646446108 | I200: 7.463669554 | J200: 11.44051466 | K200: 0 | L200: -81.6 | M200: 0 | N200: 0 | P200: 21.26113649 | Q200: 9.359553501 | R200: 1.15 | S200: 0 | T200: 0
A201: 185 | B201: 1.162389282 | C201: 91.77546257 | D201: 39.71478906 | E201: 22.94386564 | F201: 9.928697266 | G201: 19.69518282 | H201: 8.522866673 | I201: 7.535651367 | J201: 11.47193282 | K201: 0 | L201: -81.5 | M201: 0 | N201: 0 | P201: 21.31952423 | Q201: 9.22578197 | R201: 1.15625 | S201: 0 | T201: 0
... 815 more rows

Sheet Zig-Zag Strategy
A1: Variables Key | J1: Zig-Zag Strategy
A2: R | B2: 100 | D2: Move Dog ● and You ● | G2: speed | L2: Time to Inner Annulus= | M2: =(B2/(B4*B3))*ASIN(B4-PI()) -> 2.580391955 | O2: x | P2: y | S2: Circle Construction
A3: v | B3: 10 | G3: tangent | H3: =(B5>0)*SQRT(B3^2-H4^2) -> 0 | J3: % to Annulus | K3: 0.45 | L3: t1= | M3: =K3*(B2/(B4*B3))*ASIN(B4-PI()) -> 1.16117638 | N3: You at t1 | O3: =(B2/B4)*SIN(((B4*B3)/B2)*M3)*SIN(((B4*B3)/B2)*M3) -> 5.016469009 | P3: =(B2/B4)*SIN(((B4*B3)/B2)*M3)*COS(((B4*B3)/B2)*M3) -> 10.01233059 | T3: x | U3: y
A4: π < k < π +1 | B4: 4 | D4: 0 | G4: radial | H4: =(B5=0)*0+(B5>0)*(B5<=(B2/(B4*B3))*ASIN(B4-PI()))*B3*COS(((B4*B3)/B2)*B5)+(B5>(B2/(B4*B3))*ASIN(B4-PI()))*B3 -> 0 | J4: % to Annulus | K4: 0.75 | L4: t2= | M4: =K4*(B2/(B4*B3))*ASIN(B4-PI()) -> 1.935293966 | N4: You at t2 | O4: =(T9+(B2/(2*B4))*SIN(ASIN(ABS(T9)/(B2/(2*B4)))+(2*M3-M4)*B3/(B2/(2*B4)))) -> 2.695074315 | P4: =(U9+(B2/(2*B4))*COS(ASIN(ABS(T9)/(B2/(2*B4)))+(2*M3-M4)*B3/(B2/(2*B4)))) -> 17.26808652 | S4: green centr displayed | T4: =IF(B5<=M3,B2/(2*B4),) -> 12.5 | U4: =IF(B5<=M3,0,) -> 0
A5: t | B5: =D4/100 -> 0 | G5: total | H5: =SQRT(H3^2+H4^2) -> 0 | J5: =IF(AND(0<K3,K3<K4,K4<M2),"OK","ERROR: t1, t2") -> OK | L5: Time to Escape: | M5: =(((PI()+ASIN(B4-PI()))/B4)*B2)/B3 -> 10.43437359 | S5: purpl centr moving | T5: =C10-B2/8 -> -12.5 | U5: =D10 -> 0
A6: Ratio t/R | B6: =TEXT(B5*B3/B2,"0.000") & " R" -> 0.000 R | S6: purp cent displayed | T6: =(B5>0)*(B5<M3)*T5+(B5>=M3)*(B5<=M4)*T9 -> 0 | U6: =(B5>0)*(B5<M3)*U5+(B5>=M3)*(B5<=M4)*U9 -> 0
S7: blue centr moving | T7: =(B5>=M3)*(C10-T9) -> 0 | U7: =(B5>=M3)*(D10-U9) -> 0
C8: x | D8: y | F8: Escape Route | G8: x | H8: y | S8: blue cent displayed | T8: =(B5>=M3)*(B5<M4)*T7+(B5>=M4)*(B5<M2)*T10 -> 0 | U8: =(B5>=M3)*(B5<M4)*U7+(B5>=M4)*(B5<M2)*U10 -> 0
B9: Dog | C9: =(B5>=0)*(B5<=M3)*B2*SIN(PI()+B5*B4*B3/B2)+(B5>M3)*(B5<=M4)*B2*SIN(PI()+(2*M3-B5)*B4*B3/B2)+(B5>M4)*B2*SIN(PI()+(2*(M3-M4)+B5)*B4*B3/B2) -> 1.225148455e-14 | D9: =(B5>=0)*(B5<=M3)*B2*COS(PI()+B5*B4*B3/B2)+(B5>M3)*(B5<=M4)*B2*COS(PI()+(2*M3-B5)*B4*B3/B2)+(B5>M4)*B2*COS(PI()+(2*(M3-M4)+B5)*B4*B3/B2) -> -100 | F9: Annulus | G9: =(T10+(B2/(2*B4))*SIN(PI()+ASIN((T10-0)/(B2/(2*B4)))+(M2)*B3/(B2/(2*B4)))) -> 8.610536974 | H9: =(U10+(B2/(2*B4))*COS(PI()+ASIN((T10-0)/(B2/(2*B4)))+(M2)*B3/(B2/(2*B4)))) -> 19.65701238 | S9: centr purp fixed | T9: =O3-B2/(2*B4) -> -7.483530991 | U9: =P3 -> 10.01233059
B10: You | C10: =(B5>=0)*(B5<M3)*(B2/B4)*SIN(((B4*B3)/B2)*B5)*SIN(((B4*B3)/B2)*B5)+(B5>=M3)*(B5<M4)*(T9+(B2/(2*B4))*SIN(ASIN((0-T9)/(B2/(2*B4)))+(2*M3-B5)*B3/(B2/(2*B4))))+(B5>=M4)*(B5<=M2)*(T10+(B2/(2*B4))*SIN(PI()+ASIN((T10-0)/(B2/(2*B4)))+(B5)*B3/(B2/(2*B4))))+(B5>M2)*(G9+(B5-M2)*B3*G9/((1-PI()/B4)*B2)) -> 0 | D10: =(B5>=0)*(B5<M3)*(B2/B4)*SIN(((B4*B3)/B2)*B5)*COS(((B4*B3)/B2)*B5)+(B5>=M3)*(B5<M4)*(U9+(B2/(2*B4))*COS(ASIN((0-T9)/(B2/(2*B4)))+(2*M3-B5)*B3/(B2/(2*B4))))+(B5>=M4)*(B5<=M2)*(U10+(B2/(2*B4))*COS(PI()+ASIN((T10-0)/(B2/(2*B4)))+(B5)*B3/(B2/(2*B4))))+(B5>M2)*(H9+(B5-M2)*B3*H9/((1-PI()/B4)*B2)) -> 0 | F10: Boundary | G10: =(1/(1-PI()/B4))*G9 -> 40.12331446 | H10: =(1/(1-PI()/B4))*H9 -> 91.59759624 | S10: blue centr fixed | T10: =O4-T9 -> 10.17860531 | U10: =P4-U9 -> 7.255755924
B12: Centre | C12: 0 | D12: 0 | F12: Graph Title: | G12: ="R=" & TEXT(B2,"0") &", v=" & TEXT(B3,"0") &", k=" & TEXT(B4,"0") &" (t=" & TEXT(B5,"0.00") & ", Distance=" & TEXT(B6,"0.000") &")" -> R=100, v=10, k=4 (t=0.00, Distance=0.000 R)
R13: Moving | T13: Final #2 | V13: Moving | X13: Final #3
A14: N | B14: Radians | C14: Big R Circle | E14: R/k Circle | G14: R(1-PI/k) Circle | I14: R/(2k) Half Circle | K14: Line Between Dog & Human | M14: Escape Route | R14: Zig-Zag Circle (#2) | T14: Zig-Zag Circle (#2) | V14: Zig-Zag Circle (#3) | X14: Zig-Zag Circle (#3) | Z14: Escape route
C15: x | D15: y | E15: x | F15: y | G15: x | H15: y | I15: x | J15: y | K15: x | L15: y | M15: x | N15: y | P15: Annulus | R15: x | S15: y | T15: x | U15: y | V15: x | W15: y | X15: x | Y15: y | Z15: t | AA15: x | AB15: y
A16: 0 | B16: 0 | C16: =$B$2*SIN(B16) -> 0 | D16: =$B$2*COS(B16) -> 100 | E16: =C16/$B$4 -> 0 | F16: 25 | G16: =C16*(1-PI()/$B$4) -> 0 | H16: 21.46018366 | I16: =IF($B$5<$M$3,$B$2/(2*$B$4)*(1+SIN(-PI()/2+B16)),) -> 0 | J16: =IF($B$5<$M$3,$B$2/(2*$B$4)*COS(-PI()/2+B16),) -> 7.657177843e-16 | K16: =IF($B$5<=$M$2,$C$9+(A16/1000)*($C$10-$C$9),) -> 1.225148455e-14 | L16: =IF($B$5<=$M$2,$D$9+(A16/1000)*($D$10-$D$9),) -> -100 | M16: =IF(AND($B$5>=$M$2,$B$5<=$M$5),$G$9+(A16/1000)*($G$10-$G$9),) -> 0 | N16: =IF(AND($B$5>=$M$2,$B$5<=$M$5),$H$9+(A16/1000)*($H$10-$H$9),) -> 0 | P16: =(E16+G16)/2 -> 0 | Q16: =(F16+H16)/2 -> 23.23009183 | R16: =IF(AND($B$5>0,$B$5<=MIN($M$3,$M$2)),$T$5+$B$2/(2*$B$4)*(SIN(B16)),) -> 0 | S16: =IF(AND($B$5>0,$B$5<=MIN($M$3,$M$2)),$U$5+$B$2/(2*$B$4)*COS(B16),) -> 0 | T16: =IF(AND($B$5>=$M$3,$B$5<=MIN($M$4,$M$2)),$T$9+$B$2/(2*$B$4)*SIN(B16),) -> 0 | U16: =IF(AND($B$5>=$M$3,$B$5<=MIN($M$4,$M$2)),$U$9+$B$2/(2*$B$4)*COS(B16),) -> 0 | V16: =IF(AND($B$5>=$M$3,$B$5<MIN($M$4,$M$2)),$T$7+$B$2/(2*$B$4)*(SIN(B16)),) -> 0 | W16: =IF(AND($B$5>=$M$3,$B$5<MIN($M$4,$M$2)),$U$7+$B$2/(2*$B$4)*COS(B16),) -> 0 | X16: =IF(AND($B$5>=$M$4,$B$5<$M$2),$T$10+$B$2/(2*$B$4)*SIN(B16),) -> 0 | Y16: =IF(AND($B$5>=$M$4,$B$5<$M$2),$U$10+$B$2/(2*$B$4)*COS(B16),) -> 0 | Z16: 0 | AA16: =($B$5>=Z16)*((Z16>=0)*(Z16<$M$3)*($B$2/$B$4)*SIN((($B$4*$B$3)/$B$2)*Z16)*SIN((($B$4*$B$3)/$B$2)*Z16)+(Z16>=$M$3)*(Z16<$M$4)*($T$9+($B$2/(2*$B$4))*SIN(ASIN((0-$T$9)/($B$2/(2*$B$4)))+(2*$M$3-Z16)*$B$3/($B$2/(2*$B$4))))+(Z16>=$M$4)*(Z16<=$M$2)*($T$10+($B$2/(2*$B$4))*SIN(PI()+ASIN(($T$10-0)/($B$2/(2*$B$4)))+(Z16)*$B$3/($B$2/(2*$B$4))))+(Z16>$M$2)*($G$9+(Z16-$M$2)*$B$3*$G$9/((1-PI()/$B$4)*$B$2))) -> 0 | AB16: =($B$5>=Z16)*((Z16>=0)*(Z16<$M$3)*($B$2/$B$4)*SIN((($B$4*$B$3)/$B$2)*Z16)*COS((($B$4*$B$3)/$B$2)*Z16)+(Z16>=$M$3)*(Z16<$M$4)*($U$9+($B$2/(2*$B$4))*COS(ASIN((0-$T$9)/($B$2/(2*$B$4)))+(2*$M$3-Z16)*$B$3/($B$2/(2*$B$4))))+(Z16>=$M$4)*(Z16<=$M$2)*($U$10+($B$2/(2*$B$4))*COS(PI()+ASIN(($T$10-0)/($B$2/(2*$B$4)))+(Z16)*$B$3/($B$2/(2*$B$4))))+(Z16>$M$2)*($H$9+(Z16-$M$2)*$B$3*$H$9/((1-PI()/$B$4)*$B$2))) -> 0
A17: =A16+1 -> 1 | B17: =2*PI()*(A17/1000) -> 0.006283185307 | C17: 0.6283143966 | D17: 99.99802609 | E17: 0.1570785991 | F17: 24.99950652 | G17: 0.1348374235 | H17: 21.45976005 | I17: 0.0002467392983 | J17: 0.07853929957 | K17: 1.223923306e-14 | L17: -99.9 | M17: =IF(AND($B$5>=$M$2,$B$5<=$M$5),$G$9+(A17/1000)*($G$10-$G$9),) -> 0 | N17: =IF(AND($B$5>=$M$2,$B$5<=$M$5),$H$9+(A17/1000)*($H$10-$H$9),) -> 0 | P17: =(E17+G17)/2 -> 0.1459580113 | Q17: 23.22963329 | R17: =IF(AND($B$5>0,$B$5<=MIN($M$3,$M$2)),$T$5+$B$2/(2*$B$4)*(SIN(B17)),) -> 0 | S17: =IF(AND($B$5>0,$B$5<=MIN($M$3,$M$2)),$U$5+$B$2/(2*$B$4)*COS(B17),) -> 0 | T17: =IF(AND($B$5>=$M$3,$B$5<=MIN($M$4,$M$2)),$T$9+$B$2/(2*$B$4)*SIN(B17),) -> 0 | U17: =IF(AND($B$5>=$M$3,$B$5<=MIN($M$4,$M$2)),$U$9+$B$2/(2*$B$4)*COS(B17),) -> 0 | V17: =IF(AND($B$5>=$M$3,$B$5<MIN($M$4,$M$2)),$T$7+$B$2/(2*$B$4)*(SIN(B17)),) -> 0 | W17: =IF(AND($B$5>=$M$3,$B$5<MIN($M$4,$M$2)),$U$7+$B$2/(2*$B$4)*COS(B17),) -> 0 | X17: 0 | Y17: 0 | Z17: =Z16+1.25*$B$2/($B$3*1000) -> 0.0125 | AA17: =($B$5>=Z17)*((Z17>=0)*(Z17<$M$3)*($B$2/$B$4)*SIN((($B$4*$B$3)/$B$2)*Z17)*SIN((($B$4*$B$3)/$B$2)*Z17)+(Z17>=$M$3)*(Z17<$M$4)*($T$9+($B$2/(2*$B$4))*SIN(ASIN((0-$T$9)/($B$2/(2*$B$4)))+(2*$M$3-Z17)*$B$3/($B$2/(2*$B$4))))+(Z17>=$M$4)*(Z17<=$M$2)*($T$10+($B$2/(2*$B$4))*SIN(PI()+ASIN(($T$10-0)/($B$2/(2*$B$4)))+(Z17)*$B$3/($B$2/(2*$B$4))))+(Z17>$M$2)*($G$9+(Z17-$M$2)*$B$3*$G$9/((1-PI()/$B$4)*$B$2))) -> 0 | AB17: =($B$5>=Z17)*((Z17>=0)*(Z17<$M$3)*($B$2/$B$4)*SIN((($B$4*$B$3)/$B$2)*Z17)*COS((($B$4*$B$3)/$B$2)*Z17)+(Z17>=$M$3)*(Z17<$M$4)*($U$9+($B$2/(2*$B$4))*COS(ASIN((0-$T$9)/($B$2/(2*$B$4)))+(2*$M$3-Z17)*$B$3/($B$2/(2*$B$4))))+(Z17>=$M$4)*(Z17<=$M$2)*($U$10+($B$2/(2*$B$4))*COS(PI()+ASIN(($T$10-0)/($B$2/(2*$B$4)))+(Z17)*$B$3/($B$2/(2*$B$4))))+(Z17>$M$2)*($H$9+(Z17-$M$2)*$B$3*$H$9/((1-PI()/$B$4)*$B$2))) -> 0
A18: =A17+1 -> 2 | B18: =2*PI()*(A18/1000) -> 0.01256637061 | C18: 1.256603988 | D18: 99.99210442 | E18: 0.3141509971 | F18: 24.99802611 | G18: 0.2696695238 | H18: 21.45848925 | I18: 0.0009869474523 | J18: 0.1570754985 | K18: 1.222698158e-14 | L18: -99.8 | M18: 0 | N18: 0 | P18: 0.2919102604 | Q18: 23.22825768 | R18: 0 | S18: 0 | T18: 0 | U18: 0 | V18: 0 | W18: 0 | X18: 0 | Y18: 0 | Z18: =Z17+1.25*$B$2/($B$3*1000) -> 0.025 | AA18: 0 | AB18: 0
A19: 3 | B19: 0.01884955592 | C19: 1.884843972 | D19: 99.98223524 | E19: 0.4712109929 | F19: 24.99555881 | G19: 0.404490978 | H19: 21.45637131 | I19: 0.00222059524 | J19: 0.2356054964 | K19: 1.22147301e-14 | L19: -99.7 | M19: 0 | N19: 0 | P19: 0.4378509854 | Q19: 23.22596506 | R19: 0 | S19: 0 | T19: 0 | U19: 0 | V19: 0 | W19: 0 | X19: 0 | Y19: 0 | Z19: 0.0375 | AA19: 0 | AB19: 0
A20: 4 | B20: 0.02513274123 | C20: 2.513009544 | D20: 99.96841893 | E20: 0.6282523861 | F20: 24.99210473 | G20: 0.5392964636 | H20: 21.4534063 | I20: 0.003947633959 | J20: 0.314126193 | K20: 1.220247861e-14 | L20: -99.6 | M20: 0 | N20: 0 | P20: 0.5837744248 | Q20: 23.22275552 | R20: 0 | S20: 0 | T20: 0 | U20: 0 | V20: 0 | W20: 0 | X20: 0 | Y20: 0 | Z20: 0.05 | AA20: 0 | AB20: 0
A21: 5 | B21: 0.03141592654 | C21: 3.141075908 | D21: 99.95065604 | E21: 0.785268977 | F21: 24.98766401 | G21: 0.6740806587 | H21: 21.44959436 | I21: 0.006167995428 | J21: 0.3926344885 | K21: 1.219022713e-14 | L21: -99.5 | M21: 0 | N21: 0 | P21: 0.7296748178 | Q21: 23.21862918 | R21: 0 | S21: 0 | T21: 0 | U21: 0 | V21: 0 | W21: 0 | X21: 0 | Y21: 0 | Z21: 0.0625 | AA21: 0 | AB21: 0
A22: 6 | B22: 0.03769911184 | C22: 3.769018267 | D22: 99.92894726 | E22: 0.9422545667 | F22: 24.98223682 | G22: 0.8088382423 | H22: 21.44493561 | I22: 0.008881591993 | J22: 0.4711272834 | K22: 1.217797564e-14 | L22: -99.4 | M22: 0 | N22: 0 | P22: 0.8755464045 | Q22: 23.21358621 | R22: 0 | S22: 0 | T22: 0 | U22: 0 | V22: 0 | W22: 0 | X22: 0 | Y22: 0 | Z22: 0.075 | AA22: 0 | AB22: 0
A23: 7 | B23: 0.04398229715 | C23: 4.396811832 | D23: 99.90329347 | E23: 1.099202958 | F23: 24.97582337 | G23: 0.9435638943 | H23: 21.43943026 | I23: 0.01208831652 | J23: 0.549601479 | K23: 1.216572416e-14 | L23: -99.3 | M23: 0 | N23: 0 | P23: 1.021383426 | Q23: 23.20762681 | R23: 0 | S23: 0 | T23: 0 | U23: 0 | V23: 0 | W23: 0 | X23: 0 | Y23: 0 | Z23: 0.0875 | AA23: 0 | AB23: 0
A24: 8 | B24: 0.05026548246 | C24: 5.024431818 | D24: 99.87369566 | E24: 1.256107954 | F24: 24.96842392 | G24: 1.078252296 | H24: 21.43307852 | I24: 0.01578804242 | J24: 0.6280539772 | K24: 1.215347267e-14 | L24: -99.2 | M24: 0 | N24: 0 | P24: 1.167180125 | Q24: 23.20075122 | R24: 0 | S24: 0 | T24: 0 | U24: 0 | V24: 0 | W24: 0 | X24: 0 | Y24: 0 | Z24: 0.1 | AA24: 0 | AB24: 0
A25: 9 | B25: 0.05654866776 | C25: 5.651853448 | D25: 99.84015501 | E25: 1.412963362 | F25: 24.96003875 | G25: 1.21289813 | H25: 21.42588063 | I25: 0.01998062364 | J25: 0.706481681 | K25: 1.214122119e-14 | L25: -99.1 | M25: 0 | N25: 0 | P25: 1.312930746 | Q25: 23.19295969 | R25: 0 | S25: 0 | T25: 0 | U25: 0 | V25: 0 | W25: 0 | X25: 0 | Y25: 0 | Z25: 0.1125 | AA25: 0 | AB25: 0
A26: 10 | B26: 0.06283185307 | C26: 6.279051953 | D26: 99.80267284 | E26: 1.569762988 | F26: 24.95066821 | G26: 1.347496081 | H26: 21.41783689 | I26: 0.02466589465 | J26: 0.7848814941 | K26: 1.21289697e-14 | L26: -99 | M26: 0 | N26: 0 | P26: 1.458629535 | Q26: 23.18425255 | R26: 0 | S26: 0 | T26: 0 | U26: 0 | V26: 0 | W26: 0 | X26: 0 | Y26: 0 | Z26: 0.125 | AA26: 0 | AB26: 0
A27: 11 | B27: 0.06911503838 | C27: 6.906002571 | D27: 99.76125064 | E27: 1.726500643 | F27: 24.94031266 | G27: 1.482040835 | H27: 21.40894761 | I27: 0.02984367048 | J27: 0.8632503214 | K27: 1.211671822e-14 | L27: -98.9 | M27: 0 | N27: 0 | P27: 1.604270739 | Q27: 23.17463013 | R27: 0 | S27: 0 | T27: 0 | U27: 0 | V27: 0 | W27: 0 | X27: 0 | Y27: 0 | Z27: 0.1375 | AA27: 0 | AB27: 0
A28: 12 | B28: 0.07539822369 | C28: 7.532680553 | D28: 99.71589003 | E28: 1.883170138 | F28: 24.92897251 | G28: 1.616527081 | H28: 21.39921314 | I28: 0.03551374674 | J28: 0.9415850691 | K28: 1.210446673e-14 | L28: -98.8 | M28: 0 | N28: 0 | P28: 1.74984861 | Q28: 23.16409282 | R28: 0 | S28: 0 | T28: 0 | U28: 0 | V28: 0 | W28: 0 | X28: 0 | Y28: 0 | Z28: 0.15 | AA28: 0 | AB28: 0
A29: 13 | B29: 0.08168140899 | C29: 8.159061157 | D29: 99.6665928 | E29: 2.039765289 | F29: 24.9166482 | G29: 1.750949509 | H29: 21.38863386 | I29: 0.04167589957 | J29: 1.019882645 | K29: 1.209221525e-14 | L29: -98.7 | M29: 0 | N29: 0 | P29: 1.895357399 | Q29: 23.15264103 | R29: 0 | S29: 0 | T29: 0 | U29: 0 | V29: 0 | W29: 0 | X29: 0 | Y29: 0 | Z29: 0.1625 | AA29: 0 | AB29: 0
A30: 14 | B30: 0.0879645943 | C30: 8.785119655 | D30: 99.61336091 | E30: 2.196279914 | F30: 24.90334023 | G30: 1.885302813 | H30: 21.3772102 | I30: 0.04832988571 | J30: 1.098139957 | K30: 1.207996377e-14 | L30: -98.6 | M30: 0 | N30: 0 | P30: 2.040791363 | Q30: 23.14027522 | R30: 0 | S30: 0 | T30: 0 | U30: 0 | V30: 0 | W30: 0 | X30: 0 | Y30: 0 | Z30: 0.175 | AA30: 0 | AB30: 0
A31: 15 | B31: 0.09424777961 | C31: 9.410831332 | D31: 99.55619646 | E31: 2.352707833 | F31: 24.88904912 | G31: 2.019581688 | H31: 21.36494261 | I31: 0.05547544246 | J31: 1.176353916 | K31: 1.206771228e-14 | L31: -98.5 | M31: 0 | N31: 0 | P31: 2.18614476 | Q31: 23.12699586 | R31: 0 | S31: 0 | T31: 0 | U31: 0 | V31: 0 | W31: 0 | X31: 0 | Y31: 0 | Z31: 0.1875 | AA31: 0 | AB31: 0
A32: 16 | B32: 0.1005309649 | C32: 10.03617149 | D32: 99.4951017 | E32: 2.509042871 | F32: 24.87377542 | G32: 2.153780833 | H32: 21.35183156 | I32: 0.06311228773 | J32: 1.254521436 | K32: 1.20554608e-14 | L32: -98.4 | M32: 0 | N32: 0 | P32: 2.331411852 | Q32: 23.11280349 | R32: 0 | S32: 0 | T32: 0 | U32: 0 | V32: 0 | W32: 0 | X32: 0 | Y32: 0 | Z32: 0.2 | AA32: 0 | AB32: 0
A33: 17 | B33: 0.1068141502 | C33: 10.66111543 | D33: 99.43007904 | E33: 2.665278857 | F33: 24.85751976 | G33: 2.287894951 | H33: 21.33787758 | I33: 0.07124012004 | J33: 1.332639428 | K33: 1.204320931e-14 | L33: -98.3 | M33: 0 | N33: 0 | P33: 2.476586904 | Q33: 23.09769867 | R33: 0 | S33: 0 | T33: 0 | U33: 0 | V33: 0 | W33: 0 | X33: 0 | Y33: 0 | Z33: 0.2125 | AA33: 0 | AB33: 0
A34: 18 | B34: 0.1130973355 | C34: 11.28563849 | D34: 99.36113105 | E34: 2.821409622 | F34: 24.84028276 | G34: 2.421918747 | H34: 21.32308121 | I34: 0.0798586185 | J34: 1.410704811 | K34: 1.203095783e-14 | L34: -98.2 | M34: 0 | N34: 0 | P34: 2.621664184 | Q34: 23.08168199 | R34: 0 | S34: 0 | T34: 0 | U34: 0 | V34: 0 | W34: 0 | X34: 0 | Y34: 0 | Z34: 0.225 | AA34: 0 | AB34: 0
A35: 19 | B35: 0.1193805208 | C35: 11.90971601 | D35: 99.28826046 | E35: 2.977429002 | F35: 24.82206511 | G35: 2.555846929 | H35: 21.30744305 | I35: 0.08896744288 | J35: 1.488714501 | K35: 1.201870634e-14 | L35: -98.1 | M35: 0 | N35: 0 | P35: 2.766637966 | Q35: 23.06475408 | R35: 0 | S35: 0 | T35: 0 | U35: 0 | V35: 0 | W35: 0 | X35: 0 | Y35: 0 | Z35: 0.2375 | AA35: 0 | AB35: 0
A36: 20 | B36: 0.1256637061 | C36: 12.53332336 | D36: 99.21147013 | E36: 3.133330839 | F36: 24.80286753 | G36: 2.689674211 | H36: 21.2909637 | I36: 0.09856623357 | J36: 1.56666542 | K36: 1.200645486e-14 | L36: -98 | M36: 0 | N36: 0 | P36: 2.911502525 | Q36: 23.04691562 | R36: 0 | S36: 0 | T36: 0 | U36: 0 | V36: 0 | W36: 0 | X36: 0 | Y36: 0 | Z36: 0.25 | AA36: 0 | AB36: 0
A37: 21 | B37: 0.1319468915 | C37: 13.15643591 | D37: 99.13076311 | E37: 3.289108977 | F37: 24.78269078 | G37: 2.823395309 | H37: 21.27364383 | I37: 0.1086546116 | J37: 1.644554489 | K37: 1.199420337e-14 | L37: -97.9 | M37: 0 | N37: 0 | P37: 3.056252143 | Q37: 23.0281673 | R37: 0 | S37: 0 | T37: 0 | U37: 0 | V37: 0 | W37: 0 | X37: 0 | Y37: 0 | Z37: 0.2625 | AA37: 0 | AB37: 0
A38: 22 | B38: 0.1382300768 | C38: 13.77902907 | D38: 99.04614257 | E38: 3.444757267 | F38: 24.76153564 | G38: 2.957004945 | H38: 21.2554841 | I38: 0.1192321788 | J38: 1.722378634 | K38: 1.198195189e-14 | L38: -97.8 | M38: 0 | N38: 0 | P38: 3.200881106 | Q38: 23.00850987 | R38: 0 | S38: 0 | T38: 0 | U38: 0 | V38: 0 | W38: 0 | X38: 0 | Y38: 0 | Z38: 0.275 | AA38: 0 | AB38: 0
A39: 23 | B39: 0.1445132621 | C39: 14.40107826 | D39: 98.95761186 | E39: 3.600269564 | F39: 24.73940297 | G39: 3.090497843 | H39: 21.23648525 | I39: 0.1302985175 | J39: 1.800134782 | K39: 1.19697004e-14 | L39: -97.7 | M39: 0 | N39: 0 | P39: 3.345383703 | Q39: 22.98794411 | R39: 0 | S39: 0 | T39: 0 | U39: 0 | V39: 0 | W39: 0 | X39: 0 | Y39: 0 | Z39: 0.2875 | AA39: 0 | AB39: 0
A40: 24 | B40: 0.1507964474 | C40: 15.02255891 | D40: 98.86517447 | E40: 3.755639728 | F40: 24.71629362 | G40: 3.223868733 | H40: 21.21664802 | I40: 0.1418531908 | J40: 1.877819864 | K40: 1.195744892e-14 | L40: -97.6 | M40: 0 | N40: 0 | P40: 3.489754231 | Q40: 22.96647082 | R40: 0 | S40: 0 | T40: 0 | U40: 0 | V40: 0 | W40: 0 | X40: 0 | Y40: 0 | Z40: 0.3 | AA40: 0 | AB40: 0
A41: 25 | B41: 0.1570796327 | C41: 15.6434465 | D41: 98.76883406 | E41: 3.910861626 | F41: 24.69220851 | G41: 3.357112351 | H41: 21.19597319 | I41: 0.1538957426 | J41: 1.955430813 | K41: 1.194519744e-14 | L41: -97.5 | M41: 0 | N41: 0 | P41: 3.633986988 | Q41: 22.94409085 | R41: 0 | S41: 0 | T41: 0 | U41: 0 | V41: 0 | W41: 0 | X41: 0 | Y41: 0 | Z41: 0.3125 | AA41: 0 | AB41: 0
A42: 26 | B42: 0.163362818 | C42: 16.26371652 | D42: 98.66859442 | E42: 4.06592913 | F42: 24.66714861 | G42: 3.490223435 | H42: 21.17446158 | I42: 0.1664256974 | J42: 2.032964565 | K42: 1.193294595e-14 | L42: -97.4 | M42: 0 | N42: 0 | P42: 3.778076282 | Q42: 22.92080509 | R42: 0 | S42: 0 | T42: 0 | U42: 0 | V42: 0 | W42: 0 | X42: 0 | Y42: 0 | Z42: 0.325 | AA42: 0 | AB42: 0
A43: 27 | B43: 0.1696460033 | C43: 16.88334447 | D43: 98.56445951 | E43: 4.220836118 | F43: 24.64111488 | G43: 3.623196732 | H43: 21.15211404 | I43: 0.1794425606 | J43: 2.110418059 | K43: 1.192069447e-14 | L43: -97.3 | M43: 0 | N43: 0 | P43: 3.922016425 | Q43: 22.89661446 | R43: 0 | S43: 0 | T43: 0 | U43: 0 | V43: 0 | W43: 0 | X43: 0 | Y43: 0 | Z43: 0.3375 | AA43: 0 | AB43: 0
A44: 28 | B44: 0.1759291886 | C44: 17.5023059 | D44: 98.45643345 | E44: 4.375576474 | F44: 24.61410836 | G44: 3.75602699 | H44: 21.12893144 | I44: 0.1929458184 | J44: 2.187788237 | K44: 1.190844298e-14 | L44: -97.2 | M44: 0 | N44: 0 | P44: 4.065801732 | Q44: 22.8715199 | R44: 0 | S44: 0 | T44: 0 | U44: 0 | V44: 0 | W44: 0 | X44: 0 | Y44: 0 | Z44: 0.35 | AA44: 0 | AB44: 0
A45: 29 | B45: 0.1822123739 | C45: 18.12057636 | D45: 98.3445205 | E45: 4.530144091 | F45: 24.58613012 | G45: 3.888708968 | H45: 21.10491472 | I45: 0.2069349376 | J45: 2.265072045 | K45: 1.18961915e-14 | L45: -97.1 | M45: 0 | N45: 0 | P45: 4.209426529 | Q45: 22.84552242 | R45: 0 | S45: 0 | T45: 0 | U45: 0 | V45: 0 | W45: 0 | X45: 0 | Y45: 0 | Z45: 0.3625 | AA45: 0 | AB45: 0
A46: 30 | B46: 0.1884955592 | C46: 18.73813146 | D46: 98.22872507 | E46: 4.684532865 | F46: 24.55718127 | G46: 4.021237426 | H46: 21.08006481 | I46: 0.2214093659 | J46: 2.342266432 | K46: 1.188394001e-14 | L46: -97 | M46: 0 | N46: 0 | P46: 4.352885145 | Q46: 22.81862304 | R46: 0 | S46: 0 | T46: 0 | U46: 0 | V46: 0 | W46: 0 | X46: 0 | Y46: 0 | Z46: 0.375 | AA46: 0 | AB46: 0
A47: 31 | B47: 0.1947787445 | C47: 19.35494681 | D47: 98.10905174 | E47: 4.838736701 | F47: 24.52726294 | G47: 4.153607132 | H47: 21.05438269 | I47: 0.236368532 | J47: 2.419368351 | K47: 1.187168853e-14 | L47: -96.9 | M47: 0 | N47: 0 | P47: 4.496171916 | Q47: 22.79082281 | R47: 0 | S47: 0 | T47: 0 | U47: 0 | V47: 0 | W47: 0 | X47: 0 | Y47: 0 | Z47: 0.3875 | AA47: 0 | AB47: 0
A48: 32 | B48: 0.2010619298 | C48: 19.97099805 | D48: 97.98550524 | E48: 4.992749513 | F48: 24.49637631 | G48: 4.285812861 | H48: 21.02786938 | I48: 0.2518118452 | J48: 2.496374756 | K48: 1.185943704e-14 | L48: -96.8 | M48: 0 | N48: 0 | P48: 4.639281187 | Q48: 22.76212285 | R48: 0 | S48: 0 | T48: 0 | U48: 0 | V48: 0 | W48: 0 | X48: 0 | Y48: 0 | Z48: 0.4 | AA48: 0 | AB48: 0
A49: 33 | B49: 0.2073451151 | C49: 20.58626088 | D49: 97.85809043 | E49: 5.146565219 | F49: 24.46452261 | G49: 4.417849393 | H49: 21.00052593 | I49: 0.2677386959 | J49: 2.57328261 | K49: 1.184718556e-14 | L49: -96.7 | M49: 0 | N49: 0 | P49: 4.782207306 | Q49: 22.73252427 | R49: 0 | S49: 0 | T49: 0 | U49: 0 | V49: 0 | W49: 0 | X49: 0 | Y49: 0 | Z49: 0.4125 | AA49: 0 | AB49: 0
A50: 34 | B50: 0.2136283004 | C50: 21.20071099 | D50: 97.72681236 | E50: 5.300177748 | F50: 24.43170309 | G50: 4.549711516 | H50: 20.97235342 | I50: 0.2841484554 | J50: 2.650088874 | K50: 1.183493407e-14 | L50: -96.6 | M50: 0 | N50: 0 | P50: 4.924944632 | Q50: 22.70202825 | R50: 0 | S50: 0 | T50: 0 | U50: 0 | V50: 0 | W50: 0 | X50: 0 | Y50: 0 | Z50: 0.425 | AA50: 0 | AB50: 0
A51: 35 | B51: 0.2199114858 | C51: 21.81432414 | D51: 97.59167619 | E51: 5.453581035 | F51: 24.39791905 | G51: 4.681394025 | H51: 20.94335295 | I51: 0.3010404758 | J51: 2.726790517 | K51: 1.182268259e-14 | L51: -96.5 | M51: 0 | N51: 0 | P51: 5.06748753 | Q51: 22.670636 | R51: 0 | S51: 0 | T51: 0 | U51: 0 | V51: 0 | W51: 0 | X51: 0 | Y51: 0 | Z51: 0.4375 | AA51: 0 | AB51: 0
A52: 36 | B52: 0.2261946711 | C52: 22.42707609 | D52: 97.45268728 | E52: 5.606769024 | F52: 24.36317182 | G52: 4.81289172 | H52: 20.91352567 | I52: 0.3184140902 | J52: 2.803384512 | K52: 1.181043111e-14 | L52: -96.4 | M52: 0 | N52: 0 | P52: 5.209830372 | Q52: 22.63834875 | R52: 0 | S52: 0 | T52: 0 | U52: 0 | V52: 0 | W52: 0 | X52: 0 | Y52: 0 | Z52: 0.45 | AA52: 0 | AB52: 0
A53: 37 | B53: 0.2324778564 | C53: 23.03894267 | D53: 97.3098511 | E53: 5.759735667 | F53: 24.32746277 | G53: 4.94419941 | H53: 20.88287277 | I53: 0.3362686127 | J53: 2.879867833 | K53: 1.179817962e-14 | L53: -96.3 | M53: 0 | N53: 0 | P53: 5.351967538 | Q53: 22.60516777 | R53: 0 | S53: 0 | T53: 0 | U53: 0 | V53: 0 | W53: 0 | X53: 0 | Y53: 0 | Z53: 0.4625 | AA53: 0 | AB53: 0
A54: 38 | B54: 0.2387610417 | C54: 23.6498997 | D54: 97.16317329 | E54: 5.912474926 | F54: 24.29079332 | G54: 5.075311912 | H54: 20.85139544 | I54: 0.3546033386 | J54: 2.956237463 | K54: 1.178592814e-14 | L54: -96.2 | M54: 0 | N54: 0 | P54: 5.493893419 | Q54: 22.57109438 | R54: 0 | S54: 0 | T54: 0 | U54: 0 | V54: 0 | W54: 0 | X54: 0 | Y54: 0 | Z54: 0.475 | AA54: 0 | AB54: 0
A55: 39 | B55: 0.245044227 | C55: 24.25992308 | D55: 97.01265965 | E55: 6.06498077 | F55: 24.25316491 | G55: 5.206224049 | H55: 20.81909493 | I55: 0.3734175439 | J55: 3.032490385 | K55: 1.177367665e-14 | L55: -96.1 | M55: 0 | N55: 0 | P55: 5.635602409 | Q55: 22.53612992 | R55: 0 | S55: 0 | T55: 0 | U55: 0 | V55: 0 | W55: 0 | X55: 0 | Y55: 0 | Z55: 0.4875 | AA55: 0 | AB55: 0
A56: 40 | B56: 0.2513274123 | C56: 24.86898872 | D56: 96.85831611 | E56: 6.217247179 | F56: 24.21457903 | G56: 5.336930653 | H56: 20.78597253 | I56: 0.3927104859 | J56: 3.10862359 | K56: 1.176142517e-14 | L56: -96 | M56: 0 | N56: 0 | P56: 5.777088916 | Q56: 22.50027578 | R56: 0 | S56: 0 | T56: 0 | U56: 0 | V56: 0 | W56: 0 | X56: 0 | Y56: 0 | Z56: 0.5 | AA56: 0 | AB56: 0
A57: 41 | B57: 0.2576105976 | C57: 25.47707257 | D57: 96.70014878 | E57: 6.369268142 | F57: 24.17503719 | G57: 5.467426564 | H57: 20.75202953 | I57: 0.412481403 | J57: 3.184634071 | K57: 1.174917368e-14 | L57: -95.9 | M57: 0 | N57: 0 | P57: 5.918347353 | Q57: 22.46353336 | R57: 0 | S57: 0 | T57: 0 | U57: 0 | V57: 0 | W57: 0 | X57: 0 | Y57: 0 | Z57: 0.5125 | AA57: 0 | AB57: 0
A58: 42 | B58: 0.2638937829 | C58: 26.08415063 | D58: 96.53816388 | E58: 6.521037657 | F58: 24.13454097 | G58: 5.597706631 | H58: 20.71726727 | I58: 0.4327295146 | J58: 3.260518829 | K58: 1.17369222e-14 | L58: -95.8 | M58: 0 | N58: 0 | P58: 6.059372144 | Q58: 22.42590412 | R58: 0 | S58: 0 | T58: 0 | U58: 0 | V58: 0 | W58: 0 | X58: 0 | Y58: 0 | Z58: 0.525 | AA58: 0 | AB58: 0
A59: 43 | B59: 0.2701769682 | C59: 26.69019893 | D59: 96.37236783 | E59: 6.672549733 | F59: 24.09309196 | G59: 5.72776571 | H59: 20.68168713 | I59: 0.4534540214 | J59: 3.336274867 | K59: 1.172467071e-14 | L59: -95.7 | M59: 0 | N59: 0 | P59: 6.200157722 | Q59: 22.38738955 | R59: 0 | S59: 0 | T59: 0 | U59: 0 | V59: 0 | W59: 0 | X59: 0 | Y59: 0 | Z59: 0.5375 | AA59: 0 | AB59: 0
A60: 44 | B60: 0.2764601535 | C60: 27.29519355 | D60: 96.20276716 | E60: 6.823798388 | F60: 24.05069179 | G60: 5.857598667 | H60: 20.64529052 | I60: 0.4746541052 | J60: 3.411899194 | K60: 1.171241923e-14 | L60: -95.6 | M60: 0 | N60: 0 | P60: 6.340698527 | Q60: 22.34799115 | R60: 0 | S60: 0 | T60: 0 | U60: 0 | V60: 0 | W60: 0 | X60: 0 | Y60: 0 | Z60: 0.55 | AA60: 0 | AB60: 0
A61: 45 | B61: 0.2827433388 | C61: 27.8991106 | D61: 96.02936857 | E61: 6.974777651 | F61: 24.00734214 | G61: 5.987200375 | H61: 20.60807886 | I61: 0.496328929 | J61: 3.487388825 | K61: 1.170016774e-14 | L61: -95.5 | M61: 0 | N61: 0 | P61: 6.480989013 | Q61: 22.3077105 | R61: 0 | S61: 0 | T61: 0 | U61: 0 | V61: 0 | W61: 0 | X61: 0 | Y61: 0 | Z61: 0.5625 | AA61: 0 | AB61: 0
A62: 46 | B62: 0.2890265241 | C62: 28.50192625 | D62: 95.8521789 | E62: 7.125481562 | F62: 23.96304473 | G62: 6.116565719 | H62: 20.57005363 | I62: 0.5184776373 | J62: 3.562740781 | K62: 1.168791626e-14 | L62: -95.4 | M62: 0 | N62: 0 | P62: 6.621023641 | Q62: 22.26654918 | R62: 0 | S62: 0 | T62: 0 | U62: 0 | V62: 0 | W62: 0 | X62: 0 | Y62: 0 | Z62: 0.575 | AA62: 0 | AB62: 0
A63: 47 | B63: 0.2953097094 | C63: 29.10361668 | D63: 95.67120516 | E63: 7.275904171 | F63: 23.91780129 | G63: 6.245689592 | H63: 20.53121634 | I63: 0.5410993555 | J63: 3.637952085 | K63: 1.167566478e-14 | L63: -95.3 | M63: 0 | N63: 0 | P63: 6.760796881 | Q63: 22.22450881 | R63: 0 | S63: 0 | T63: 0 | U63: 0 | V63: 0 | W63: 0 | X63: 0 | Y63: 0 | Z63: 0.5875 | AA63: 0 | AB63: 0
A64: 48 | B64: 0.3015928947 | C64: 29.70415816 | D64: 95.48645447 | E64: 7.426039539 | F64: 23.87161362 | G64: 6.374566895 | H64: 20.4915685 | I64: 0.5641931907 | J64: 3.71301977 | K64: 1.166341329e-14 | L64: -95.2 | M64: 0 | N64: 0 | P64: 6.900303217 | Q64: 22.18159106 | R64: 0 | S64: 0 | T64: 0 | U64: 0 | V64: 0 | W64: 0 | X64: 0 | Y64: 0 | Z64: 0.6 | AA64: 0 | AB64: 0
A65: 49 | B65: 0.3078760801 | C65: 30.30352696 | D65: 95.29793415 | E65: 7.575881741 | F65: 23.82448354 | G65: 6.503192542 | H65: 20.45111169 | I65: 0.587758231 | J65: 3.78794087 | K65: 1.165116181e-14 | L65: -95.1 | M65: 0 | N65: 0 | P65: 7.039537141 | Q65: 22.13779762 | R65: 0 | S65: 0 | T65: 0 | U65: 0 | V65: 0 | W65: 0 | X65: 0 | Y65: 0 | Z65: 0.6125 | AA65: 0 | AB65: 0
A66: 50 | B66: 0.3141592654 | C66: 30.90169944 | D66: 95.10565163 | E66: 7.725424859 | F66: 23.77641291 | G66: 6.631561453 | H66: 20.40984751 | I66: 0.6117935463 | J66: 3.86271243 | K66: 1.163891032e-14 | L66: -95 | M66: 0 | N66: 0 | P66: 7.178493156 | Q66: 22.09313021 | R66: 0 | S66: 0 | T66: 0 | U66: 0 | V66: 0 | W66: 0 | X66: 0 | Y66: 0 | Z66: 0.625 | AA66: 0 | AB66: 0
A67: 51 | B67: 0.3204424507 | C67: 31.49865197 | D67: 94.9096145 | E67: 7.874662991 | F67: 23.72740362 | G67: 6.759668562 | H67: 20.36777758 | I67: 0.6362981876 | J67: 3.937331496 | K67: 1.162665884e-14 | L67: -94.9 | M67: 0 | N67: 0 | P67: 7.317165777 | Q67: 22.0475906 | R67: 0 | S67: 0 | T67: 0 | U67: 0 | V67: 0 | W67: 0 | X67: 0 | Y67: 0 | Z67: 0.6375 | AA67: 0 | AB67: 0
A68: 52 | B68: 0.326725636 | C68: 32.09436098 | D68: 94.7098305 | E68: 8.023590245 | F68: 23.67745762 | G68: 6.887508811 | H68: 20.32490357 | I68: 0.6612711876 | J68: 4.011795123 | K68: 1.161440735e-14 | L68: -94.8 | M68: 0 | N68: 0 | P68: 7.455549528 | Q68: 22.0011806 | R68: 0 | S68: 0 | T68: 0 | U68: 0 | V68: 0 | W68: 0 | X68: 0 | Y68: 0 | Z68: 0.65 | AA68: 0 | AB68: 0
A69: 53 | B69: 0.3330088213 | C69: 32.68880297 | D69: 94.50630752 | E69: 8.172200741 | F69: 23.62657688 | G69: 7.015077153 | H69: 20.28122716 | I69: 0.6867115603 | J69: 4.086100371 | K69: 1.160215587e-14 | L69: -94.7 | M69: 0 | N69: 0 | P69: 7.593638947 | Q69: 21.95390202 | R69: 0 | S69: 0 | T69: 0 | U69: 0 | V69: 0 | W69: 0 | X69: 0 | Y69: 0 | Z69: 0.6625 | AA69: 0 | AB69: 0
A70: 54 | B70: 0.3392920066 | C70: 33.28195445 | D70: 94.29905359 | E70: 8.320488613 | F70: 23.5747634 | G70: 7.142368551 | H70: 20.23675009 | I70: 0.7126183013 | J70: 4.160244307 | K70: 1.158990438e-14 | L70: -94.6 | M70: 0 | N70: 0 | P70: 7.731428582 | Q70: 21.90575674 | R70: 0 | S70: 0 | T70: 0 | U70: 0 | V70: 0 | W70: 0 | X70: 0 | Y70: 0 | Z70: 0.675 | AA70: 0 | AB70: 0
A71: 55 | B71: 0.3455751919 | C71: 33.87379202 | D71: 94.0880769 | E71: 8.468448006 | F71: 23.52201922 | G71: 7.269377981 | H71: 20.1914741 | I71: 0.7389903881 | J71: 4.234224003 | K71: 1.15776529e-14 | L71: -94.5 | M71: 0 | N71: 0 | P71: 7.868912994 | Q71: 21.85674666 | R71: 0 | S71: 0 | T71: 0 | U71: 0 | V71: 0 | W71: 0 | X71: 0 | Y71: 0 | Z71: 0.6875 | AA71: 0 | AB71: 0
A72: 56 | B72: 0.3518583772 | C72: 34.46429232 | D72: 93.87338577 | E72: 8.616073079 | F72: 23.46834644 | G72: 7.396100429 | H72: 20.14540099 | I72: 0.7658267793 | J72: 4.30803654 | K72: 1.156540141e-14 | L72: -94.4 | M72: 0 | N72: 0 | P72: 8.006086754 | Q72: 21.80687372 | R72: 0 | S72: 0 | T72: 0 | U72: 0 | V72: 0 | W72: 0 | X72: 0 | Y72: 0 | Z72: 0.7 | AA72: 0 | AB72: 0
A73: 57 | B73: 0.3581415625 | C73: 35.05343202 | D73: 93.65498867 | E73: 8.763358005 | F73: 23.41374717 | G73: 7.522530891 | H73: 20.09853258 | I73: 0.7931264156 | J73: 4.381679002 | K73: 1.155314993e-14 | L73: -94.3 | M73: 0 | N73: 0 | P73: 8.142944448 | Q73: 21.75613987 | R73: 0 | S73: 0 | T73: 0 | U73: 0 | V73: 0 | W73: 0 | X73: 0 | Y73: 0 | Z73: 0.7125 | AA73: 0 | AB73: 0
A74: 58 | B74: 0.3644247478 | C74: 35.64118787 | D74: 93.43289425 | E74: 8.910296968 | F74: 23.35822356 | G74: 7.648664376 | H74: 20.0508707 | I74: 0.8208882193 | J74: 4.455148484 | K74: 1.154089845e-14 | L74: -94.2 | M74: 0 | N74: 0 | P74: 8.279480672 | Q74: 21.70454713 | R74: 0 | S74: 0 | T74: 0 | U74: 0 | V74: 0 | W74: 0 | X74: 0 | Y74: 0 | Z74: 0.725 | AA74: 0 | AB74: 0
A75: 59 | B75: 0.3707079331 | C75: 36.22753667 | D75: 93.20711125 | E75: 9.056884168 | F75: 23.30177781 | G75: 7.774495905 | H75: 20.00241726 | I75: 0.8491110943 | J75: 4.528442084 | K75: 1.152864696e-14 | L75: -94.1 | M75: 0 | N75: 0 | P75: 8.415690036 | Q75: 21.65209753 | R75: 0 | S75: 0 | T75: 0 | U75: 0 | V75: 0 | W75: 0 | X75: 0 | Y75: 0 | Z75: 0.7375 | AA75: 0 | AB75: 0
A76: 60 | B76: 0.3769911184 | C76: 36.81245527 | D76: 92.97764859 | E76: 9.203113817 | F76: 23.24441215 | G76: 7.90002051 | H76: 19.95317415 | I76: 0.8777939264 | J76: 4.601556909 | K76: 1.151639548e-14 | L76: -94 | M76: 0 | N76: 0 | P76: 8.551567164 | Q76: 21.59879315 | R76: 0 | S76: 0 | T76: 0 | U76: 0 | V76: 0 | W76: 0 | X76: 0 | Y76: 0 | Z76: 0.75 | AA76: 0 | AB76: 0
A77: 61 | B77: 0.3832743037 | C77: 37.39592057 | D77: 92.74451533 | E77: 9.348980143 | F77: 23.18612883 | G77: 8.025233237 | H77: 19.90314333 | I77: 0.9069355833 | J77: 4.674490072 | K77: 1.150414399e-14 | L77: -93.9 | M77: 0 | N77: 0 | P77: 8.68710669 | Q77: 21.54463608 | R77: 0 | S77: 0 | T77: 0 | U77: 0 | V77: 0 | W77: 0 | X77: 0 | Y77: 0 | Z77: 0.7625 | AA77: 0 | AB77: 0
A78: 62 | B78: 0.389557489 | C78: 37.97790955 | D78: 92.50772068 | E78: 9.494477388 | F78: 23.12693017 | G78: 8.15012914 | H78: 19.85232676 | I78: 0.9365349146 | J78: 4.747238694 | K78: 1.149189251e-14 | L78: -93.8 | M78: 0 | N78: 0 | P78: 8.822303264 | Q78: 21.48962846 | R78: 0 | S78: 0 | T78: 0 | U78: 0 | V78: 0 | W78: 0 | X78: 0 | Y78: 0 | Z78: 0.775 | AA78: 0 | AB78: 0
A79: 63 | B79: 0.3958406744 | C79: 38.55839923 | D79: 92.26727399 | E79: 9.639599807 | F79: 23.0668185 | G79: 8.274703291 | H79: 19.80072646 | I79: 0.9665907516 | J79: 4.819799903 | K79: 1.147964102e-14 | L79: -93.7 | M79: 0 | N79: 0 | P79: 8.957151549 | Q79: 21.43377248 | R79: 0 | S79: 0 | T79: 0 | U79: 0 | V79: 0 | W79: 0 | X79: 0 | Y79: 0 | Z79: 0.7875 | AA79: 0 | AB79: 0
A80: 64 | B80: 0.4021238597 | C80: =$B$2*SIN(B80) -> 39.13736668 | D80: =$B$2*COS(B80) -> 92.02318474 | E80: =C80/$B$4 -> 9.784341671 | F80: 23.00579618 | G80: =C80*(1-PI()/$B$4) -> 8.39895077 | H80: 19.74834445 | I80: =IF($B$5<$M$3,$B$2/(2*$B$4)*(1+SIN(-PI()/2+B80)),) -> 0.9971019079 | J80: =IF($B$5<$M$3,$B$2/(2*$B$4)*COS(-PI()/2+B80),) -> 4.892170835 | K80: =IF($B$5<=$M$2,$C$9+(A80/1000)*($C$10-$C$9),) -> 1.146738954e-14 | L80: =IF($B$5<=$M$2,$D$9+(A80/1000)*($D$10-$D$9),) -> -93.6 | M80: 0 | N80: 0 | P80: 9.091646221 | Q80: 21.37707032 | R80: 0 | S80: 0 | T80: 0 | U80: 0 | V80: 0 | W80: 0 | X80: =IF(AND($B$5>=$M$4,$B$5<$M$2),$T$10+$B$2/(2*$B$4)*SIN(B80),) -> 0 | Y80: =IF(AND($B$5>=$M$4,$B$5<$M$2),$U$10+$B$2/(2*$B$4)*COS(B80),) -> 0 | Z80: 0.8 | AA80: 0 | AB80: 0
A81: 65 | B81: 0.408407045 | C81: 39.71478906 | D81: 91.77546257 | E81: 9.928697266 | F81: 22.94386564 | G81: 8.522866673 | H81: 19.69518282 | I81: 1.028067179 | J81: 4.964348633 | K81: 1.145513805e-14 | L81: -93.5 | M81: =IF(AND($B$5>=$M$2,$B$5<=$M$5),$G$9+(A81/1000)*($G$10-$G$9),) -> 0 | N81: =IF(AND($B$5>=$M$2,$B$5<=$M$5),$H$9+(A81/1000)*($H$10-$H$9),) -> 0 | P81: =(E81+G81)/2 -> 9.22578197 | Q81: 21.31952423 | R81: =IF(AND($B$5>0,$B$5<=MIN($M$3,$M$2)),$T$5+$B$2/(2*$B$4)*(SIN(B81)),) -> 0 | S81: =IF(AND($B$5>0,$B$5<=MIN($M$3,$M$2)),$U$5+$B$2/(2*$B$4)*COS(B81),) -> 0 | T81: =IF(AND($B$5>=$M$3,$B$5<=MIN($M$4,$M$2)),$T$9+$B$2/(2*$B$4)*SIN(B81),) -> 0 | U81: =IF(AND($B$5>=$M$3,$B$5<=MIN($M$4,$M$2)),$U$9+$B$2/(2*$B$4)*COS(B81),) -> 0 | V81: =IF(AND($B$5>=$M$3,$B$5<MIN($M$4,$M$2)),$T$7+$B$2/(2*$B$4)*(SIN(B81)),) -> 0 | W81: =IF(AND($B$5>=$M$3,$B$5<MIN($M$4,$M$2)),$U$7+$B$2/(2*$B$4)*COS(B81),) -> 0 | X81: 0 | Y81: 0 | Z81: 0.8125 | AA81: =($B$5>=Z81)*((Z81>=0)*(Z81<$M$3)*($B$2/$B$4)*SIN((($B$4*$B$3)/$B$2)*Z81)*SIN((($B$4*$B$3)/$B$2)*Z81)+(Z81>=$M$3)*(Z81<$M$4)*($T$9+($B$2/(2*$B$4))*SIN(ASIN((0-$T$9)/($B$2/(2*$B$4)))+(2*$M$3-Z81)*$B$3/($B$2/(2*$B$4))))+(Z81>=$M$4)*(Z81<=$M$2)*($T$10+($B$2/(2*$B$4))*SIN(PI()+ASIN(($T$10-0)/($B$2/(2*$B$4)))+(Z81)*$B$3/($B$2/(2*$B$4))))+(Z81>$M$2)*($G$9+(Z81-$M$2)*$B$3*$G$9/((1-PI()/$B$4)*$B$2))) -> 0 | AB81: =($B$5>=Z81)*((Z81>=0)*(Z81<$M$3)*($B$2/$B$4)*SIN((($B$4*$B$3)/$B$2)*Z81)*COS((($B$4*$B$3)/$B$2)*Z81)+(Z81>=$M$3)*(Z81<$M$4)*($U$9+($B$2/(2*$B$4))*COS(ASIN((0-$T$9)/($B$2/(2*$B$4)))+(2*$M$3-Z81)*$B$3/($B$2/(2*$B$4))))+(Z81>=$M$4)*(Z81<=$M$2)*($U$10+($B$2/(2*$B$4))*COS(PI()+ASIN(($T$10-0)/($B$2/(2*$B$4)))+(Z81)*$B$3/($B$2/(2*$B$4))))+(Z81>$M$2)*($H$9+(Z81-$M$2)*$B$3*$H$9/((1-PI()/$B$4)*$B$2))) -> 0
A82: =A81+1 -> 66 | B82: =2*PI()*(A82/1000) -> 0.4146902303 | C82: 40.29064357 | D82: 91.52411726 | E82: 10.07266089 | F82: 22.88102932 | G82: 8.646446108 | H82: 19.64124366 | I82: 1.059485342 | J82: 5.036330446 | K82: 1.144288657e-14 | L82: -93.4 | M82: 0 | N82: 0 | P82: 9.359553501 | Q82: 21.26113649 | R82: 0 | S82: 0 | T82: 0 | U82: 0 | V82: 0 | W82: 0 | X82: 0 | Y82: 0 | Z82: =Z81+1.25*$B$2/($B$3*1000) -> 0.825 | AA82: 0 | AB82: 0
A83: 67 | B83: 0.4209734156 | C83: 40.86490747 | D83: 91.26915874 | E83: 10.21622687 | F83: 22.81728969 | G83: 8.769684196 | H83: 19.58652909 | I83: 1.091355157 | J83: 5.108113434 | K83: 1.143063508e-14 | L83: -93.3 | M83: 0 | N83: 0 | P83: 9.492955532 | Q83: 21.20190939 | R83: 0 | S83: 0 | T83: 0 | U83: 0 | V83: 0 | W83: 0 | X83: 0 | Y83: 0 | Z83: 0.8375 | AA83: 0 | AB83: 0
A84: 68 | B84: 0.4272566009 | C84: 41.4375581 | D84: 91.01059707 | E84: 10.35938952 | F84: 22.75264927 | G84: 8.892576072 | H84: 19.53104128 | I84: 1.123675366 | J84: 5.179694762 | K84: 1.14183836e-14 | L84: -93.2 | M84: 0 | N84: 0 | P84: 9.625982799 | Q84: 21.14184527 | R84: 0 | S84: 0 | T84: 0 | U84: 0 | V84: 0 | W84: 0 | X84: 0 | Y84: 0 | Z84: 0.85 | AA84: 0 | AB84: 0
A85: 69 | B85: 0.4335397862 | C85: 42.00857284 | D85: 90.74844245 | E85: 10.50214321 | F85: 22.68711061 | G85: 9.015116885 | H85: 19.47478242 | I85: 1.156444693 | J85: 5.251071605 | K85: 1.140613212e-14 | L85: -93.1 | M85: 0 | N85: 0 | P85: 9.758630048 | Q85: 21.08094652 | R85: 0 | S85: 0 | T85: 0 | U85: 0 | V85: 0 | W85: 0 | X85: 0 | Y85: 0 | Z85: 0.8625 | AA85: 0 | AB85: 0
A86: 70 | B86: 0.4398229715 | C86: 42.57792916 | D86: 90.48270525 | E86: 10.64448229 | F86: 22.62067631 | G86: 9.137301796 | H86: 19.41775473 | I86: 1.189661844 | J86: 5.322241145 | K86: 1.139388063e-14 | L86: -93 | M86: 0 | N86: 0 | P86: 9.890892042 | Q86: 21.01921552 | R86: 0 | S86: 0 | T86: 0 | U86: 0 | V86: 0 | W86: 0 | X86: 0 | Y86: 0 | Z86: 0.875 | AA86: 0 | AB86: 0
A87: 71 | B87: 0.4461061568 | C87: 43.14560457 | D87: 90.21339594 | E87: 10.78640114 | F87: 22.55334898 | G87: 9.259125982 | H87: 19.35996045 | I87: 1.223325508 | J87: 5.393200571 | K87: 1.138162915e-14 | L87: -92.9 | M87: 0 | N87: 0 | P87: 10.02276356 | Q87: 20.95665472 | R87: 0 | S87: 0 | T87: 0 | U87: 0 | V87: 0 | W87: 0 | X87: 0 | Y87: 0 | Z87: 0.8875 | AA87: 0 | AB87: 0
A88: 72 | B88: 0.4523893421 | C88: 43.71157667 | D88: 89.94052516 | E88: 10.92789417 | F88: 22.48513129 | G88: 9.380584633 | H88: 19.30140188 | I88: 1.257434355 | J88: 5.463947083 | K88: 1.136937766e-14 | L88: -92.8 | M88: 0 | N88: 0 | P88: 10.1542394 | Q88: 20.89326659 | R88: 0 | S88: 0 | T88: 0 | U88: 0 | V88: 0 | W88: 0 | X88: 0 | Y88: 0 | Z88: 0.9 | AA88: 0 | AB88: 0
A89: 73 | B89: 0.4586725274 | C89: 44.2758231 | D89: 89.66410368 | E89: 11.06895578 | F89: 22.41602592 | G89: 9.501672955 | H89: 19.24208133 | I89: 1.29198704 | J89: 5.534477888 | K89: 1.135712618e-14 | L89: -92.7 | M89: 0 | N89: 0 | P89: 10.28531437 | Q89: 20.82905362 | R89: 0 | S89: 0 | T89: 0 | U89: 0 | V89: 0 | W89: 0 | X89: 0 | Y89: 0 | Z89: 0.9125 | AA89: 0 | AB89: 0
A90: 74 | B90: 0.4649557127 | C90: 44.83832161 | D90: 89.38414242 | E90: 11.2095804 | F90: 22.3460356 | G90: 9.622386167 | H90: 19.18200113 | I90: 1.326982198 | J90: 5.604790201 | K90: 1.134487469e-14 | L90: -92.6 | M90: 0 | N90: 0 | P90: 10.41598328 | Q90: 20.76401836 | R90: 0 | S90: 0 | T90: 0 | U90: 0 | V90: 0 | W90: 0 | X90: 0 | Y90: 0 | Z90: 0.925 | AA90: 0 | AB90: 0
A91: 75 | B91: 0.471238898 | C91: 45.39904997 | D91: 89.10065242 | E91: 11.34976249 | F91: 22.2751631 | G91: 9.742719504 | H91: 19.12116365 | I91: 1.362418448 | J91: 5.674881247 | K91: 1.133262321e-14 | L91: -92.5 | M91: 0 | N91: 0 | P91: 10.546241 | Q91: 20.69816338 | R91: 0 | S91: 0 | T91: 0 | U91: 0 | V91: 0 | W91: 0 | X91: 0 | Y91: 0 | Z91: 0.9375 | AA91: 0 | AB91: 0
A92: 76 | B92: 0.4775220833 | C92: 45.95798606 | D92: 88.81364488 | E92: 11.48949652 | F92: 22.20341122 | G92: 9.862668215 | H92: 19.05957131 | I92: 1.39829439 | J92: 5.744748258 | K92: 1.132037172e-14 | L92: -92.4 | M92: 0 | N92: 0 | P92: 10.67608237 | Q92: 20.63149126 | R92: 0 | S92: 0 | T92: 0 | U92: 0 | V92: 0 | W92: 0 | X92: 0 | Y92: 0 | Z92: 0.95 | AA92: 0 | AB92: 0
A93: 77 | B93: 0.4838052687 | C93: 46.51510781 | D93: 88.52313113 | E93: 11.62877695 | F93: 22.13078278 | G93: 9.982227565 | H93: 18.99722652 | I93: 1.434608608 | J93: 5.814388476 | K93: 1.130812024e-14 | L93: -92.3 | M93: 0 | N93: 0 | P93: 10.80550226 | Q93: 20.56400465 | R93: 0 | S93: 0 | T93: 0 | U93: 0 | V93: 0 | W93: 0 | X93: 0 | Y93: 0 | Z93: 0.9625 | AA93: 0 | AB93: 0
A94: 78 | B94: 0.490088454 | C94: 47.07039322 | D94: 88.22912264 | E94: 11.7675983 | F94: 22.05728066 | G94: 10.10139283 | H94: 18.93413176 | I94: 1.47135967 | J94: 5.883799152 | K94: 1.129586875e-14 | L94: -92.2 | M94: 0 | N94: 0 | P94: 10.93449557 | Q94: 20.49570621 | R94: 0 | S94: 0 | T94: 0 | U94: 0 | V94: 0 | W94: 0 | X94: 0 | Y94: 0 | Z94: 0.975 | AA94: 0 | AB94: 0
A95: 79 | B95: 0.4963716393 | C95: 47.62382037 | D95: 87.93163102 | E95: 11.90595509 | F95: 21.98290775 | G95: 10.22015932 | H95: 18.87028951 | I95: 1.508546123 | J95: 5.952977546 | K95: 1.128361727e-14 | L95: -92.1 | M95: 0 | N95: 0 | P95: 11.0630572 | Q95: 20.42659863 | R95: 0 | S95: 0 | T95: 0 | U95: 0 | V95: 0 | W95: 0 | X95: 0 | Y95: 0 | Z95: 0.9875 | AA95: 0 | AB95: 0
A96: 80 | B96: 0.5026548246 | C96: 48.17536741 | D96: 87.630668 | E96: 12.04384185 | F96: 21.907667 | G96: 10.33852233 | H96: 18.8057023 | I96: 1.546166499 | J96: 6.021920926 | K96: 1.127136579e-14 | L96: -92 | M96: 0 | N96: 0 | P96: 11.19118209 | Q96: 20.35668465 | R96: 0 | S96: 0 | T96: 0 | U96: 0 | V96: 0 | W96: 0 | X96: 0 | Y96: 0 | Z96: 1 | AA96: 0 | AB96: 0
A97: 81 | B97: 0.5089380099 | C97: 48.72501257 | D97: 87.32624548 | E97: 12.18125314 | F97: 21.83156137 | G97: 10.45647719 | H97: 18.74037266 | I97: 1.584219315 | J97: 6.090626572 | K97: 1.12591143e-14 | L97: -91.9 | M97: 0 | N97: 0 | P97: 11.31886516 | Q97: 20.28596702 | R97: 0 | S97: 0 | T97: 0 | U97: 0 | V97: 0 | W97: 0 | X97: 0 | Y97: 0 | Z97: 1.0125 | AA97: 0 | AB97: 0
A98: 82 | B98: 0.5152211952 | C98: 49.27273415 | D98: 87.01837547 | E98: 12.31818354 | F98: 21.75459387 | G98: 10.57401924 | H98: 18.67430319 | I98: 1.622703067 | J98: 6.159091769 | K98: 1.124686282e-14 | L98: -91.8 | M98: 0 | N98: 0 | P98: 11.44610139 | Q98: 20.21444853 | R98: 0 | S98: 0 | T98: 0 | U98: 0 | V98: 0 | W98: 0 | X98: 0 | Y98: 0 | Z98: 1.025 | AA98: 0 | AB98: 0
A99: 83 | B99: 0.5215043805 | C99: 49.81851053 | D99: 86.70707012 | E99: 12.45462763 | F99: 21.67676753 | G99: 10.69114386 | H99: 18.60749649 | I99: 1.661616235 | J99: 6.227313817 | K99: 1.123461133e-14 | L99: -91.7 | M99: 0 | N99: 0 | P99: 11.57288575 | Q99: 20.14213201 | R99: 0 | S99: 0 | T99: 0 | U99: 0 | V99: 0 | W99: 0 | X99: 0 | Y99: 0 | Z99: 1.0375 | AA99: 0 | AB99: 0
A100: 84 | B100: 0.5277875658 | C100: 50.36232016 | D100: 86.39234172 | E100: 12.59058004 | F100: 21.59808543 | G100: 10.8078464 | H100: 18.5399552 | I100: 1.700957285 | J100: 6.29529002 | K100: 1.122235985e-14 | L100: -91.6 | M100: 0 | N100: 0 | P100: 11.69921322 | Q100: 20.06902032 | R100: 0 | S100: 0 | T100: 0 | U100: 0 | V100: 0 | W100: 0 | X100: 0 | Y100: 0 | Z100: 1.05 | AA100: 0 | AB100: 0
A101: 85 | B101: 0.5340707511 | C101: 50.90414158 | D101: 86.0742027 | E101: 12.72603539 | F101: 21.51855068 | G101: 10.92412227 | H101: 18.47168198 | I101: 1.740724662 | J101: 6.363017697 | K101: 1.121010836e-14 | L101: -91.5 | M101: 0 | N101: 0 | P101: 11.82507883 | Q101: 19.99511633 | R101: 0 | S101: 0 | T101: 0 | U101: 0 | V101: 0 | W101: 0 | X101: 0 | Y101: 0 | Z101: 1.0625 | AA101: 0 | AB101: 0
A102: 86 | B102: 0.5403539364 | C102: 51.44395338 | D102: 85.75266562 | E102: 12.86098834 | F102: 21.4381664 | G102: 11.03996688 | H102: 18.40267954 | I102: 1.780916798 | J102: 6.430494172 | K102: 1.119785688e-14 | L102: -91.4 | M102: 0 | N102: 0 | P102: 11.95047761 | Q102: 19.92042297 | R102: 0 | S102: 0 | T102: 0 | U102: 0 | V102: 0 | W102: 0 | X102: 0 | Y102: 0 | Z102: 1.075 | AA102: 0 | AB102: 0
A103: 87 | B103: 0.5466371217 | C103: 51.98173426 | D103: 85.42774317 | E103: 12.99543357 | F103: 21.35693579 | G103: 11.15537564 | H103: 18.33295058 | I103: 1.821532104 | J103: 6.497716783 | K103: 1.118560539e-14 | L103: -91.3 | M103: 0 | N103: 0 | P103: 12.0754046 | Q103: 19.84494319 | R103: 0 | S103: 0 | T103: 0 | U103: 0 | V103: 0 | W103: 0 | X103: 0 | Y103: 0 | Z103: 1.0875 | AA103: 0 | AB103: 0
A104: 88 | B104: 0.552920307 | C104: 52.517463 | D104: 85.09944818 | E104: 13.12936575 | F104: 21.27486204 | G104: 11.27034401 | H104: 18.26249787 | I104: 1.862568978 | J104: 6.564682875 | K104: 1.117335391e-14 | L104: -91.2 | M104: 0 | N104: 0 | P104: 12.19985488 | Q104: 19.76867996 | R104: 0 | S104: 0 | T104: 0 | U104: 0 | V104: 0 | W104: 0 | X104: 0 | Y104: 0 | Z104: 1.1 | AA104: 0 | AB104: 0
A105: 89 | B105: 0.5592034923 | C105: 53.05111843 | D105: 84.76779361 | E105: 13.26277961 | F105: 21.1919484 | G105: 11.38486745 | H105: 18.19132419 | I105: 1.904025799 | J105: 6.631389804 | K105: 1.116110242e-14 | L105: -91.1 | M105: 0 | N105: 0 | P105: 12.32382353 | Q105: 19.6916363 | R105: 0 | S105: 0 | T105: 0 | U105: 0 | V105: 0 | W105: 0 | X105: 0 | Y105: 0 | Z105: 1.1125 | AA105: 0 | AB105: 0
A106: 90 | B106: 0.5654866776 | C106: 53.5826795 | D106: 84.43279255 | E106: 13.39566987 | F106: 21.10819814 | G106: 11.49894143 | H106: 18.11943235 | I106: 1.945900931 | J106: 6.697834937 | K106: 1.114885094e-14 | L106: -91 | M106: 0 | N106: 0 | P106: 12.44730565 | Q106: 19.61381524 | R106: 0 | S106: 0 | T106: 0 | U106: 0 | V106: 0 | W106: 0 | X106: 0 | Y106: 0 | Z106: 1.125 | AA106: 0 | AB106: 0
A107: 91 | B107: 0.571769863 | C107: 54.11212521 | D107: 84.09445823 | E107: 13.5280313 | F107: 21.02361456 | G107: 11.61256145 | H107: 18.04682518 | I107: 1.988192721 | J107: 6.764015652 | K107: 1.113659946e-14 | L107: -90.9 | M107: 0 | N107: 0 | P107: 12.57029638 | Q107: 19.53521987 | R107: 0 | S107: 0 | T107: 0 | U107: 0 | V107: 0 | W107: 0 | X107: 0 | Y107: 0 | Z107: 1.1375 | AA107: 0 | AB107: 0
A108: 92 | B108: 0.5780530483 | C108: 54.63943467 | D108: 83.752804 | E108: 13.65985867 | F108: 20.938201 | G108: 11.72572303 | H108: 17.97350556 | I108: 2.030899499 | J108: 6.829929334 | K108: 1.112434797e-14 | L108: -90.8 | M108: 0 | N108: 0 | P108: 12.69279085 | Q108: 19.45585328 | R108: 0 | S108: 0 | T108: 0 | U108: 0 | V108: 0 | W108: 0 | X108: 0 | Y108: 0 | Z108: 1.15 | AA108: 0 | AB108: 0
A109: 93 | B109: 0.5843362336 | C109: 55.16458706 | D109: 83.40784336 | E109: 13.79114677 | F109: 20.85196084 | G109: 11.8384217 | H109: 17.89947637 | I109: 2.07401958 | J109: 6.895573383 | K109: 1.111209649e-14 | L109: -90.7 | M109: 0 | N109: 0 | P109: 12.81478423 | Q109: 19.37571861 | R109: 0 | S109: 0 | T109: 0 | U109: 0 | V109: 0 | W109: 0 | X109: 0 | Y109: 0 | Z109: 1.1625 | AA109: 0 | AB109: 0
A110: 94 | B110: 0.5906194189 | C110: 55.68756165 | D110: 83.05958992 | E110: 13.92189041 | F110: 20.76489748 | G110: 11.95065301 | H110: 17.82474054 | I110: 2.11755126 | J110: 6.960945206 | K110: 1.1099845e-14 | L110: -90.6 | M110: 0 | N110: 0 | P110: 12.93627171 | Q110: 19.29481901 | R110: 0 | S110: 0 | T110: 0 | U110: 0 | V110: 0 | W110: 0 | X110: 0 | Y110: 0 | Z110: 1.175 | AA110: 0 | AB110: 0
A111: 95 | B111: 0.5969026042 | C111: 56.20833779 | D111: 82.70805743 | E111: 14.05208445 | F111: 20.67701436 | G111: 12.06241252 | H111: 17.74930103 | I111: 2.161492822 | J111: 7.026042223 | K111: 1.108759352e-14 | L111: -90.5 | M111: 0 | N111: 0 | P111: 13.05724848 | Q111: 19.21315769 | R111: 0 | S111: 0 | T111: 0 | U111: 0 | V111: 0 | W111: 0 | X111: 0 | Y111: 0 | Z111: 1.1875 | AA111: 0 | AB111: 0
A112: 96 | B112: 0.6031857895 | C112: 56.72689491 | D112: 82.35325976 | E112: 14.18172373 | F112: 20.58831494 | G112: 12.17369583 | H112: 17.6731608 | I112: 2.20584253 | J112: 7.090861864 | K112: 1.107534203e-14 | L112: -90.4 | M112: 0 | N112: 0 | P112: 13.17770978 | Q112: 19.13073787 | R112: 0 | S112: 0 | T112: 0 | U112: 0 | V112: 0 | W112: 0 | X112: 0 | Y112: 0 | Z112: 1.2 | AA112: 0 | AB112: 0
A113: 97 | B113: 0.6094689748 | C113: 57.24321256 | D113: 81.99521093 | E113: 14.31080314 | F113: 20.49880273 | G113: 12.28449855 | H113: 17.59632286 | I113: 2.250598633 | J113: 7.15540157 | K113: 1.106309055e-14 | L113: -90.3 | M113: 0 | N113: 0 | P113: 13.29765084 | Q113: 19.0475628 | R113: 0 | S113: 0 | T113: 0 | U113: 0 | V113: 0 | W113: 0 | X113: 0 | Y113: 0 | Z113: 1.2125 | AA113: 0 | AB113: 0
A114: 98 | B114: 0.6157521601 | C114: 57.75727034 | D114: 81.63392507 | E114: 14.43931759 | F114: 20.40848127 | G114: 12.39481629 | H114: 17.51879025 | I114: 2.295759366 | J114: 7.219658793 | K114: 1.105083906e-14 | L114: -90.2 | M114: 0 | N114: 0 | P114: 13.41706694 | Q114: 18.96363576 | R114: 0 | S114: 0 | T114: 0 | U114: 0 | V114: 0 | W114: 0 | X114: 0 | Y114: 0 | Z114: 1.225 | AA114: 0 | AB114: 0
A115: 99 | B115: 0.6220353454 | C115: 58.26904797 | D115: 81.26941644 | E115: 14.56726199 | F115: 20.31735411 | G115: 12.50464471 | H115: 17.44056603 | I115: 2.341322945 | J115: 7.283630996 | K115: 1.103858758e-14 | L115: -90.1 | M115: 0 | N115: 0 | P115: 13.53595335 | Q115: 18.87896007 | R115: 0 | S115: 0 | T115: 0 | U115: 0 | V115: 0 | W115: 0 | X115: 0 | Y115: 0 | Z115: 1.2375 | AA115: 0 | AB115: 0
A116: 100 | B116: 0.6283185307 | C116: 58.77852523 | D116: 80.90169944 | E116: 14.69463131 | F116: 20.22542486 | G116: 12.61397947 | H116: 17.36165328 | I116: 2.38728757 | J116: 7.347315654 | K116: 1.102633609e-14 | L116: -90 | M116: 0 | N116: 0 | P116: 13.65430539 | Q116: 18.79353907 | R116: 0 | S116: 0 | T116: 0 | U116: 0 | V116: 0 | W116: 0 | X116: 0 | Y116: 0 | Z116: 1.25 | AA116: 0 | AB116: 0
A117: 101 | B117: 0.634601716 | C117: 59.28568202 | D117: 80.53078857 | E117: 14.8214205 | F117: 20.13269714 | G117: 12.72281624 | H117: 17.28205513 | I117: 2.433651429 | J117: 7.410710252 | K117: 1.101408461e-14 | L117: -89.9 | M117: 0 | N117: 0 | P117: 13.77211837 | Q117: 18.70737614 | R117: 0 | S117: 0 | T117: 0 | U117: 0 | V117: 0 | W117: 0 | X117: 0 | Y117: 0 | Z117: 1.2625 | AA117: 0 | AB117: 0
A118: 102 | B118: 0.6408849013 | C118: 59.79049831 | D118: 80.15669849 | E118: 14.94762458 | F118: 20.03917462 | G118: 12.83115075 | H118: 17.20177471 | I118: 2.480412689 | J118: 7.473812288 | K118: 1.100183313e-14 | L118: -89.8 | M118: 0 | N118: 0 | P118: 13.88938766 | Q118: 18.62047467 | R118: 0 | S118: 0 | T118: 0 | U118: 0 | V118: 0 | W118: 0 | X118: 0 | Y118: 0 | Z118: 1.275 | AA118: 0 | AB118: 0
A119: 103 | B119: 0.6471680866 | C119: 60.29295417 | D119: 79.77944395 | E119: 15.07323854 | F119: 19.94486099 | G119: 12.9389787 | H119: 17.1208152 | I119: 2.527569506 | J119: 7.536619271 | K119: 1.098958164e-14 | L119: -89.7 | M119: 0 | N119: 0 | P119: 14.00610862 | Q119: 18.53283809 | R119: 0 | S119: 0 | T119: 0 | U119: 0 | V119: 0 | W119: 0 | X119: 0 | Y119: 0 | Z119: 1.2875 | AA119: 0 | AB119: 0
A120: 104 | B120: 0.6534512719 | C120: 60.79302977 | D120: 79.39903986 | E120: 15.19825744 | F120: 19.84975997 | G120: 13.04629584 | H120: 17.03917978 | I120: 2.575120017 | J120: 7.599128721 | K120: 1.097733016e-14 | L120: -89.6 | M120: 0 | N120: 0 | P120: 14.12227664 | Q120: 18.44446987 | R120: 0 | S120: 0 | T120: 0 | U120: 0 | V120: 0 | W120: 0 | X120: 0 | Y120: 0 | Z120: 1.3 | AA120: 0 | AB120: 0
A121: 105 | B121: 0.6597344573 | C121: 61.29070537 | D121: 79.01550124 | E121: 15.32267634 | F121: 19.75387531 | G121: 13.15309794 | H121: 16.95687169 | I121: 2.623062345 | J121: 7.661338171 | K121: 1.096507867e-14 | L121: -89.5 | M121: 0 | N121: 0 | P121: 14.23788714 | Q121: 18.3553735 | R121: 0 | S121: 0 | T121: 0 | U121: 0 | V121: 0 | W121: 0 | X121: 0 | Y121: 0 | Z121: 1.3125 | AA121: 0 | AB121: 0
A122: 106 | B122: 0.6660176426 | C122: 61.78596131 | D122: 78.62884321 | E122: 15.44649033 | F122: 19.6572108 | G122: 13.25938077 | H122: 16.87389416 | I122: 2.671394598 | J122: 7.723245164 | K122: 1.095282719e-14 | L122: -89.4 | M122: 0 | N122: 0 | P122: 14.35293555 | Q122: 18.26555248 | R122: 0 | S122: 0 | T122: 0 | U122: 0 | V122: 0 | W122: 0 | X122: 0 | Y122: 0 | Z122: 1.325 | AA122: 0 | AB122: 0
A123: 107 | B123: 0.6723008279 | C123: 62.27877805 | D123: 78.23908106 | E123: 15.56969451 | F123: 19.55977026 | G123: 13.36514015 | H123: 16.79025049 | I123: 2.720114868 | J123: 7.784847256 | K123: 1.09405757e-14 | L123: -89.3 | M123: 0 | N123: 0 | P123: 14.46741733 | Q123: 18.17501038 | R123: 0 | S123: 0 | T123: 0 | U123: 0 | V123: 0 | W123: 0 | X123: 0 | Y123: 0 | Z123: 1.3375 | AA123: 0 | AB123: 0
A124: 108 | B124: 0.6785840132 | C124: 62.76913613 | D124: 77.84623016 | E124: 15.69228403 | F124: 19.46155754 | G124: 13.4703719 | H124: 16.70594396 | I124: 2.76922123 | J124: 7.846142016 | K124: 1.092832422e-14 | L124: -89.2 | M124: 0 | N124: 0 | P124: 14.58132796 | Q124: 18.08375075 | R124: 0 | S124: 0 | T124: 0 | U124: 0 | V124: 0 | W124: 0 | X124: 0 | Y124: 0 | Z124: 1.35 | AA124: 0 | AB124: 0
A125: 109 | B125: 0.6848671985 | C125: 63.25701619 | D125: 77.45030602 | E125: 15.81425405 | F125: 19.3625765 | G125: 13.57507185 | H125: 16.62097792 | I125: 2.818711748 | J125: 7.907127024 | K125: 1.091607273e-14 | L125: -89.1 | M125: 0 | N125: 0 | P125: 14.69466295 | Q125: 17.99177721 | R125: 0 | S125: 0 | T125: 0 | U125: 0 | V125: 0 | W125: 0 | X125: 0 | Y125: 0 | Z125: 1.3625 | AA125: 0 | AB125: 0
A126: 110 | B126: 0.6911503838 | C126: 63.74239897 | D126: 77.05132428 | E126: 15.93559974 | F126: 19.26283107 | G126: 13.67923589 | H126: 16.5353557 | I126: 2.868584465 | J126: 7.967799872 | K126: 1.090382125e-14 | L126: -89 | M126: 0 | N126: 0 | P126: 14.80741782 | Q126: 17.89909339 | R126: 0 | S126: 0 | T126: 0 | U126: 0 | V126: 0 | W126: 0 | X126: 0 | Y126: 0 | Z126: 1.375 | AA126: 0 | AB126: 0
A127: 111 | B127: 0.6974335691 | C127: 64.22526532 | D127: 76.64930068 | E127: 16.05631633 | F127: 19.16232517 | G127: 13.78285989 | H127: 16.4490807 | I127: 2.918837415 | J127: 8.028158165 | K127: 1.089156976e-14 | L127: -88.9 | M127: 0 | N127: 0 | P127: 14.91958811 | Q127: 17.80570294 | R127: 0 | S127: 0 | T127: 0 | U127: 0 | V127: 0 | W127: 0 | X127: 0 | Y127: 0 | Z127: 1.3875 | AA127: 0 | AB127: 0
A128: 112 | B128: 0.7037167544 | C128: 64.70559616 | D128: 76.2442511 | E128: 16.17639904 | F128: 19.06106278 | G128: 13.88593977 | H128: 16.36215632 | I128: 2.969468612 | J128: 8.08819952 | K128: 1.087931828e-14 | L128: -88.8 | M128: 0 | N128: 0 | P128: 15.03116941 | Q128: 17.71160955 | R128: 0 | S128: 0 | T128: 0 | U128: 0 | V128: 0 | W128: 0 | X128: 0 | Y128: 0 | Z128: 1.4 | AA128: 0 | AB128: 0
A129: 113 | B129: 0.7099999397 | C129: 65.18337253 | D129: 75.83619153 | E129: 16.29584313 | F129: 18.95904788 | G129: 13.98847146 | H129: 16.27458598 | I129: 3.020476059 | J129: 8.147921566 | K129: 1.08670668e-14 | L129: -88.7 | M129: 0 | N129: 0 | P129: 15.1421573 | Q129: 17.61681693 | R129: 0 | S129: 0 | T129: 0 | U129: 0 | V129: 0 | W129: 0 | X129: 0 | Y129: 0 | Z129: 1.4125 | AA129: 0 | AB129: 0
A130: 114 | B130: 0.716283125 | C130: 65.65857558 | D130: 75.42513807 | E130: 16.41464389 | F130: 18.85628452 | G130: 14.09045091 | H130: 16.18637316 | I130: 3.071857741 | J130: 8.207321947 | K130: 1.085481531e-14 | L130: -88.6 | M130: 0 | N130: 0 | P130: 15.2525474 | Q130: 17.52132884 | R130: 0 | S130: 0 | T130: 0 | U130: 0 | V130: 0 | W130: 0 | X130: 0 | Y130: 0 | Z130: 1.425 | AA130: 0 | AB130: 0
A131: 115 | B131: 0.7225663103 | C131: 66.13118653 | D131: 75.01110696 | E131: 16.53279663 | F131: 18.75277674 | G131: 14.19187409 | H131: 16.09752132 | I131: 3.12361163 | J131: 8.266398317 | K131: 1.084256383e-14 | L131: -88.5 | M131: 0 | N131: 0 | P131: 15.36233536 | Q131: 17.42514903 | R131: 0 | S131: 0 | T131: 0 | U131: 0 | V131: 0 | W131: 0 | X131: 0 | Y131: 0 | Z131: 1.4375 | AA131: 0 | AB131: 0
A132: 116 | B132: 0.7288494956 | C132: 66.60118674 | D132: 74.59411454 | E132: 16.65029669 | F132: 18.64852864 | G132: 14.292737 | H132: 16.00803398 | I132: 3.175735682 | J132: 8.325148343 | K132: 1.083031234e-14 | L132: -88.4 | M132: 0 | N132: 0 | P132: 15.47151684 | Q132: 17.32828131 | R132: 0 | S132: 0 | T132: 0 | U132: 0 | V132: 0 | W132: 0 | X132: 0 | Y132: 0 | Z132: 1.45 | AA132: 0 | AB132: 0
A133: 117 | B133: 0.7351326809 | C133: 67.06855765 | D133: 74.17417727 | E133: 16.76713941 | F133: 18.54354432 | G133: 14.39303565 | H133: 15.91791467 | I133: 3.228227841 | J133: 8.383569707 | K133: 1.081806086e-14 | L133: -88.3 | M133: 0 | N133: 0 | P133: 15.58008753 | Q133: 17.23072949 | R133: 0 | S133: 0 | T133: 0 | U133: 0 | V133: 0 | W133: 0 | X133: 0 | Y133: 0 | Z133: 1.4625 | AA133: 0 | AB133: 0
A134: 118 | B134: 0.7414158662 | C134: 67.53328081 | D134: 73.75131174 | E134: 16.8833202 | F134: 18.43782793 | G134: 14.49276609 | H134: 15.82716695 | I134: 3.281086033 | J134: 8.441660102 | K134: 1.080580937e-14 | L134: -88.2 | M134: 0 | N134: 0 | P134: 15.68804315 | Q134: 17.13249744 | R134: 0 | S134: 0 | T134: 0 | U134: 0 | V134: 0 | W134: 0 | X134: 0 | Y134: 0 | Z134: 1.475 | AA134: 0 | AB134: 0
A135: 119 | B135: 0.7476990516 | C135: 67.99533787 | D135: 73.32553462 | E135: 16.99883447 | F135: 18.33138366 | G135: 14.59192439 | H135: 15.7357944 | I135: 3.334308172 | J135: 8.499417234 | K135: 1.079355789e-14 | L135: -88.1 | M135: 0 | N135: 0 | P135: 15.79537943 | Q135: 17.03358903 | R135: 0 | S135: 0 | T135: 0 | U135: 0 | V135: 0 | W135: 0 | X135: 0 | Y135: 0 | Z135: 1.4875 | AA135: 0 | AB135: 0
A136: 120 | B136: 0.7539822369 | C136: 68.45471059 | D136: 72.89686274 | E136: 17.11367765 | F136: 18.22421569 | G136: 14.69050662 | H136: 15.64380063 | I136: 3.387892157 | J136: 8.556838824 | K136: 1.07813064e-14 | L136: -88 | M136: 0 | N136: 0 | P136: 15.90209213 | Q136: 16.93400816 | R136: 0 | S136: 0 | T136: 0 | U136: 0 | V136: 0 | W136: 0 | X136: 0 | Y136: 0 | Z136: 1.5 | AA136: 0 | AB136: 0
A137: 121 | B137: 0.7602654222 | C137: 68.91138084 | D137: 72.46531302 | E137: 17.22784521 | F137: 18.11632825 | G137: 14.78850889 | H137: 15.55118926 | I137: 3.441835873 | J137: 8.613922605 | K137: 1.076905492e-14 | L137: -87.9 | M137: 0 | N137: 0 | P137: 16.00817705 | Q137: 16.83375876 | R137: 0 | S137: 0 | T137: 0 | U137: 0 | V137: 0 | W137: 0 | X137: 0 | Y137: 0 | Z137: 1.5125 | AA137: 0 | AB137: 0
A138: 122 | B138: 0.7665486075 | C138: 69.36533058 | D138: 72.03090249 | E138: 17.34133265 | F138: 18.00772562 | G138: 14.88592734 | H138: 15.45796397 | I138: 3.496137189 | J138: 8.670666323 | K138: 1.075680343e-14 | L138: -87.8 | M138: 0 | N138: 0 | P138: 16.11362999 | Q138: 16.73284479 | R138: 0 | S138: 0 | T138: 0 | U138: 0 | V138: 0 | W138: 0 | X138: 0 | Y138: 0 | Z138: 1.525 | AA138: 0 | AB138: 0
A139: 123 | B139: 0.7728317928 | C139: 69.8165419 | D139: 71.5936483 | E139: 17.45413547 | F139: 17.89841208 | G139: 14.98275812 | H139: 15.36412841 | I139: 3.550793962 | J139: 8.727067737 | K139: 1.074455195e-14 | L139: -87.7 | M139: 0 | N139: 0 | P139: 16.2184468 | Q139: 16.63127025 | R139: 0 | S139: 0 | T139: 0 | U139: 0 | V139: 0 | W139: 0 | X139: 0 | Y139: 0 | Z139: 1.5375 | AA139: 0 | AB139: 0
A140: 124 | B140: 0.7791149781 | C140: 70.26499698 | D140: 71.15356772 | E140: 17.56624924 | F140: 17.78839193 | G140: 15.0789974 | H140: 15.26968631 | I140: 3.605804035 | J140: 8.783124622 | K140: 1.073230046e-14 | L140: -87.6 | M140: 0 | N140: 0 | P140: 16.32262332 | Q140: 16.52903912 | R140: 0 | S140: 0 | T140: 0 | U140: 0 | V140: 0 | W140: 0 | X140: 0 | Y140: 0 | Z140: 1.55 | AA140: 0 | AB140: 0
A141: 125 | B141: 0.7853981634 | C141: 70.71067812 | D141: 70.71067812 | E141: 17.67766953 | F141: 17.67766953 | G141: 15.17464139 | H141: 15.17464139 | I141: 3.661165235 | J141: 8.838834765 | K141: 1.072004898e-14 | L141: -87.5 | M141: 0 | N141: 0 | P141: 16.42615546 | Q141: 16.42615546 | R141: 0 | S141: 0 | T141: 0 | U141: 0 | V141: 0 | W141: 0 | X141: 0 | Y141: 0 | Z141: 1.5625 | AA141: 0 | AB141: 0
A142: 126 | B142: 0.7916813487 | C142: 71.15356772 | D142: 70.26499698 | E142: 17.78839193 | F142: 17.56624924 | G142: 15.26968631 | H142: 15.0789974 | I142: 3.716875378 | J142: 8.894195965 | K142: 1.07077975e-14 | L142: -87.4 | M142: 0 | N142: 0 | P142: 16.52903912 | Q142: 16.32262332 | R142: 0 | S142: 0 | T142: 0 | U142: 0 | V142: 0 | W142: 0 | X142: 0 | Y142: 0 | Z142: 1.575 | AA142: 0 | AB142: 0
A143: 127 | B143: 0.797964534 | C143: 71.5936483 | D143: 69.8165419 | E143: 17.89841208 | F143: 17.45413547 | G143: 15.36412841 | H143: 14.98275812 | I143: 3.772932263 | J143: 8.949206038 | K143: 1.069554601e-14 | L143: -87.3 | M143: 0 | N143: 0 | P143: 16.63127025 | Q143: 16.2184468 | R143: 0 | S143: 0 | T143: 0 | U143: 0 | V143: 0 | W143: 0 | X143: 0 | Y143: 0 | Z143: 1.5875 | AA143: 0 | AB143: 0
A144: 128 | B144: 0.8042477193 | C144: =$B$2*SIN(B144) -> 72.03090249 | D144: =$B$2*COS(B144) -> 69.36533058 | E144: =C144/$B$4 -> 18.00772562 | F144: 17.34133265 | G144: =C144*(1-PI()/$B$4) -> 15.45796397 | H144: 14.88592734 | I144: =IF($B$5<$M$3,$B$2/(2*$B$4)*(1+SIN(-PI()/2+B144)),) -> 3.829333677 | J144: =IF($B$5<$M$3,$B$2/(2*$B$4)*COS(-PI()/2+B144),) -> 9.003862811 | K144: =IF($B$5<=$M$2,$C$9+(A144/1000)*($C$10-$C$9),) -> 1.068329453e-14 | L144: =IF($B$5<=$M$2,$D$9+(A144/1000)*($D$10-$D$9),) -> -87.2 | M144: 0 | N144: 0 | P144: 16.73284479 | Q144: 16.11362999 | R144: 0 | S144: 0 | T144: 0 | U144: 0 | V144: 0 | W144: 0 | X144: =IF(AND($B$5>=$M$4,$B$5<$M$2),$T$10+$B$2/(2*$B$4)*SIN(B144),) -> 0 | Y144: =IF(AND($B$5>=$M$4,$B$5<$M$2),$U$10+$B$2/(2*$B$4)*COS(B144),) -> 0 | Z144: 1.6 | AA144: 0 | AB144: 0
A145: 129 | B145: 0.8105309046 | C145: 72.46531302 | D145: 68.91138084 | E145: 18.11632825 | F145: 17.22784521 | G145: 15.55118926 | H145: 14.78850889 | I145: 3.886077395 | J145: 9.058164127 | K145: 1.067104304e-14 | L145: -87.1 | M145: =IF(AND($B$5>=$M$2,$B$5<=$M$5),$G$9+(A145/1000)*($G$10-$G$9),) -> 0 | N145: =IF(AND($B$5>=$M$2,$B$5<=$M$5),$H$9+(A145/1000)*($H$10-$H$9),) -> 0 | P145: =(E145+G145)/2 -> 16.83375876 | Q145: 16.00817705 | R145: =IF(AND($B$5>0,$B$5<=MIN($M$3,$M$2)),$T$5+$B$2/(2*$B$4)*(SIN(B145)),) -> 0 | S145: =IF(AND($B$5>0,$B$5<=MIN($M$3,$M$2)),$U$5+$B$2/(2*$B$4)*COS(B145),) -> 0 | T145: =IF(AND($B$5>=$M$3,$B$5<=MIN($M$4,$M$2)),$T$9+$B$2/(2*$B$4)*SIN(B145),) -> 0 | U145: =IF(AND($B$5>=$M$3,$B$5<=MIN($M$4,$M$2)),$U$9+$B$2/(2*$B$4)*COS(B145),) -> 0 | V145: =IF(AND($B$5>=$M$3,$B$5<MIN($M$4,$M$2)),$T$7+$B$2/(2*$B$4)*(SIN(B145)),) -> 0 | W145: =IF(AND($B$5>=$M$3,$B$5<MIN($M$4,$M$2)),$U$7+$B$2/(2*$B$4)*COS(B145),) -> 0 | X145: 0 | Y145: 0 | Z145: 1.6125 | AA145: =($B$5>=Z145)*((Z145>=0)*(Z145<$M$3)*($B$2/$B$4)*SIN((($B$4*$B$3)/$B$2)*Z145)*SIN((($B$4*$B$3)/$B$2)*Z145)+(Z145>=$M$3)*(Z145<$M$4)*($T$9+($B$2/(2*$B$4))*SIN(ASIN((0-$T$9)/($B$2/(2*$B$4)))+(2*$M$3-Z145)*$B$3/($B$2/(2*$B$4))))+(Z145>=$M$4)*(Z145<=$M$2)*($T$10+($B$2/(2*$B$4))*SIN(PI()+ASIN(($T$10-0)/($B$2/(2*$B$4)))+(Z145)*$B$3/($B$2/(2*$B$4))))+(Z145>$M$2)*($G$9+(Z145-$M$2)*$B$3*$G$9/((1-PI()/$B$4)*$B$2))) -> 0 | AB145: =($B$5>=Z145)*((Z145>=0)*(Z145<$M$3)*($B$2/$B$4)*SIN((($B$4*$B$3)/$B$2)*Z145)*COS((($B$4*$B$3)/$B$2)*Z145)+(Z145>=$M$3)*(Z145<$M$4)*($U$9+($B$2/(2*$B$4))*COS(ASIN((0-$T$9)/($B$2/(2*$B$4)))+(2*$M$3-Z145)*$B$3/($B$2/(2*$B$4))))+(Z145>=$M$4)*(Z145<=$M$2)*($U$10+($B$2/(2*$B$4))*COS(PI()+ASIN(($T$10-0)/($B$2/(2*$B$4)))+(Z145)*$B$3/($B$2/(2*$B$4))))+(Z145>$M$2)*($H$9+(Z145-$M$2)*$B$3*$H$9/((1-PI()/$B$4)*$B$2))) -> 0
A146: =A145+1 -> 130 | B146: =2*PI()*(A146/1000) -> 0.8168140899 | C146: 72.89686274 | D146: 68.45471059 | E146: 18.22421569 | F146: 17.11367765 | G146: 15.64380063 | H146: 14.69050662 | I146: 3.943161176 | J146: 9.112107843 | K146: 1.065879156e-14 | L146: -87 | M146: 0 | N146: 0 | P146: 16.93400816 | Q146: 15.90209213 | R146: 0 | S146: 0 | T146: 0 | U146: 0 | V146: 0 | W146: 0 | X146: 0 | Y146: 0 | Z146: =Z145+1.25*$B$2/($B$3*1000) -> 1.625 | AA146: 0 | AB146: 0
A147: 131 | B147: 0.8230972752 | C147: 73.32553462 | D147: 67.99533787 | E147: 18.33138366 | F147: 16.99883447 | G147: 15.7357944 | H147: 14.59192439 | I147: 4.000582766 | J147: 9.165691828 | K147: 1.064654007e-14 | L147: -86.9 | M147: 0 | N147: 0 | P147: 17.03358903 | Q147: 15.79537943 | R147: 0 | S147: 0 | T147: 0 | U147: 0 | V147: 0 | W147: 0 | X147: 0 | Y147: 0 | Z147: 1.6375 | AA147: 0 | AB147: 0
A148: 132 | B148: 0.8293804605 | C148: 73.75131174 | D148: 67.53328081 | E148: 18.43782793 | F148: 16.8833202 | G148: 15.82716695 | H148: 14.49276609 | I148: 4.058339898 | J148: 9.218913967 | K148: 1.063428859e-14 | L148: -86.8 | M148: 0 | N148: 0 | P148: 17.13249744 | Q148: 15.68804315 | R148: 0 | S148: 0 | T148: 0 | U148: 0 | V148: 0 | W148: 0 | X148: 0 | Y148: 0 | Z148: 1.65 | AA148: 0 | AB148: 0
A149: 133 | B149: 0.8356636459 | C149: 74.17417727 | D149: 67.06855765 | E149: 18.54354432 | F149: 16.76713941 | G149: 15.91791467 | H149: 14.39303565 | I149: 4.116430293 | J149: 9.271772159 | K149: 1.06220371e-14 | L149: -86.7 | M149: 0 | N149: 0 | P149: 17.23072949 | Q149: 15.58008753 | R149: 0 | S149: 0 | T149: 0 | U149: 0 | V149: 0 | W149: 0 | X149: 0 | Y149: 0 | Z149: 1.6625 | AA149: 0 | AB149: 0
A150: 134 | B150: 0.8419468312 | C150: 74.59411454 | D150: 66.60118674 | E150: 18.64852864 | F150: 16.65029669 | G150: 16.00803398 | H150: 14.292737 | I150: 4.174851657 | J150: 9.324264318 | K150: 1.060978562e-14 | L150: -86.6 | M150: 0 | N150: 0 | P150: 17.32828131 | Q150: 15.47151684 | R150: 0 | S150: 0 | T150: 0 | U150: 0 | V150: 0 | W150: 0 | X150: 0 | Y150: 0 | Z150: 1.675 | AA150: 0 | AB150: 0
A151: 135 | B151: 0.8482300165 | C151: 75.01110696 | D151: 66.13118653 | E151: 18.75277674 | F151: 16.53279663 | G151: 16.09752132 | H151: 14.19187409 | I151: 4.233601683 | J151: 9.37638837 | K151: 1.059753413e-14 | L151: -86.5 | M151: 0 | N151: 0 | P151: 17.42514903 | Q151: 15.36233536 | R151: 0 | S151: 0 | T151: 0 | U151: 0 | V151: 0 | W151: 0 | X151: 0 | Y151: 0 | Z151: 1.6875 | AA151: 0 | AB151: 0
A152: 136 | B152: 0.8545132018 | C152: 75.42513807 | D152: 65.65857558 | E152: 18.85628452 | F152: 16.41464389 | G152: 16.18637316 | H152: 14.09045091 | I152: 4.292678053 | J152: 9.428142259 | K152: 1.058528265e-14 | L152: -86.4 | M152: 0 | N152: 0 | P152: 17.52132884 | Q152: 15.2525474 | R152: 0 | S152: 0 | T152: 0 | U152: 0 | V152: 0 | W152: 0 | X152: 0 | Y152: 0 | Z152: 1.7 | AA152: 0 | AB152: 0
A153: 137 | B153: 0.8607963871 | C153: 75.83619153 | D153: 65.18337253 | E153: 18.95904788 | F153: 16.29584313 | G153: 16.27458598 | H153: 13.98847146 | I153: 4.352078434 | J153: 9.479523941 | K153: 1.057303117e-14 | L153: -86.3 | M153: 0 | N153: 0 | P153: 17.61681693 | Q153: 15.1421573 | R153: 0 | S153: 0 | T153: 0 | U153: 0 | V153: 0 | W153: 0 | X153: 0 | Y153: 0 | Z153: 1.7125 | AA153: 0 | AB153: 0
A154: 138 | B154: 0.8670795724 | C154: 76.2442511 | D154: 64.70559616 | E154: 19.06106278 | F154: 16.17639904 | G154: 16.36215632 | H154: 13.88593977 | I154: 4.41180048 | J154: 9.530531388 | K154: 1.056077968e-14 | L154: -86.2 | M154: 0 | N154: 0 | P154: 17.71160955 | Q154: 15.03116941 | R154: 0 | S154: 0 | T154: 0 | U154: 0 | V154: 0 | W154: 0 | X154: 0 | Y154: 0 | Z154: 1.725 | AA154: 0 | AB154: 0
A155: 139 | B155: 0.8733627577 | C155: 76.64930068 | D155: 64.22526532 | E155: 19.16232517 | F155: 16.05631633 | G155: 16.4490807 | H155: 13.78285989 | I155: 4.471841835 | J155: 9.581162585 | K155: 1.05485282e-14 | L155: -86.1 | M155: 0 | N155: 0 | P155: 17.80570294 | Q155: 14.91958811 | R155: 0 | S155: 0 | T155: 0 | U155: 0 | V155: 0 | W155: 0 | X155: 0 | Y155: 0 | Z155: 1.7375 | AA155: 0 | AB155: 0
A156: 140 | B156: 0.879645943 | C156: 77.05132428 | D156: 63.74239897 | E156: 19.26283107 | F156: 15.93559974 | G156: 16.5353557 | H156: 13.67923589 | I156: 4.532200128 | J156: 9.631415535 | K156: 1.053627671e-14 | L156: -86 | M156: 0 | N156: 0 | P156: 17.89909339 | Q156: 14.80741782 | R156: 0 | S156: 0 | T156: 0 | U156: 0 | V156: 0 | W156: 0 | X156: 0 | Y156: 0 | Z156: 1.75 | AA156: 0 | AB156: 0
A157: 141 | B157: 0.8859291283 | C157: 77.45030602 | D157: 63.25701619 | E157: 19.3625765 | F157: 15.81425405 | G157: 16.62097792 | H157: 13.57507185 | I157: 4.592872976 | J157: 9.681288252 | K157: 1.052402523e-14 | L157: -85.9 | M157: 0 | N157: 0 | P157: 17.99177721 | Q157: 14.69466295 | R157: 0 | S157: 0 | T157: 0 | U157: 0 | V157: 0 | W157: 0 | X157: 0 | Y157: 0 | Z157: 1.7625 | AA157: 0 | AB157: 0
A158: 142 | B158: 0.8922123136 | C158: 77.84623016 | D158: 62.76913613 | E158: 19.46155754 | F158: 15.69228403 | G158: 16.70594396 | H158: 13.4703719 | I158: 4.653857984 | J158: 9.73077877 | K158: 1.051177374e-14 | L158: -85.8 | M158: 0 | N158: 0 | P158: 18.08375075 | Q158: 14.58132796 | R158: 0 | S158: 0 | T158: 0 | U158: 0 | V158: 0 | W158: 0 | X158: 0 | Y158: 0 | Z158: 1.775 | AA158: 0 | AB158: 0
A159: 143 | B159: 0.8984954989 | C159: 78.23908106 | D159: 62.27877805 | E159: 19.55977026 | F159: 15.56969451 | G159: 16.79025049 | H159: 13.36514015 | I159: 4.715152744 | J159: 9.779885132 | K159: 1.049952226e-14 | L159: -85.7 | M159: 0 | N159: 0 | P159: 18.17501038 | Q159: 14.46741733 | R159: 0 | S159: 0 | T159: 0 | U159: 0 | V159: 0 | W159: 0 | X159: 0 | Y159: 0 | Z159: 1.7875 | AA159: 0 | AB159: 0
A160: 144 | B160: 0.9047786842 | C160: 78.62884321 | D160: 61.78596131 | E160: 19.6572108 | F160: 15.44649033 | G160: 16.87389416 | H160: 13.25938077 | I160: 4.776754836 | J160: 9.828605402 | K160: 1.048727077e-14 | L160: -85.6 | M160: 0 | N160: 0 | P160: 18.26555248 | Q160: 14.35293555 | R160: 0 | S160: 0 | T160: 0 | U160: 0 | V160: 0 | W160: 0 | X160: 0 | Y160: 0 | Z160: 1.8 | AA160: 0 | AB160: 0
A161: 145 | B161: 0.9110618695 | C161: 79.01550124 | D161: 61.29070537 | E161: 19.75387531 | F161: 15.32267634 | G161: 16.95687169 | H161: 13.15309794 | I161: 4.838661829 | J161: 9.876937655 | K161: 1.047501929e-14 | L161: -85.5 | M161: 0 | N161: 0 | P161: 18.3553735 | Q161: 14.23788714 | R161: 0 | S161: 0 | T161: 0 | U161: 0 | V161: 0 | W161: 0 | X161: 0 | Y161: 0 | Z161: 1.8125 | AA161: 0 | AB161: 0
A162: 146 | B162: 0.9173450548 | C162: 79.39903986 | D162: 60.79302977 | E162: 19.84975997 | F162: 15.19825744 | G162: 17.03917978 | H162: 13.04629584 | I162: 4.900871279 | J162: 9.924879983 | K162: 1.04627678e-14 | L162: -85.4 | M162: 0 | N162: 0 | P162: 18.44446987 | Q162: 14.12227664 | R162: 0 | S162: 0 | T162: 0 | U162: 0 | V162: 0 | W162: 0 | X162: 0 | Y162: 0 | Z162: 1.825 | AA162: 0 | AB162: 0
A163: 147 | B163: 0.9236282402 | C163: 79.77944395 | D163: 60.29295417 | E163: 19.94486099 | F163: 15.07323854 | G163: 17.1208152 | H163: 12.9389787 | I163: 4.963380729 | J163: 9.972430494 | K163: 1.045051632e-14 | L163: -85.3 | M163: 0 | N163: 0 | P163: 18.53283809 | Q163: 14.00610862 | R163: 0 | S163: 0 | T163: 0 | U163: 0 | V163: 0 | W163: 0 | X163: 0 | Y163: 0 | Z163: 1.8375 | AA163: 0 | AB163: 0
A164: 148 | B164: 0.9299114255 | C164: 80.15669849 | D164: 59.79049831 | E164: 20.03917462 | F164: 14.94762458 | G164: 17.20177471 | H164: 12.83115075 | I164: 5.026187712 | J164: 10.01958731 | K164: 1.043826484e-14 | L164: -85.2 | M164: 0 | N164: 0 | P164: 18.62047467 | Q164: 13.88938766 | R164: 0 | S164: 0 | T164: 0 | U164: 0 | V164: 0 | W164: 0 | X164: 0 | Y164: 0 | Z164: 1.85 | AA164: 0 | AB164: 0
A165: 149 | B165: 0.9361946108 | C165: 80.53078857 | D165: 59.28568202 | E165: 20.13269714 | F165: 14.8214205 | G165: 17.28205513 | H165: 12.72281624 | I165: 5.089289748 | J165: 10.06634857 | K165: 1.042601335e-14 | L165: -85.1 | M165: 0 | N165: 0 | P165: 18.70737614 | Q165: 13.77211837 | R165: 0 | S165: 0 | T165: 0 | U165: 0 | V165: 0 | W165: 0 | X165: 0 | Y165: 0 | Z165: 1.8625 | AA165: 0 | AB165: 0
A166: 150 | B166: 0.9424777961 | C166: 80.90169944 | D166: 58.77852523 | E166: 20.22542486 | F166: 14.69463131 | G166: 17.36165328 | H166: 12.61397947 | I166: 5.152684346 | J166: 10.11271243 | K166: 1.041376187e-14 | L166: -85 | M166: 0 | N166: 0 | P166: 18.79353907 | Q166: 13.65430539 | R166: 0 | S166: 0 | T166: 0 | U166: 0 | V166: 0 | W166: 0 | X166: 0 | Y166: 0 | Z166: 1.875 | AA166: 0 | AB166: 0
A167: 151 | B167: 0.9487609814 | C167: 81.26941644 | D167: 58.26904797 | E167: 20.31735411 | F167: 14.56726199 | G167: 17.44056603 | H167: 12.50464471 | I167: 5.216369004 | J167: 10.15867706 | K167: 1.040151038e-14 | L167: -84.9 | M167: 0 | N167: 0 | P167: 18.87896007 | Q167: 13.53595335 | R167: 0 | S167: 0 | T167: 0 | U167: 0 | V167: 0 | W167: 0 | X167: 0 | Y167: 0 | Z167: 1.8875 | AA167: 0 | AB167: 0
A168: 152 | B168: 0.9550441667 | C168: 81.63392507 | D168: 57.75727034 | E168: 20.40848127 | F168: 14.43931759 | G168: 17.51879025 | H168: 12.39481629 | I168: 5.280341207 | J168: 10.20424063 | K168: 1.03892589e-14 | L168: -84.8 | M168: 0 | N168: 0 | P168: 18.96363576 | Q168: 13.41706694 | R168: 0 | S168: 0 | T168: 0 | U168: 0 | V168: 0 | W168: 0 | X168: 0 | Y168: 0 | Z168: 1.9 | AA168: 0 | AB168: 0
A169: 153 | B169: 0.961327352 | C169: 81.99521093 | D169: 57.24321256 | E169: 20.49880273 | F169: 14.31080314 | G169: 17.59632286 | H169: 12.28449855 | I169: 5.34459843 | J169: 10.24940137 | K169: 1.037700741e-14 | L169: -84.7 | M169: 0 | N169: 0 | P169: 19.0475628 | Q169: 13.29765084 | R169: 0 | S169: 0 | T169: 0 | U169: 0 | V169: 0 | W169: 0 | X169: 0 | Y169: 0 | Z169: 1.9125 | AA169: 0 | AB169: 0
A170: 154 | B170: 0.9676105373 | C170: 82.35325976 | D170: 56.72689491 | E170: 20.58831494 | F170: 14.18172373 | G170: 17.6731608 | H170: 12.17369583 | I170: 5.409138136 | J170: 10.29415747 | K170: 1.036475593e-14 | L170: -84.6 | M170: 0 | N170: 0 | P170: 19.13073787 | Q170: 13.17770978 | R170: 0 | S170: 0 | T170: 0 | U170: 0 | V170: 0 | W170: 0 | X170: 0 | Y170: 0 | Z170: 1.925 | AA170: 0 | AB170: 0
A171: 155 | B171: 0.9738937226 | C171: 82.70805743 | D171: 56.20833779 | E171: 20.67701436 | F171: 14.05208445 | G171: 17.74930103 | H171: 12.06241252 | I171: 5.473957777 | J171: 10.33850718 | K171: 1.035250444e-14 | L171: -84.5 | M171: 0 | N171: 0 | P171: 19.21315769 | Q171: 13.05724848 | R171: 0 | S171: 0 | T171: 0 | U171: 0 | V171: 0 | W171: 0 | X171: 0 | Y171: 0 | Z171: 1.9375 | AA171: 0 | AB171: 0
A172: 156 | B172: 0.9801769079 | C172: 83.05958992 | D172: 55.68756165 | E172: 20.76489748 | F172: 13.92189041 | G172: 17.82474054 | H172: 11.95065301 | I172: 5.539054794 | J172: 10.38244874 | K172: 1.034025296e-14 | L172: -84.4 | M172: 0 | N172: 0 | P172: 19.29481901 | Q172: 12.93627171 | R172: 0 | S172: 0 | T172: 0 | U172: 0 | V172: 0 | W172: 0 | X172: 0 | Y172: 0 | Z172: 1.95 | AA172: 0 | AB172: 0
A173: 157 | B173: 0.9864600932 | C173: 83.40784336 | D173: 55.16458706 | E173: 20.85196084 | F173: 13.79114677 | G173: 17.89947637 | H173: 11.8384217 | I173: 5.604426617 | J173: 10.42598042 | K173: 1.032800147e-14 | L173: -84.3 | M173: 0 | N173: 0 | P173: 19.37571861 | Q173: 12.81478423 | R173: 0 | S173: 0 | T173: 0 | U173: 0 | V173: 0 | W173: 0 | X173: 0 | Y173: 0 | Z173: 1.9625 | AA173: 0 | AB173: 0
A174: 158 | B174: 0.9927432785 | C174: 83.752804 | D174: 54.63943467 | E174: 20.938201 | F174: 13.65985867 | G174: 17.97350556 | H174: 11.72572303 | I174: 5.670070666 | J174: 10.4691005 | K174: 1.031574999e-14 | L174: -84.2 | M174: 0 | N174: 0 | P174: 19.45585328 | Q174: 12.69279085 | R174: 0 | S174: 0 | T174: 0 | U174: 0 | V174: 0 | W174: 0 | X174: 0 | Y174: 0 | Z174: 1.975 | AA174: 0 | AB174: 0
A175: 159 | B175: 0.9990264638 | C175: 84.09445823 | D175: 54.11212521 | E175: 21.02361456 | F175: 13.5280313 | G175: 18.04682518 | H175: 11.61256145 | I175: 5.735984348 | J175: 10.51180728 | K175: 1.030349851e-14 | L175: -84.1 | M175: 0 | N175: 0 | P175: 19.53521987 | Q175: 12.57029638 | R175: 0 | S175: 0 | T175: 0 | U175: 0 | V175: 0 | W175: 0 | X175: 0 | Y175: 0 | Z175: 1.9875 | AA175: 0 | AB175: 0
A176: 160 | B176: 1.005309649 | C176: 84.43279255 | D176: 53.5826795 | E176: 21.10819814 | F176: 13.39566987 | G176: 18.11943235 | H176: 11.49894143 | I176: 5.802165063 | J176: 10.55409907 | K176: 1.029124702e-14 | L176: -84 | M176: 0 | N176: 0 | P176: 19.61381524 | Q176: 12.44730565 | R176: 0 | S176: 0 | T176: 0 | U176: 0 | V176: 0 | W176: 0 | X176: 0 | Y176: 0 | Z176: 2 | AA176: 0 | AB176: 0
A177: 161 | B177: 1.011592834 | C177: 84.76779361 | D177: 53.05111843 | E177: 21.1919484 | F177: 13.26277961 | G177: 18.19132419 | H177: 11.38486745 | I177: 5.868610196 | J177: 10.5959742 | K177: 1.027899554e-14 | L177: -83.9 | M177: 0 | N177: 0 | P177: 19.6916363 | Q177: 12.32382353 | R177: 0 | S177: 0 | T177: 0 | U177: 0 | V177: 0 | W177: 0 | X177: 0 | Y177: 0 | Z177: 2.0125 | AA177: 0 | AB177: 0
A178: 162 | B178: 1.01787602 | C178: 85.09944818 | D178: 52.517463 | E178: 21.27486204 | F178: 13.12936575 | G178: 18.26249787 | H178: 11.27034401 | I178: 5.935317125 | J178: 10.63743102 | K178: 1.026674405e-14 | L178: -83.8 | M178: 0 | N178: 0 | P178: 19.76867996 | Q178: 12.19985488 | R178: 0 | S178: 0 | T178: 0 | U178: 0 | V178: 0 | W178: 0 | X178: 0 | Y178: 0 | Z178: 2.025 | AA178: 0 | AB178: 0
A179: 163 | B179: 1.024159205 | C179: 85.42774317 | D179: 51.98173426 | E179: 21.35693579 | F179: 12.99543357 | G179: 18.33295058 | H179: 11.15537564 | I179: 6.002283217 | J179: 10.6784679 | K179: 1.025449257e-14 | L179: -83.7 | M179: 0 | N179: 0 | P179: 19.84494319 | Q179: 12.0754046 | R179: 0 | S179: 0 | T179: 0 | U179: 0 | V179: 0 | W179: 0 | X179: 0 | Y179: 0 | Z179: 2.0375 | AA179: 0 | AB179: 0
A180: 164 | B180: 1.03044239 | C180: 85.75266562 | D180: 51.44395338 | E180: 21.4381664 | F180: 12.86098834 | G180: 18.40267954 | H180: 11.03996688 | I180: 6.069505828 | J180: 10.7190832 | K180: 1.024224108e-14 | L180: -83.6 | M180: 0 | N180: 0 | P180: 19.92042297 | Q180: 11.95047761 | R180: 0 | S180: 0 | T180: 0 | U180: 0 | V180: 0 | W180: 0 | X180: 0 | Y180: 0 | Z180: 2.05 | AA180: 0 | AB180: 0
A181: 165 | B181: 1.036725576 | C181: 86.0742027 | D181: 50.90414158 | E181: 21.51855068 | F181: 12.72603539 | G181: 18.47168198 | H181: 10.92412227 | I181: 6.136982303 | J181: 10.75927534 | K181: 1.02299896e-14 | L181: -83.5 | M181: 0 | N181: 0 | P181: 19.99511633 | Q181: 11.82507883 | R181: 0 | S181: 0 | T181: 0 | U181: 0 | V181: 0 | W181: 0 | X181: 0 | Y181: 0 | Z181: 2.0625 | AA181: 0 | AB181: 0
A182: 166 | B182: 1.043008761 | C182: 86.39234172 | D182: 50.36232016 | E182: 21.59808543 | F182: 12.59058004 | G182: 18.5399552 | H182: 10.8078464 | I182: 6.20470998 | J182: 10.79904271 | K182: 1.021773811e-14 | L182: -83.4 | M182: 0 | N182: 0 | P182: 20.06902032 | Q182: 11.69921322 | R182: 0 | S182: 0 | T182: 0 | U182: 0 | V182: 0 | W182: 0 | X182: 0 | Y182: 0 | Z182: 2.075 | AA182: 0 | AB182: 0
A183: 167 | B183: 1.049291946 | C183: 86.70707012 | D183: 49.81851053 | E183: 21.67676753 | F183: 12.45462763 | G183: 18.60749649 | H183: 10.69114386 | I183: 6.272686183 | J183: 10.83838376 | K183: 1.020548663e-14 | L183: -83.3 | M183: 0 | N183: 0 | P183: 20.14213201 | Q183: 11.57288575 | R183: 0 | S183: 0 | T183: 0 | U183: 0 | V183: 0 | W183: 0 | X183: 0 | Y183: 0 | Z183: 2.0875 | AA183: 0 | AB183: 0
A184: 168 | B184: 1.055575132 | C184: 87.01837547 | D184: 49.27273415 | E184: 21.75459387 | F184: 12.31818354 | G184: 18.67430319 | H184: 10.57401924 | I184: 6.340908231 | J184: 10.87729693 | K184: 1.019323514e-14 | L184: -83.2 | M184: 0 | N184: 0 | P184: 20.21444853 | Q184: 11.44610139 | R184: 0 | S184: 0 | T184: 0 | U184: 0 | V184: 0 | W184: 0 | X184: 0 | Y184: 0 | Z184: 2.1 | AA184: 0 | AB184: 0
A185: 169 | B185: 1.061858317 | C185: 87.32624548 | D185: 48.72501257 | E185: 21.83156137 | F185: 12.18125314 | G185: 18.74037266 | H185: 10.45647719 | I185: 6.409373428 | J185: 10.91578069 | K185: 1.018098366e-14 | L185: -83.1 | M185: 0 | N185: 0 | P185: 20.28596702 | Q185: 11.31886516 | R185: 0 | S185: 0 | T185: 0 | U185: 0 | V185: 0 | W185: 0 | X185: 0 | Y185: 0 | Z185: 2.1125 | AA185: 0 | AB185: 0
A186: 170 | B186: 1.068141502 | C186: 87.630668 | D186: 48.17536741 | E186: 21.907667 | F186: 12.04384185 | G186: 18.8057023 | H186: 10.33852233 | I186: 6.478079074 | J186: 10.9538335 | K186: 1.016873218e-14 | L186: -83 | M186: 0 | N186: 0 | P186: 20.35668465 | Q186: 11.19118209 | R186: 0 | S186: 0 | T186: 0 | U186: 0 | V186: 0 | W186: 0 | X186: 0 | Y186: 0 | Z186: 2.125 | AA186: 0 | AB186: 0
A187: 171 | B187: 1.074424688 | C187: 87.93163102 | D187: 47.62382037 | E187: 21.98290775 | F187: 11.90595509 | G187: 18.87028951 | H187: 10.22015932 | I187: 6.547022454 | J187: 10.99145388 | K187: 1.015648069e-14 | L187: -82.9 | M187: 0 | N187: 0 | P187: 20.42659863 | Q187: 11.0630572 | R187: 0 | S187: 0 | T187: 0 | U187: 0 | V187: 0 | W187: 0 | X187: 0 | Y187: 0 | Z187: 2.1375 | AA187: 0 | AB187: 0
A188: 172 | B188: 1.080707873 | C188: 88.22912264 | D188: 47.07039322 | E188: 22.05728066 | F188: 11.7675983 | G188: 18.93413176 | H188: 10.10139283 | I188: 6.616200848 | J188: 11.02864033 | K188: 1.014422921e-14 | L188: -82.8 | M188: 0 | N188: 0 | P188: 20.49570621 | Q188: 10.93449557 | R188: 0 | S188: 0 | T188: 0 | U188: 0 | V188: 0 | W188: 0 | X188: 0 | Y188: 0 | Z188: 2.15 | AA188: 0 | AB188: 0
A189: 173 | B189: 1.086991058 | C189: 88.52313113 | D189: 46.51510781 | E189: 22.13078278 | F189: 11.62877695 | G189: 18.99722652 | H189: 9.982227565 | I189: 6.685611524 | J189: 11.06539139 | K189: 1.013197772e-14 | L189: -82.7 | M189: 0 | N189: 0 | P189: 20.56400465 | Q189: 10.80550226 | R189: 0 | S189: 0 | T189: 0 | U189: 0 | V189: 0 | W189: 0 | X189: 0 | Y189: 0 | Z189: 2.1625 | AA189: 0 | AB189: 0
A190: 174 | B190: 1.093274243 | C190: 88.81364488 | D190: 45.95798606 | E190: 22.20341122 | F190: 11.48949652 | G190: 19.05957131 | H190: 9.862668215 | I190: 6.755251742 | J190: 11.10170561 | K190: 1.011972624e-14 | L190: -82.6 | M190: 0 | N190: 0 | P190: 20.63149126 | Q190: 10.67608237 | R190: 0 | S190: 0 | T190: 0 | U190: 0 | V190: 0 | W190: 0 | X190: 0 | Y190: 0 | Z190: 2.175 | AA190: 0 | AB190: 0
A191: 175 | B191: 1.099557429 | C191: 89.10065242 | D191: 45.39904997 | E191: 22.2751631 | F191: 11.34976249 | G191: 19.12116365 | H191: 9.742719504 | I191: 6.825118753 | J191: 11.13758155 | K191: 1.010747475e-14 | L191: -82.5 | M191: 0 | N191: 0 | P191: 20.69816338 | Q191: 10.546241 | R191: 0 | S191: 0 | T191: 0 | U191: 0 | V191: 0 | W191: 0 | X191: 0 | Y191: 0 | Z191: 2.1875 | AA191: 0 | AB191: 0
A192: 176 | B192: 1.105840614 | C192: 89.38414242 | D192: 44.83832161 | E192: 22.3460356 | F192: 11.2095804 | G192: 19.18200113 | H192: 9.622386167 | I192: 6.895209799 | J192: 11.1730178 | K192: 1.009522327e-14 | L192: -82.4 | M192: 0 | N192: 0 | P192: 20.76401836 | Q192: 10.41598328 | R192: 0 | S192: 0 | T192: 0 | U192: 0 | V192: 0 | W192: 0 | X192: 0 | Y192: 0 | Z192: 2.2 | AA192: 0 | AB192: 0
A193: 177 | B193: 1.112123799 | C193: 89.66410368 | D193: 44.2758231 | E193: 22.41602592 | F193: 11.06895578 | G193: 19.24208133 | H193: 9.501672955 | I193: 6.965522112 | J193: 11.20801296 | K193: 1.008297178e-14 | L193: -82.3 | M193: 0 | N193: 0 | P193: 20.82905362 | Q193: 10.28531437 | R193: 0 | S193: 0 | T193: 0 | U193: 0 | V193: 0 | W193: 0 | X193: 0 | Y193: 0 | Z193: 2.2125 | AA193: 0 | AB193: 0
A194: 178 | B194: 1.118406985 | C194: 89.94052516 | D194: 43.71157667 | E194: 22.48513129 | F194: 10.92789417 | G194: 19.30140188 | H194: 9.380584633 | I194: 7.036052917 | J194: 11.24256564 | K194: 1.00707203e-14 | L194: -82.2 | M194: 0 | N194: 0 | P194: 20.89326659 | Q194: 10.1542394 | R194: 0 | S194: 0 | T194: 0 | U194: 0 | V194: 0 | W194: 0 | X194: 0 | Y194: 0 | Z194: 2.225 | AA194: 0 | AB194: 0
A195: 179 | B195: 1.12469017 | C195: 90.21339594 | D195: 43.14560457 | E195: 22.55334898 | F195: 10.78640114 | G195: 19.35996045 | H195: 9.259125982 | I195: 7.106799429 | J195: 11.27667449 | K195: 1.005846881e-14 | L195: -82.1 | M195: 0 | N195: 0 | P195: 20.95665472 | Q195: 10.02276356 | R195: 0 | S195: 0 | T195: 0 | U195: 0 | V195: 0 | W195: 0 | X195: 0 | Y195: 0 | Z195: 2.2375 | AA195: 0 | AB195: 0
A196: 180 | B196: 1.130973355 | C196: 90.48270525 | D196: 42.57792916 | E196: 22.62067631 | F196: 10.64448229 | G196: 19.41775473 | H196: 9.137301796 | I196: 7.177758855 | J196: 11.31033816 | K196: 1.004621733e-14 | L196: -82 | M196: 0 | N196: 0 | P196: 21.01921552 | Q196: 9.890892042 | R196: 0 | S196: 0 | T196: 0 | U196: 0 | V196: 0 | W196: 0 | X196: 0 | Y196: 0 | Z196: 2.25 | AA196: 0 | AB196: 0
A197: 181 | B197: 1.137256541 | C197: 90.74844245 | D197: 42.00857284 | E197: 22.68711061 | F197: 10.50214321 | G197: 19.47478242 | H197: 9.015116885 | I197: 7.248928395 | J197: 11.34355531 | K197: 1.003396585e-14 | L197: -81.9 | M197: 0 | N197: 0 | P197: 21.08094652 | Q197: 9.758630048 | R197: 0 | S197: 0 | T197: 0 | U197: 0 | V197: 0 | W197: 0 | X197: 0 | Y197: 0 | Z197: 2.2625 | AA197: 0 | AB197: 0
A198: 182 | B198: 1.143539726 | C198: 91.01059707 | D198: 41.4375581 | E198: 22.75264927 | F198: 10.35938952 | G198: 19.53104128 | H198: 8.892576072 | I198: 7.320305238 | J198: 11.37632463 | K198: 1.002171436e-14 | L198: -81.8 | M198: 0 | N198: 0 | P198: 21.14184527 | Q198: 9.625982799 | R198: 0 | S198: 0 | T198: 0 | U198: 0 | V198: 0 | W198: 0 | X198: 0 | Y198: 0 | Z198: 2.275 | AA198: 0 | AB198: 0
A199: 183 | B199: 1.149822911 | C199: 91.26915874 | D199: 40.86490747 | E199: 22.81728969 | F199: 10.21622687 | G199: 19.58652909 | H199: 8.769684196 | I199: 7.391886566 | J199: 11.40864484 | K199: 1.000946288e-14 | L199: -81.7 | M199: 0 | N199: 0 | P199: 21.20190939 | Q199: 9.492955532 | R199: 0 | S199: 0 | T199: 0 | U199: 0 | V199: 0 | W199: 0 | X199: 0 | Y199: 0 | Z199: 2.2875 | AA199: 0 | AB199: 0
A200: 184 | B200: 1.156106097 | C200: 91.52411726 | D200: 40.29064357 | E200: 22.88102932 | F200: 10.07266089 | G200: 19.64124366 | H200: 8.646446108 | I200: 7.463669554 | J200: 11.44051466 | K200: 9.997211392e-15 | L200: -81.6 | M200: 0 | N200: 0 | P200: 21.26113649 | Q200: 9.359553501 | R200: 0 | S200: 0 | T200: 0 | U200: 0 | V200: 0 | W200: 0 | X200: 0 | Y200: 0 | Z200: 2.3 | AA200: 0 | AB200: 0
A201: 185 | B201: 1.162389282 | C201: 91.77546257 | D201: 39.71478906 | E201: 22.94386564 | F201: 9.928697266 | G201: 19.69518282 | H201: 8.522866673 | I201: 7.535651367 | J201: 11.47193282 | K201: 9.984959908e-15 | L201: -81.5 | M201: 0 | N201: 0 | P201: 21.31952423 | Q201: 9.22578197 | R201: 0 | S201: 0 | T201: 0 | U201: 0 | V201: 0 | W201: 0 | X201: 0 | Y201: 0 | Z201: 2.3125 | AA201: 0 | AB201: 0
... 815 more rows
